Directorate,Department,Expenditure Type,Ref.Doc.1,Vendor Name,Expenditure Amount (exc VAT),Payment Date
Assurance,Assurance,Postage,0060105154,ROYAL MAIL GROUP LIMITED,747.25,01/06/2018
Assurance,Assurance,Subscriptions,0060105164,ASSOCIATION OF ELECTORAL ADMINISTRA,"1,089.00",13/06/2018
Assurance,Assurance,Rents,0060105918,BARNET BROOKSIDE METHODIST CHURCH,500.00,14/06/2018
Assurance,Assurance,Rents,0060105981,BARNET LAWN TENNIS CLUB,750.00,15/06/2018
Assurance,Assurance,Rents,0060105975,BROADFIELDS ACADEMY,152.25,14/06/2018
Assurance,Assurance,Rents,0060107202,GRASVENOR AVENUE INFANT SCHOOL (ACA,460.00,28/06/2018
Assurance,Assurance,Rents,80017841,SECURTEAM,299.25,07/06/2018
Assurance,Assurance,Rents,80017843,SECURTEAM,220.10,07/06/2018
Assurance,Assurance,Rents,80017956,ST STEPHENS CHURCH HALL,360.00,18/06/2018
Assurance,Assurance,Rents,80017792,ST PHILIP THE APOSTLE PARISH,350.00,08/06/2018
Assurance,Assurance,Rents,80017793,ST EDWARD THE CONFESSOR,700.00,08/06/2018
Assurance,Assurance,Printing-Contract,0060105963,ELECTORAL REFORM SERVICES,"4,092.07",14/06/2018
Assurance,Assurance,Stationery,0060104419,GOOD IMPRESSIONS (LONDON) LIMITED,240.00,12/06/2018
Assurance,Assurance,Postage,0060107106,ROYAL MAIL GROUP LIMITED,"1,885.62",28/06/2018
Assurance,Assurance,Ttl IT & Comms,0010014067,DEMOCRACY COUNTS LIMITED,"1,242.80",14/06/2018
Assurance,Assurance,Other Indirect Employee Expens,80017810,REUBEN AND DOROTHY THOMPSTONE,98.50,08/06/2018
Assurance,Assurance,Professional Services,80017803,LONDON MAYORS' ASSOCIATION,30.00,08/06/2018
Assurance,Assurance,Equipment and Materials Purcha,0060106273,MODERN MINDSET LTD,"3,000.00",19/06/2018
Assurance,Assurance,Venue Hire,0060106573,BARNET & SOUTHGATE COLLEGE,120.00,22/06/2018
Assurance,Assurance,Equipment and Materials Purcha,0060099992,PRIME PRODUCTION LTD,54.50,06/06/2018
Assurance,Assurance,Equipment and Materials Purcha,0060104081,PRIME PRODUCTION LTD,69.50,15/06/2018
Assurance,Assurance,Equipment and Materials Purcha,0060104108,PRIME PRODUCTION LTD,39.50,15/06/2018
Assurance,Assurance,Translation Exp / Interpret,0060104293,REDACTED - PERSONAL DATA,255.00,13/06/2018
Assurance,Assurance,Software Licences & Support,0060106216,INTEC FOR BUSINESS LIMITED,760.00,19/06/2018
Central Expenses,Central Expenses,Joint Authorities - Third Part,0060106251,LONDON BOROUGH OF HARINGEY,"40,715.58",19/06/2018
Central Expenses,Central Expenses,Other Establishments - Third P,EBX0231129,LEE VALLEY REGIONAL PARK AUTH.,"28,597.64",14.06.2018
Central Expenses,Central Expenses,Other Establishments - Third P,EBX0232997,GREATER LONDON AUTHORITY,"49,678.00",26.06.2018
Central Expenses,Central Expenses,Bank Charges,0080018242,THE CO OPERATIVE BANK,50.00,29/06/2018
Central Expenses,Central Expenses,Other Establishments - Third P,EBX0232997,GREATER LONDON AUTHORITY,"4,363,157.80",26.06.2018
Central Expenses,Central Expenses,Insurance Claims,0060105962,CLYDE & CO LLP,"4,622.60",20/06/2018
Central Expenses,Central Expenses,Insurance Claims,0080017754,DWP COMPENSATION RECOVERY UNIT,637.00,04/06/2018
Central Expenses,Central Expenses,Insurance Claims,0080017756,DWP COMPENSATION RECOVERY UNIT,637.00,05/06/2018
Central Expenses,Central Expenses,Insurance Claims,0080017900,DWP COMPENSATION RECOVERY UNIT,665.00,12/06/2018
Central Expenses,Central Expenses,Insurance Claims,0080017938,DWP COMPENSATION RECOVERY UNIT,647.00,13/06/2018
Central Expenses,Central Expenses,Insurance Claims,0080017975,DWP COMPENSATION RECOVERY UNIT,665.00,15/06/2018
Central Expenses,Central Expenses,Insurance Claims,0080018004,DWP COMPENSATION RECOVERY UNIT,647.00,29/06/2018
Central Expenses,Central Expenses,Insurance Claims,0080018189,DWP COMPENSATION RECOVERY UNIT,665.00,29/06/2018
Central Expenses,Central Expenses,Insurance Claims,0060105380,JOHNSON AUSTIN PARTNERSHIP LLP,"1,500.00",14/06/2018
Central Expenses,Central Expenses,Insurance Claims,0060105492,JOHNSON AUSTIN PARTNERSHIP LLP,"2,173.10",04/06/2018
Central Expenses,Central Expenses,Insurance Claims,80017700,REDACTED - PERSONAL DATA,165.29,04/06/2018
Central Expenses,Central Expenses,Insurance Claims,80017714,REDACTED - PERSONAL DATA,91.48,04/06/2018
Central Expenses,Central Expenses,Insurance Claims,80017728,REDACTED - PERSONAL DATA,"3,000.00",04/06/2018
Central Expenses,Central Expenses,Insurance Claims,80017752,KINDERTONS LTD,"1,898.40",04/06/2018
Central Expenses,Central Expenses,Insurance Claims,80017753,REDACTED - PERSONAL DATA,30.00,04/06/2018
Central Expenses,Central Expenses,Insurance Claims,80017764,REDACTED - PERSONAL DATA,240.00,05/06/2018
Central Expenses,Central Expenses,Insurance Claims,80017781,REDACTED - PERSONAL DATA,"6,000.00",05/06/2018
Central Expenses,Central Expenses,Insurance Claims,80017809,REDACTED - PERSONAL DATA,584.70,08/06/2018
Central Expenses,Central Expenses,Insurance Claims,80017852,REDACTED - PERSONAL DATA,120.00,08/06/2018
Central Expenses,Central Expenses,Insurance Claims,80017895,REDACTED - PERSONAL DATA,"1,450.00",12/06/2018
Central Expenses,Central Expenses,Insurance Claims,80017923,REDACTED - PERSONAL DATA,82.80,13/06/2018
Central Expenses,Central Expenses,Insurance Claims,80017930,REDACTED - PERSONAL DATA,195.94,13/06/2018
Central Expenses,Central Expenses,Insurance Claims,80017937,REDACTED - PERSONAL DATA,"7,000.00",13/06/2018
Central Expenses,Central Expenses,Insurance Claims,80017939,REDACTED - PERSONAL DATA,850.00,13/06/2018
Central Expenses,Central Expenses,Insurance Claims,80017950,REDACTED - PERSONAL DATA,282.00,29/06/2018
Central Expenses,Central Expenses,Insurance Claims,80017973,PRINCIPIA LAW,"6,717.60",29/06/2018
Central Expenses,Central Expenses,Insurance Claims,80017978,REDACTED - PERSONAL DATA,93.00,15/06/2018
Central Expenses,Central Expenses,Insurance Claims,80017982,EASTHAMS SOLICITORS LIMITED,"22,747.43",15/06/2018
Central Expenses,Central Expenses,Insurance Claims,80017985,REDACTED - PERSONAL DATA,95.00,15/06/2018
Central Expenses,Central Expenses,Insurance Claims,80017988,REDACTED - PERSONAL DATA,54.00,29/06/2018
Central Expenses,Central Expenses,Insurance Claims,80018003,ADVANTAGE SOLICITORS,"23,750.00",29/06/2018
Central Expenses,Central Expenses,Insurance Claims,80018017,REDACTED - PERSONAL DATA,616.00,18/06/2018
Central Expenses,Central Expenses,Insurance Claims,80018021,REDACTED - PERSONAL DATA,180.99,18/06/2018
Central Expenses,Central Expenses,Insurance Claims,80018043,STREPHENSONS SOLICITORS LLP,"8,000.00",18/06/2018
Central Expenses,Central Expenses,Insurance Claims,80018092,REDACTED - PERSONAL DATA,72.99,29/06/2018
Central Expenses,Central Expenses,Insurance Claims,80018104,ADVANTAGE SOLICITORS,"8,252.20",29/06/2018
Central Expenses,Central Expenses,Insurance Claims,80018168,REDACTED - PERSONAL DATA,211.20,29/06/2018
Central Expenses,Central Expenses,Insurance Claims,80017751,RSA MOTABILITY,"2,905.34",01/06/2018
Central Expenses,Central Expenses,Insurance Claims,80017789,WEIGHTMANS LLP,"3,500.00",08/06/2018
Central Expenses,Central Expenses,Insurance Claims,80017897,REDACTED - PERSONAL DATA,"16,500.00",12/06/2018
Central Expenses,Central Expenses,Insurance Claims,80017899,DORIANS SOLICITORS,"8,706.00",12/06/2018
Central Expenses,Central Expenses,Insurance Claims,80017976,CENTRALLONDONCOMMUNITYHEALTH,10.00,15/06/2018
Central Expenses,Central Expenses,Insurance Claims,80017979,KH INJURY LAWYERS,308.00,15/06/2018
Central Expenses,Central Expenses,Insurance Claims,80018112,REDACTED - PERSONAL DATA,650.00,29/06/2018
Central Expenses,Central Expenses,Insurance Claims,80018188,GOODGE LAW SOLICITORS,"11,256.00",29/06/2018
Central Expenses,Central Expenses,Insurance Claims,0060103652,WEIGHTMANS LLP,"1,341.08",04/06/2018
Central Expenses,Central Expenses,Insurance Claims,0060105927,WEIGHTMANS LLP,"1,000.00",15/06/2018
Commercial,Customer Support Group,Building Repairs & Maintenance,0060105228,AJS LTD,237.76,19/06/2018
Commercial,Customer Support Group,Building Repairs & Maintenance,0060098735,HERTEL (UK) LTD,149.63,20/06/2018
Commercial,Customer Support Group,Building Repairs & Maintenance,0060099926,OAKRAY LIMITED,578.55,05/06/2018
Commercial,Customer Support Group,Building Repairs & Maintenance,0060102116,RGE SERVICES,294.08,08/06/2018
Commercial,Customer Support Group,Training,0060106659,SKILLS TRAINING CENTRE LTD,255.00,26/06/2018
Commercial,Customer Support Group,Building Repairs & Maintenance,0060102245,GEESINK NORBA LTD,234.00,08/06/2018
Commercial,Customer Support Group,Building Repairs & Maintenance,0060097945,LIFT & ENGINEERING SERVICES LTD,71.69,05/06/2018
Commercial,Customer Support Group,Building Repairs & Maintenance,0060106297,LIFT & ENGINEERING SERVICES LTD,457.07,28/06/2018
Commercial,Customer Support Group,Building Repairs & Maintenance,0060102321,OAKRAY LIMITED,189.00,25/06/2018
Commercial,Customer Support Group,Building Repairs & Maintenance,0060102355,OAKRAY LIMITED,486.28,13/06/2018
Commercial,Customer Support Group,Building Repairs & Maintenance,0060102359,OAKRAY LIMITED,682.74,19/06/2018
Commercial,Customer Support Group,Building Repairs & Maintenance,0060105549,RGE SERVICES,"1,032.98",14/06/2018
Commercial,Customer Support Group,Rents,0010014095,MONTAGU EVANS LLP,"186,250.00",21/06/2018
Commercial,Customer Support Group,Water Services,0010014097,AFFINITY WATER LIMITED,491.40,26/06/2018
Commercial,Customer Support Group,Water Services,0060104053,AFFINITY WATER LIMITED,662.35,01/06/2018
Commercial,Customer Support Group,Water Services,0060106196,ANGEL SPRINGS LTD,97.58,28/06/2018
Commercial,Customer Support Group,Water Services,0060106209,ANGEL SPRINGS LTD,101.05,28/06/2018
Commercial,Customer Support Group,Cleaning and domestic material,0060105917,HERTFORDSHIRE COUNTY COUNCIL,"2,658.20",14/06/2018
Commercial,Customer Support Group,Rubbish Collection,0060102310,G.B.HOLDINGS LTD,964.00,11/06/2018
Commercial,Customer Support Group,Rubbish Collection,0060106381,PEARCE RECYCLING CO. LTD,154.00,28/06/2018
Commercial,Customer Support Group,Equipment and Materials Purcha,0060104455,EVAC & CHAIR INTERNATIONAL LTD,970.00,12/06/2018
Commercial,Customer Support Group,Equipment and Materials Purcha,0060103456,OAKRAY LIMITED,64.00,05/06/2018
Commercial,Customer Support Group,Furniture-Purchase-Repair,0060106354,SCREWFIX DIRECT LTD,65.20,21/06/2018
Commercial,Customer Support Group,Other Services,0010014053,BLUE 9 SECURITY LIMITED,"21,207.74",01/06/2018
Commercial,Customer Support Group,Other Services,0060105876,BLUE 9 SECURITY LIMITED,"23,641.80",25/06/2018
Commercial,Customer Support Group,Building Repairs & Maintenance,0060104224,LIFT & ENGINEERING SERVICES LTD,145.00,05/06/2018
Commercial,Customer Support Group,Electricity,0060106384,E-ON ENERGY,157.22,21/06/2018
Commercial,Customer Support Group,Water Services,0060106233,ANGEL SPRINGS LTD,238.20,28/06/2018
Commercial,Customer Support Group,Cleaning and domestic material,0060105996,HERTFORDSHIRE COUNTY COUNCIL,292.48,14/06/2018
Commercial,Customer Support Group,Furniture-Purchase-Repair,0060105957,H.C. SLINGSBY PLC.,110.58,19/06/2018
Commercial,Customer Support Group,Books-CDs-Audio-Video,0010014055,SM ELECTRICAL SERVICES,240.00,04/06/2018
Commercial,Customer Support Group,Books-CDs-Audio-Video,0060105191,SM ELECTRICAL SERVICES,200.00,18/06/2018
Commercial,Customer Support Group,Publications,0010014078,SPECTRUM SIGNWRITING LTD,200.00,28/06/2018
Commercial,Customer Support Group,Publications,0010014079,SPECTRUM SIGNWRITING LTD,390.00,15/06/2018
Commercial,Customer Support Group,Other Services,0060105861,BLUE 9 SECURITY LIMITED,"6,009.03",25/06/2018
Commercial,Customer Support Group,Water Services,0060106085,CASTLE WATER LTD,110.81,14/06/2018
Commercial,Customer Support Group,Building Repairs & Maintenance,0060102330,OAKRAY LIMITED,96.00,25/06/2018
Commercial,Customer Support Group,Building Repairs & Maintenance,0060102341,OAKRAY LIMITED,80.00,25/06/2018
Commercial,Customer Support Group,Building Repairs & Maintenance,0060102364,OAKRAY LIMITED,"1,053.25",25/06/2018
Commercial,Customer Support Group,Building Repairs & Maintenance,0060105337,WMF UNITED KINGDOM LTD,"2,150.00",01/06/2018
Commercial,Customer Support Group,Cleaning and domestic material,0060105892,HERTFORDSHIRE COUNTY COUNCIL,"1,286.85",14/06/2018
Commercial,Customer Support Group,Cleaning and domestic material,0060105956,HERTFORDSHIRE COUNTY COUNCIL,"1,618.70",14/06/2018
Commercial,Customer Support Group,Rubbish Collection,0060095318,G.B.HOLDINGS LTD,853.00,11/06/2018
Commercial,Customer Support Group,Rubbish Collection,0060102340,G.B.HOLDINGS LTD,964.00,13/06/2018
Commercial,Customer Support Group,Rubbish Collection,0060106397,PEARCE RECYCLING CO. LTD,157.50,28/06/2018
Commercial,Customer Support Group,Furniture-Purchase-Repair,0060105505,WAGSTAFF INTERIORS GROUP,10.00,27/06/2018
Commercial,Customer Support Group,Stationery,0040002902,OFFICE DEPOT UK LTD,0.85,14/06/2018
Commercial,Customer Support Group,Other Services,0060105852,BLUE 9 SECURITY LIMITED,"11,584.08",25/06/2018
Commercial,Customer Support Group,Gas,0060095485,KENT COUNTY COUNCIL (KCS),71.89,05/06/2018
Commercial,Customer Support Group,Gas,0060106871,KENT COUNTY COUNCIL (KCS),335.73,27/06/2018
Commercial,Customer Support Group,Equipment and Materials Purcha,0060104415,EVAC & CHAIR INTERNATIONAL LTD,145.00,12/06/2018
Commercial,Customer Support Group,CSG Services Contract Payment,0060104678,CAPITA BUSINESS SERVICES LTD,"241,088.31",07/06/2018
Commercial,Customer Support Group,CSG Services Contract Payment,0060105077,CAPITA BUSINESS SERVICES LTD,"9,814.85",13/06/2018
Commercial,Customer Support Group,CSG Services Contract Payment,0060105938,CAPITA BUSINESS SERVICES LTD,"6,363,156.31",26/06/2018
Commercial,Customer Support Group,CSG Services Contract Payment,0060106357,CAPITA BUSINESS SERVICES LTD,"398,982.75",27/06/2018
Commercial,Customer Support Group,CSG Services Contract Payment,0060106263,CAPITA BUSINESS SERVICES LTD,"6,000.00",27/06/2018
Commercial,Customer Support Group,CSG Services Contract Payment,0060106295,CAPITA BUSINESS SERVICES LTD,"12,825.00",27/06/2018
Commercial,Customer Support Group,CSG Services Contract Payment,0060106310,CAPITA BUSINESS SERVICES LTD,"27,310.50",27/06/2018
Commercial,Customer Support Group,CSG Services Contract Payment,0060106315,CAPITA BUSINESS SERVICES LTD,"42,492.16",26/06/2018
Commercial,Customer Support Group,CSG Services Contract Payment,0060106338,CAPITA BUSINESS SERVICES LTD,"38,591.64",27/06/2018
Commercial,Customer Support Group,CSG Services Contract Payment,0060106344,CAPITA BUSINESS SERVICES LTD,"9,685.85",26/06/2018
Commercial,Customer Support Group,CSG Services Contract Payment,0060106509,CAPITA BUSINESS SERVICES LTD,"7,224.00",28/06/2018
Commercial,Customer Support Group,CSG Services Contract Payment,0060106536,CAPITA BUSINESS SERVICES LTD,"1,119,303.44",28/06/2018
Commercial,Customer Support Group,Professional Services,0010014083,TMP (UK) LTD,112.00,28/06/2018
Commercial,Customer Support Group,Fees and Charges,80017831,REDACTED - PERSONAL DATA,200.00,07/06/2018
Commercial,Customer Support Group,Building Repairs & Maintenance,0060106172,ADAMS ENVIRONMENTAL LTD,280.00,28/06/2018
Commercial,Customer Support Group,Building Repairs & Maintenance,0060106609,ADAMS ENVIRONMENTAL LTD,270.00,22/06/2018
Commercial,Customer Support Group,Building Repairs & Maintenance,0060099930,DOORWAY-MAINTENANCE CO.,180.00,19/06/2018
Commercial,Customer Support Group,Building Repairs & Maintenance,0060073788,HERTEL (UK) LTD,34.91,20/06/2018
Commercial,Customer Support Group,Building Repairs & Maintenance,0060098521,HERTEL (UK) LTD,34.91,20/06/2018
Commercial,Customer Support Group,Building Repairs & Maintenance,0060098605,HERTEL (UK) LTD,583.99,19/06/2018
Commercial,Customer Support Group,Building Repairs & Maintenance,0060106950,HERTEL (UK) LTD,34.91,29/06/2018
Commercial,Customer Support Group,Building Repairs & Maintenance,0060106956,HERTEL (UK) LTD,34.91,29/06/2018
Commercial,Customer Support Group,Building Repairs & Maintenance,0060106879,HSL COMPLIANCE LTD,34.91,29/06/2018
Commercial,Customer Support Group,Building Repairs & Maintenance,0060106881,HSL COMPLIANCE LTD,34.91,29/06/2018
Commercial,Customer Support Group,Building Repairs & Maintenance,0060106882,HSL COMPLIANCE LTD,34.91,29/06/2018
Commercial,Customer Support Group,Building Repairs & Maintenance,0060106883,HSL COMPLIANCE LTD,34.91,29/06/2018
Commercial,Customer Support Group,Building Repairs & Maintenance,0060106889,HSL COMPLIANCE LTD,34.91,29/06/2018
Commercial,Customer Support Group,Building Repairs & Maintenance,0060106891,HSL COMPLIANCE LTD,34.91,29/06/2018
Commercial,Customer Support Group,Building Repairs & Maintenance,0060106981,HSL COMPLIANCE LTD,24.94,29/06/2018
Commercial,Customer Support Group,Building Repairs & Maintenance,0060106984,HSL COMPLIANCE LTD,500.00,28/06/2018
Commercial,Customer Support Group,Building Repairs & Maintenance,0060106986,HSL COMPLIANCE LTD,90.00,28/06/2018
Commercial,Customer Support Group,Building Repairs & Maintenance,0060106987,HSL COMPLIANCE LTD,34.91,28/06/2018
Commercial,Customer Support Group,Building Repairs & Maintenance,0060106989,HSL COMPLIANCE LTD,40.83,28/06/2018
Commercial,Customer Support Group,Building Repairs & Maintenance,0060106991,HSL COMPLIANCE LTD,34.91,28/06/2018
Commercial,Customer Support Group,Building Repairs & Maintenance,0060106993,HSL COMPLIANCE LTD,24.94,28/06/2018
Commercial,Customer Support Group,Building Repairs & Maintenance,0060106996,HSL COMPLIANCE LTD,34.91,28/06/2018
Commercial,Customer Support Group,Building Repairs & Maintenance,0060106997,HSL COMPLIANCE LTD,40.83,28/06/2018
Commercial,Customer Support Group,Building Repairs & Maintenance,0060106998,HSL COMPLIANCE LTD,135.00,28/06/2018
Commercial,Customer Support Group,Building Repairs & Maintenance,0060107000,HSL COMPLIANCE LTD,38.79,28/06/2018
Commercial,Customer Support Group,Building Repairs & Maintenance,0060107003,HSL COMPLIANCE LTD,34.91,28/06/2018
Commercial,Customer Support Group,Building Repairs & Maintenance,0060107004,HSL COMPLIANCE LTD,24.94,28/06/2018
Commercial,Customer Support Group,Building Repairs & Maintenance,0060107005,HSL COMPLIANCE LTD,75.00,28/06/2018
Commercial,Customer Support Group,Building Repairs & Maintenance,0060107006,HSL COMPLIANCE LTD,34.91,28/06/2018
Commercial,Customer Support Group,Building Repairs & Maintenance,0060107013,HSL COMPLIANCE LTD,34.91,28/06/2018
Commercial,Customer Support Group,Building Repairs & Maintenance,0060107014,HSL COMPLIANCE LTD,34.91,28/06/2018
Commercial,Customer Support Group,Building Repairs & Maintenance,0060107018,HSL COMPLIANCE LTD,34.91,28/06/2018
Commercial,Customer Support Group,Building Repairs & Maintenance,0060107021,HSL COMPLIANCE LTD,34.91,28/06/2018
Commercial,Customer Support Group,Building Repairs & Maintenance,0060107022,HSL COMPLIANCE LTD,40.83,28/06/2018
Commercial,Customer Support Group,Building Repairs & Maintenance,0060107023,HSL COMPLIANCE LTD,135.00,28/06/2018
Commercial,Customer Support Group,Building Repairs & Maintenance,0060107024,HSL COMPLIANCE LTD,34.91,28/06/2018
Commercial,Customer Support Group,Building Repairs & Maintenance,0060107025,HSL COMPLIANCE LTD,34.91,28/06/2018
Commercial,Customer Support Group,Building Repairs & Maintenance,0060107027,HSL COMPLIANCE LTD,34.91,28/06/2018
Commercial,Customer Support Group,Building Repairs & Maintenance,0060107031,HSL COMPLIANCE LTD,34.91,28/06/2018
Commercial,Customer Support Group,Building Repairs & Maintenance,0060107034,HSL COMPLIANCE LTD,34.91,28/06/2018
Commercial,Customer Support Group,Building Repairs & Maintenance,0060107036,HSL COMPLIANCE LTD,34.91,28/06/2018
Commercial,Customer Support Group,Building Repairs & Maintenance,0060107038,HSL COMPLIANCE LTD,34.91,28/06/2018
Commercial,Customer Support Group,Building Repairs & Maintenance,0060107039,HSL COMPLIANCE LTD,34.91,28/06/2018
Commercial,Customer Support Group,Building Repairs & Maintenance,0060107040,HSL COMPLIANCE LTD,34.91,28/06/2018
Commercial,Customer Support Group,Building Repairs & Maintenance,0060107042,HSL COMPLIANCE LTD,40.83,28/06/2018
Commercial,Customer Support Group,Building Repairs & Maintenance,0060107043,HSL COMPLIANCE LTD,34.91,28/06/2018
Commercial,Customer Support Group,Building Repairs & Maintenance,0060107047,HSL COMPLIANCE LTD,34.91,28/06/2018
Commercial,Customer Support Group,Building Repairs & Maintenance,0060107049,HSL COMPLIANCE LTD,24.94,28/06/2018
Commercial,Customer Support Group,Building Repairs & Maintenance,0060107057,HSL COMPLIANCE LTD,40.83,28/06/2018
Commercial,Customer Support Group,Building Repairs & Maintenance,0060107059,HSL COMPLIANCE LTD,34.91,28/06/2018
Commercial,Customer Support Group,Building Repairs & Maintenance,0060107064,HSL COMPLIANCE LTD,90.00,28/06/2018
Commercial,Customer Support Group,Building Repairs & Maintenance,0060107065,HSL COMPLIANCE LTD,34.91,28/06/2018
Commercial,Customer Support Group,Building Repairs & Maintenance,0060107066,HSL COMPLIANCE LTD,34.91,28/06/2018
Commercial,Customer Support Group,Building Repairs & Maintenance,0060107067,HSL COMPLIANCE LTD,24.94,28/06/2018
Commercial,Customer Support Group,Building Repairs & Maintenance,0060107069,HSL COMPLIANCE LTD,34.91,28/06/2018
Commercial,Customer Support Group,Building Repairs & Maintenance,0060103648,LEE SECURITY LONDON LIMITED,99.00,05/06/2018
Commercial,Customer Support Group,Building Repairs & Maintenance,0060105943,LEE SECURITY LONDON LIMITED,459.00,14/06/2018
Commercial,Customer Support Group,Building Repairs & Maintenance,0060099389,OAKRAY LIMITED,313.20,05/06/2018
Commercial,Customer Support Group,Building Repairs & Maintenance,0060102289,OAKRAY LIMITED,128.00,25/06/2018
Commercial,Customer Support Group,Building Repairs & Maintenance,0060102302,OAKRAY LIMITED,96.00,25/06/2018
Commercial,Customer Support Group,Building Repairs & Maintenance,0060102306,OAKRAY LIMITED,64.00,25/06/2018
Commercial,Customer Support Group,Building Repairs & Maintenance,0060102324,OAKRAY LIMITED,135.00,25/06/2018
Commercial,Customer Support Group,Building Repairs & Maintenance,0060102331,OAKRAY LIMITED,135.00,13/06/2018
Commercial,Customer Support Group,Building Repairs & Maintenance,0060102336,OAKRAY LIMITED,"11,563.32",25/06/2018
Commercial,Customer Support Group,Building Repairs & Maintenance,0060102342,OAKRAY LIMITED,216.00,25/06/2018
Commercial,Customer Support Group,Building Repairs & Maintenance,0060102346,OAKRAY LIMITED,216.00,25/06/2018
Commercial,Customer Support Group,Building Repairs & Maintenance,0060102348,OAKRAY LIMITED,256.68,13/06/2018
Commercial,Customer Support Group,Building Repairs & Maintenance,0060102352,OAKRAY LIMITED,108.00,26/06/2018
Commercial,Customer Support Group,Building Repairs & Maintenance,0060102353,OAKRAY LIMITED,109.55,25/06/2018
Commercial,Customer Support Group,Building Repairs & Maintenance,0060102358,OAKRAY LIMITED,80.00,25/06/2018
Commercial,Customer Support Group,Building Repairs & Maintenance,0060102385,OAKRAY LIMITED,162.00,25/06/2018
Commercial,Customer Support Group,Building Repairs & Maintenance,0060103419,OAKRAY LIMITED,329.17,25/06/2018
Commercial,Customer Support Group,Building Repairs & Maintenance,0060103440,OAKRAY LIMITED,"2,036.00",25/06/2018
Commercial,Customer Support Group,Building Repairs & Maintenance,0060103441,OAKRAY LIMITED,224.00,05/06/2018
Commercial,Customer Support Group,Building Repairs & Maintenance,0060103445,OAKRAY LIMITED,108.00,05/06/2018
Commercial,Customer Support Group,Building Repairs & Maintenance,0060103490,OAKRAY LIMITED,"2,398.35",25/06/2018
Commercial,Customer Support Group,Building Repairs & Maintenance,80017759,LEEWOOD CONSTRUCTION,208.33,27/06/2018
Commercial,Customer Support Group,Building Repairs & Maintenance,0060102121,RGE SERVICES,48.90,05/06/2018
Commercial,Customer Support Group,Building Repairs & Maintenance,0060102144,RGE SERVICES,235.13,08/06/2018
Commercial,Customer Support Group,Building Repairs & Maintenance,0060103016,S W BRUCE & CO LTD,132.20,05/06/2018
Commercial,Customer Support Group,Building Repairs & Maintenance,0060104078,S W BRUCE & CO LTD,130.00,06/06/2018
Commercial,Customer Support Group,Building Repairs & Maintenance,0060104116,S W BRUCE & CO LTD,25.00,06/06/2018
Commercial,Customer Support Group,Building Repairs & Maintenance,0060104125,S W BRUCE & CO LTD,25.00,06/06/2018
Commercial,Customer Support Group,Building Repairs & Maintenance,0060104143,S W BRUCE & CO LTD,165.00,06/06/2018
Commercial,Customer Support Group,Building Repairs & Maintenance,0060104884,S W BRUCE & CO LTD,"2,619.00",19/06/2018
Commercial,Customer Support Group,Building Repairs & Maintenance,0010014068,WINTERS RECYCLING LTD,160.00,14/06/2018
Commercial,Customer Support Group,Gas,0060085407,KENT COUNTY COUNCIL (KCS),50.11,29/06/2018
Commercial,Customer Support Group,Gas,0060105916,KENT COUNTY COUNCIL (KCS),344.29,22/06/2018
Commercial,Customer Support Group,Gas,0060106424,KENT COUNTY COUNCIL (KCS),308.44,22/06/2018
Commercial,Customer Support Group,Gas,0060105942,TOTAL GAS & POWER LTD,716.83,14/06/2018
Commercial,Customer Support Group,Electricity,0060106327,E-ON ENERGY,22.40,19/06/2018
Commercial,Customer Support Group,Electricity,0060106427,E-ON ENERGY,168.97,21/06/2018
Commercial,Customer Support Group,Electricity,0060104636,KENT COUNTY COUNCIL (KCS),315.25,05/06/2018
Commercial,Customer Support Group,Electricity,0060104800,KENT COUNTY COUNCIL (KCS),272.64,05/06/2018
Commercial,Customer Support Group,Electricity,0060104832,KENT COUNTY COUNCIL (KCS),828.87,05/06/2018
Commercial,Customer Support Group,Electricity,0060104841,KENT COUNTY COUNCIL (KCS),590.36,15/06/2018
Commercial,Customer Support Group,Electricity,0060105276,KENT COUNTY COUNCIL (KCS),"1,202.13",04/06/2018
Commercial,Customer Support Group,Electricity,0060105281,KENT COUNTY COUNCIL (KCS),"1,672.13",04/06/2018
Commercial,Customer Support Group,Electricity,0060105286,KENT COUNTY COUNCIL (KCS),575.88,04/06/2018
Commercial,Customer Support Group,Electricity,0060105295,KENT COUNTY COUNCIL (KCS),"1,237.34",04/06/2018
Commercial,Customer Support Group,Electricity,0060105296,KENT COUNTY COUNCIL (KCS),"1,196.16",04/06/2018
Commercial,Customer Support Group,Electricity,0060105300,KENT COUNTY COUNCIL (KCS),591.24,04/06/2018
Commercial,Customer Support Group,Electricity,0060105302,KENT COUNTY COUNCIL (KCS),"1,727.02",04/06/2018
Commercial,Customer Support Group,Electricity,0060105307,KENT COUNTY COUNCIL (KCS),553.25,04/06/2018
Commercial,Customer Support Group,Electricity,0060105317,KENT COUNTY COUNCIL (KCS),"1,815.42",04/06/2018
Commercial,Customer Support Group,Electricity,0060105321,KENT COUNTY COUNCIL (KCS),538.65,04/06/2018
Commercial,Customer Support Group,Electricity,0060105327,KENT COUNTY COUNCIL (KCS),"1,145.01",04/06/2018
Commercial,Customer Support Group,Electricity,0060105334,KENT COUNTY COUNCIL (KCS),592.08,04/06/2018
Commercial,Customer Support Group,Electricity,0060105335,KENT COUNTY COUNCIL (KCS),607.86,04/06/2018
Commercial,Customer Support Group,Electricity,0060105336,KENT COUNTY COUNCIL (KCS),"1,782.53",05/06/2018
Commercial,Customer Support Group,Electricity,0060105338,KENT COUNTY COUNCIL (KCS),607.21,04/06/2018
Commercial,Customer Support Group,Electricity,0060105345,KENT COUNTY COUNCIL (KCS),"1,203.81",04/06/2018
Commercial,Customer Support Group,Electricity,0060105348,KENT COUNTY COUNCIL (KCS),563.21,04/06/2018
Commercial,Customer Support Group,Electricity,0060105350,KENT COUNTY COUNCIL (KCS),"1,710.40",04/06/2018
Commercial,Customer Support Group,Electricity,0060105355,KENT COUNTY COUNCIL (KCS),"1,843.44",01/06/2018
Commercial,Customer Support Group,Electricity,0060105360,KENT COUNTY COUNCIL (KCS),"1,133.20",01/06/2018
Commercial,Customer Support Group,Electricity,0060105364,KENT COUNTY COUNCIL (KCS),"1,095.09",01/06/2018
Commercial,Customer Support Group,Electricity,0060105368,KENT COUNTY COUNCIL (KCS),"1,606.39",01/06/2018
Commercial,Customer Support Group,Electricity,0060105374,KENT COUNTY COUNCIL (KCS),"1,765.00",01/06/2018
Commercial,Customer Support Group,Electricity,0060105375,KENT COUNTY COUNCIL (KCS),"1,651.72",01/06/2018
Commercial,Customer Support Group,Electricity,0060105378,KENT COUNTY COUNCIL (KCS),"1,194.82",01/06/2018
Commercial,Customer Support Group,Water Services,0010014101,AFFINITY WATER LIMITED,616.84,28/06/2018
Commercial,Customer Support Group,Water Services,0060106334,CASTLE WATER LTD,294.88,19/06/2018
Commercial,Customer Support Group,Water Services,0060106572,CASTLE WATER LTD,269.41,22/06/2018
Commercial,Customer Support Group,Water Services,0060107101,CASTLE WATER LTD,65.00,29/06/2018
Commercial,Customer Support Group,Water Services,0060107108,CASTLE WATER LTD,303.36,28/06/2018
Commercial,Customer Support Group,Water Services,0060107133,CASTLE WATER LTD,39.59,28/06/2018
Commercial,Customer Support Group,Water Services,0060107174,CASTLE WATER LTD,36.65,29/06/2018
Commercial,Customer Support Group,Cleaning and domestic material,0010014087,CHURCHILL CONTRACT SERVICES,658.45,28/06/2018
Commercial,Customer Support Group,Consultants Fees,80018093,REDACTED - PERSONAL DATA,350.00,27/06/2018
Commercial,Customer Support Group,Other Services,0010014054,BLUE 9 SECURITY LIMITED,67.15,01/06/2018
Commercial,Customer Support Group,Other Services,0060106011,BLUE 9 SECURITY LIMITED,214.88,14/06/2018
Commercial,Customer Support Group,Other Services,0060106055,BLUE 9 SECURITY LIMITED,94.01,14/06/2018
Commercial,Customer Support Group,Other Services,0060106059,BLUE 9 SECURITY LIMITED,31.14,14/06/2018
Commercial,Customer Support Group,Other Services,0060106061,BLUE 9 SECURITY LIMITED,134.30,14/06/2018
Commercial,Customer Support Group,Other Services,0060106100,BLUE 9 SECURITY LIMITED,53.72,14/06/2018
Commercial,Customer Support Group,Ttl IT & Comms,0060106648,TELEFONICA UK LTD,60.00,27/06/2018
Commercial,Customer Support Group,Ttl IT & Comms,0060106658,TELEFONICA UK LTD,68.55,27/06/2018
Commercial,Customer Support Group,Ttl IT & Comms,0060106668,TELEFONICA UK LTD,60.00,27/06/2018
Commercial,Customer Support Group,Ttl IT & Comms,0060106673,TELEFONICA UK LTD,76.62,27/06/2018
Commercial,Customer Support Group,Ttl IT & Comms,0060106690,TELEFONICA UK LTD,60.00,27/06/2018
Commercial,Customer Support Group,Ttl IT & Comms,0060106700,VODAFONE LTD (BILLS ONLY),438.43,26/06/2018
Commercial,Customer Support Group,Conference Expenses,0060106500,COMER BUSINESS AND INNOVATION CENTRES,160.00,22/06/2018
Commercial,Customer Support Group,Professional Services,0010014076,EQUITA LTD HIGH COURT ENFORCEMENT,75.00,15/06/2018
Commercial,Customer Support Group,Professional Services,0010014077,EQUITA LTD HIGH COURT ENFORCEMENT,75.00,15/06/2018
Commercial,Customer Support Group,Postage,0020036473,ROYAL MAIL GROUP LIMITED,331.38,21/06/2018
Commercial,Customer Support Group,Postage,0060105377,PULSTAR DATAPRINT LTD,70.40,11/06/2018
Commercial,Customer Support Group,Postage,0060106641,SWEMKO (UK) LTD,52.60,26/06/2018
Commercial,Customer Support Group,Postage,0060099779,XEROX (UK) LTD,(95.54),05/06/2018
Commercial,Customer Support Group,Postage,0060105478,XEROX (UK) LTD,88.89,05/06/2018
Commercial,Customer Support Group,Ttl IT & Comms,80017826,ID MANAGEMENT SYSTEMS,360.00,06/06/2018
Commercial,Customer Support Group,Water Services,0060106198,ANGEL SPRINGS LTD,149.00,28/06/2018
Commercial,Customer Support Group,Cleaning and domestic material,0060105902,HERTFORDSHIRE COUNTY COUNCIL,286.69,14/06/2018
Commercial,Customer Support Group,Rubbish Collection,0060095324,G.B.HOLDINGS LTD,58.80,13/06/2018
Commercial,Customer Support Group,Rubbish Collection,0060102290,G.B.HOLDINGS LTD,58.80,13/06/2018
Commercial,Customer Support Group,Rubbish Collection,0060106378,PEARCE RECYCLING CO. LTD,114.50,28/06/2018
Commercial,Customer Support Group,Equipment and Materials Purcha,0060104348,CARDIAC SCIENCE HOLDINGS (UK) LIMITED,275.00,07/06/2018
Commercial,Customer Support Group,Equipment and Materials Purcha,0060104409,EVAC & CHAIR INTERNATIONAL LTD,145.00,12/06/2018
Commercial,Customer Support Group,Clothing - Uniforms,0060107095,THE BRANDED MERCHANDISE COMPANY,235.00,28/06/2018
Commercial,Customer Support Group,Other Services,0060105883,BLUE 9 SECURITY LIMITED,"22,773.84",25/06/2018
Commercial,Customer Support Group,Building Repairs & Maintenance,0060106763,ARMSTRONG YORK,560.00,26/06/2018
Commercial,Customer Support Group,Other Services,0060106016,BLUE 9 SECURITY LIMITED,"11,708.64",14/06/2018
Commercial,Customer Support Group,Other Services,0060106079,BLUE 9 SECURITY LIMITED,"1,058.00",14/06/2018
Commercial,Housing Needs Resources,Other Services,0060104848,THE BARNETGROUP LIMITED,"278,222.92",01/06/2018
Commercial,Housing Needs Resources,Private Contractors - Third Pa,0060104791,THE BARNETGROUP LIMITED,"2,280,000.00",01/06/2018
Commercial,HRA,Consultants Fees,0060101813,P P C R ASSOCIATES LTD,432.68,05/06/2018
Commercial,HRA,Consultants Fees,0060104512,PRIORITY ESTATES PROJECT LTD,"1,536.70",07/06/2018
Commercial,HRA,Consultants Fees,0060102968,TROWERS & HAMLINS,"1,486.45",19/06/2018
Commercial,HRA,Consultants Fees,0060106688,TROWERS & HAMLINS,665.00,26/06/2018
Commercial,HRA,Building Repairs & Maintenance,0060104826,THE BARNETGROUP LIMITED,"629,166.67",01/06/2018
Commercial,HRA,Other Services,0060104796,THE BARNETGROUP LIMITED,"470,140.42",01/06/2018
Commercial,HRA,Other Services,0060104773,THE BARNETGROUP LIMITED,"953,444.00",01/06/2018
Commercial,HRA,Rates,0060104516,ROYAL AIR FORCE MUSEUM,"3,300.00",07/06/2018
Commercial,HRA,Private Contractors - Third Pa,80018203,REDACTED - PERSONAL DATA,"3,500.00",29/06/2018
Commercial,HRA,Consultants Fees,0060106534,ALLIES AND MORRRISON,"28,500.00",25/06/2018
Commercial,Parking & Infrastructure,Equipment and Materials Purcha,0020036430,AGGREGATE INDUSTRIES UK LTD T/A SPADEOAK,"2,155.86",19/06/2018
Commercial,Parking & Infrastructure,Equipment and Materials Purcha,0060100240,GREENHAM TRADING LIMITED,2.99,06/06/2018
Commercial,Parking & Infrastructure,Equipment and Materials Purcha,0060104218,GREENHAM TRADING LIMITED,6.35,07/06/2018
Commercial,Parking & Infrastructure,Equipment and Materials Purcha,0060104236,GREENHAM TRADING LIMITED,378.50,07/06/2018
Commercial,Parking & Infrastructure,Equipment and Materials Purcha,0060104463,GREENHAM TRADING LIMITED,"1,336.00",12/06/2018
Commercial,Parking & Infrastructure,Equipment and Materials Purcha,0060104829,GREENHAM TRADING LIMITED,21.53,14/06/2018
Commercial,Parking & Infrastructure,Equipment and Materials Purcha,0060106545,KLOECKNER METALS UK,830.00,22/06/2018
Commercial,Parking & Infrastructure,Equipment and Materials Purcha,0060104604,LAFARGE TARMAC TRADING LIMITED,107.22,07/06/2018
Commercial,Parking & Infrastructure,Equipment and Materials Purcha,0060104622,LAFARGE TARMAC TRADING LIMITED,111.35,12/06/2018
Commercial,Parking & Infrastructure,Equipment and Materials Purcha,0060106037,LAFARGE TARMAC TRADING LIMITED,191.77,15/06/2018
Commercial,Parking & Infrastructure,Equipment and Materials Purcha,0060106087,LAFARGE TARMAC TRADING LIMITED,140.22,15/06/2018
Commercial,Parking & Infrastructure,Equipment and Materials Purcha,0060104788,RENNICK UK LTD,291.40,08/06/2018
Commercial,Parking & Infrastructure,Equipment and Materials Purcha,0060104821,RENNICK UK LTD,601.65,08/06/2018
Commercial,Parking & Infrastructure,Equipment and Materials Purcha,0060105856,INSTARMAC GROUP PLC,"1,590.52",29/06/2018
Commercial,Parking & Infrastructure,Travelling Expenses,0060106314,LONDON BUSES SERVICES LIMITED,30.00,20/06/2018
Commercial,Parking & Infrastructure,Consultants Fees,0060105763,PROVING SERVICES LTD,"9,625.00",20/06/2018
Commercial,Parking & Infrastructure,Professional Services,0060106197,NSL LTD,"315,819.16",19/06/2018
Commercial,Parking & Infrastructure,Professional Services,0060106214,NSL LTD,"6,795.14",19/06/2018
Commercial,Parking & Infrastructure,Professional Services,0060106230,NSL LTD,"35,971.86",19/06/2018
Commercial,Parking & Infrastructure,Professional Services,0060106242,NSL LTD,"1,292,683.76",20/06/2018
Commercial,Parking & Infrastructure,Professional Services,0060106470,NSL LTD,"30,674.31",26/06/2018
Commercial,Parking & Infrastructure,Other Services,0060106455,NSL LTD,"2,338.80",25/06/2018
Commercial,Parking & Infrastructure,Other Services,0060105289,PARKEON LIMITED,"1,922.00",19/06/2018
Commercial,Parking & Infrastructure,Other Services,0060105339,PARKEON LIMITED,810.00,19/06/2018
Commercial,Parking & Infrastructure,Software Licences & Support,0010014113,NSL LTD,"8,527.24",29/06/2018
Commercial,Parking & Infrastructure,Software Licences & Support,0010014114,NSL LTD,"34,104.98",29/06/2018
Commercial,Parking & Infrastructure,Software Licences & Support,0060106435,NSL LTD,"35,964.52",25/06/2018
Commercial,Parking & Infrastructure,Software Licences & Support,0060106450,NSL LTD,"9,186.42",26/06/2018
Commercial,Parking & Infrastructure,Miscellaneous Expenses,0060105224,NSL LTD,"1,001.50",01/06/2018
Commercial,Parking & Infrastructure,Electricity,0010014098,BARNET LIGHTING SERVICES LTD,"440,496.63",28/06/2018
Commercial,Parking & Infrastructure,Electricity,0060104374,LIGHTING REALITY LIMITED,460.00,07/06/2018
Commercial,Public Health,Consultants Fees,0060105313,REDACTED - PERSONAL DATA,"1,562.24",14/06/2018
Commercial,Public Health,Other Services,80018179,MHEP,"9,353.00",29/06/2018
Commercial,Public Health,Health authorities - Third Par,0060107111,COLNEY HATCH LANE SURGERY,125.00,28/06/2018
Commercial,Public Health,Health authorities - Third Par,0060107197,CORNWALL HOUSE SURGERY,200.00,28/06/2018
Commercial,Public Health,Health authorities - Third Par,0060107070,EAST BARNET HEALTH CENTRE,350.00,28/06/2018
Commercial,Public Health,Health authorities - Third Par,0060107157,EAST FINCHLEY MEDICAL PRACTICE,150.00,28/06/2018
Commercial,Public Health,Health authorities - Third Par,0060107156,FRIERN BARNET MEDICAL CENTRE,250.00,28/06/2018
Commercial,Public Health,Health authorities - Third Par,0060107141,GREENFIELD MEDICAL CENTRE,150.00,28/06/2018
Commercial,Public Health,Health authorities - Third Par,0060107178,HEATHFIELDE MEDICAL CENTRE,950.00,28/06/2018
Commercial,Public Health,Health authorities - Third Par,0060107175,HENDON WAY SURGERY,350.00,28/06/2018
Commercial,Public Health,Health authorities - Third Par,0060107196,LANGSTONE WAY SURGERY,850.00,28/06/2018
Commercial,Public Health,Health authorities - Third Par,0060107076,MILLWAY MEDICAL PRACTICE,875.00,28/06/2018
Commercial,Public Health,Health authorities - Third Par,0060107162,MULBERRY MEDICAL PRACTICE,375.00,28/06/2018
Commercial,Public Health,Health authorities - Third Par,0060107132,PARKVIEW SURGERY,400.00,28/06/2018
Commercial,Public Health,Health authorities - Third Par,0060107082,PENNINE DRIVE SURGERY,"1,575.00",28/06/2018
Commercial,Public Health,Health authorities - Third Par,0060107123,PHGH DOCTORS,"1,250.00",28/06/2018
Commercial,Public Health,Health authorities - Third Par,0060107149,SQUIRES LANE MEDICAL PRACTICE,600.00,28/06/2018
Commercial,Public Health,Health authorities - Third Par,0060107138,ST ANDREWS MEDICAL PRACTICE,"1,475.00",28/06/2018
Commercial,Public Health,Health authorities - Third Par,0060107153,THE CLINIC,"2,075.00",28/06/2018
Commercial,Public Health,Health authorities - Third Par,0060107072,THE DERWENT MEDICAL CENTRE,825.00,28/06/2018
Commercial,Public Health,Health authorities - Third Par,0060107098,THE EVERGLADE MEDICAL PRACTICE,"1,750.00",28/06/2018
Commercial,Public Health,Health authorities - Third Par,0060107147,THE OLD COURTHOUSE SURGERY,500.00,28/06/2018
Commercial,Public Health,Health authorities - Third Par,0060107179,THE PHOENIX PRACTICE,775.00,28/06/2018
Commercial,Public Health,Health authorities - Third Par,0060107189,THE PRACTICE @ 188,500.00,28/06/2018
Commercial,Public Health,Health authorities - Third Par,0060107104,THE SPEEDWELL PRACTICE,"1,175.00",28/06/2018
Commercial,Public Health,Health authorities - Third Par,0060107075,THE TEMPLE FORTUNE HEALTH CENTRE,"1,675.00",28/06/2018
Commercial,Public Health,Health authorities - Third Par,0060107080,TORRINGTON PARK GROUP PRACTICE,300.00,28/06/2018
Commercial,Public Health,Health authorities - Third Par,0060107115,WATLING MEDICAL CENTRE,200.00,28/06/2018
Commercial,Public Health,Health authorities - Third Par,0060107122,WOODLANDS MEDICAL PRACTICE,100.00,28/06/2018
Commercial,Public Health,Health authorities - Third Par,0060105291,CENTRAL & NORTH WEST LONDON NHS FT,"34,500.00",08/06/2018
Commercial,Public Health,Health authorities - Third Par,0060106057,CENTRAL & NORTH WEST LONDON NHS FT,73.88,15/06/2018
Commercial,Public Health,Health authorities - Third Par,0060106065,CENTRAL & NORTH WEST LONDON NHS FT,"131,157.53",15/06/2018
Commercial,Public Health,Health authorities - Third Par,0060106121,CENTRAL LONDONCOMMUNITY HEALTHCARE,79.76,19/06/2018
Commercial,Public Health,Health authorities - Third Par,0060106145,CENTRAL LONDONCOMMUNITY HEALTHCARE,"3,121.00",19/06/2018
Commercial,Public Health,Health authorities - Third Par,0060106177,CENTRAL LONDONCOMMUNITY HEALTHCARE,"3,203.00",18/06/2018
Commercial,Public Health,Health authorities - Third Par,0060106181,CENTRAL LONDONCOMMUNITY HEALTHCARE,55.31,18/06/2018
Commercial,Public Health,Health authorities - Third Par,0060106021,CHELSEA & WESTMINSTER HOSPITAL NHS,"30,258.07",15/06/2018
Commercial,Public Health,Health authorities - Third Par,0060106043,CHELSEA & WESTMINSTER HOSPITAL NHS,"2,615.45",15/06/2018
Commercial,Public Health,Health authorities - Third Par,0060106046,CHELSEA & WESTMINSTER HOSPITAL NHS,96.54,15/06/2018
Commercial,Public Health,Health authorities - Third Par,0060106058,CHELSEA & WESTMINSTER HOSPITAL NHS,201.44,15/06/2018
Commercial,Public Health,Health authorities - Third Par,0060106078,CHELSEA & WESTMINSTER HOSPITAL NHS,156.57,15/06/2018
Commercial,Public Health,Health authorities - Third Par,0060106439,CHELSEA & WESTMINSTER HOSPITAL NHS,469.71,22/06/2018
Commercial,Public Health,Health authorities - Third Par,0060106449,CHELSEA & WESTMINSTER HOSPITAL NHS,"2,605.44",22/06/2018
Commercial,Public Health,Health authorities - Third Par,0060106452,CHELSEA & WESTMINSTER HOSPITAL NHS,"41,528.71",22/06/2018
Commercial,Public Health,Health authorities - Third Par,0060106436,GUY'S AND ST THOMAS' NHS FT,"18,272.00",21/06/2018
Commercial,Public Health,Health authorities - Third Par,0060105888,KING'S COLLEGE HOSPITAL NHS FOUNDATION T,274.00,15/06/2018
Commercial,Public Health,Health authorities - Third Par,0060105894,KING'S COLLEGE HOSPITAL NHS FOUNDATION T,274.00,15/06/2018
Commercial,Public Health,Health authorities - Third Par,0060105922,KING'S COLLEGE HOSPITAL NHS FOUNDATION T,274.00,15/06/2018
Commercial,Public Health,Health authorities - Third Par,0060106480,KING'S COLLEGE HOSPITAL NHS FOUNDATION T,46.00,21/06/2018
Commercial,Public Health,Health authorities - Third Par,0060106438,NOTTINGHAM UNIVERSITY HOSPITALS TRUST,100.84,22/06/2018
Commercial,Public Health,Health authorities - Third Par,0060106487,NOTTINGHAM UNIVERSITY HOSPITALS TRUST,25.46,22/06/2018
Commercial,Public Health,Health authorities - Third Par,0060106138,ROYAL LIVERPOOL & BROADGREEN UNIVERSITY,139.00,15/06/2018
Commercial,Public Health,Health authorities - Third Par,0060106475,TORRINGTON PARK GROUP PRACTICE,436.00,21/06/2018
Commercial,Public Health,Health authorities - Third Par,0060106128,UNIVERSITY HOSPITALS BIRMINGHAM,140.00,19/06/2018
Commercial,Public Health,Health authorities - Third Par,0060106163,UNIVERSITY HOSPITALS BIRMINGHAM,140.00,18/06/2018
Commercial,Public Health,Health authorities - Third Par,0060106147,UNIVERSITY HOSPITALS BRISTOL,279.17,18/06/2018
Commercial,Public Health,Health authorities - Third Par,0060106165,UNIVERSITY HOSPITALS BRISTOL,279.45,18/06/2018
Commercial,Public Health,Health authorities - Third Par,0060106421,UNIVERSITY HOSPITALS BRISTOL,102.26,22/06/2018
Commercial,Public Health,Other Establishments - Third P,0010014061,DEBIGNO LTD T/A PATHWAY ANALYTICS,437.50,11/06/2018
Commercial,Public Health,Ttl IT & Comms,0060106257,IDOX HEALTH LTD,"2,055.00",19/06/2018
Commercial,Public Health,Health authorities - Third Par,0060105886,WESTMINSTER DRUG PROJECT,"684,405.20",20/06/2018
Commercial,Public Health,Other Establishments - Third P,0080018216,JUST ENOUGH UK,"1,190.00",27/06/2018
Commercial,Regional Enterprise,Other Services,0060106328,CONWAY AECOM LTD,"21,165.24",19/06/2018
Commercial,Regional Enterprise,Advertising,0060101465,TMP (UK) LTD,170.00,12/06/2018
Commercial,Regional Enterprise,Advertising,0060104270,TMP (UK) LTD,99.00,01/06/2018
Commercial,Regional Enterprise,Advertising,0060104297,TMP (UK) LTD,90.00,01/06/2018
Commercial,Regional Enterprise,Advertising,0060104787,TMP (UK) LTD,90.00,19/06/2018
Commercial,Regional Enterprise,Advertising,0060105199,TMP (UK) LTD,278.00,19/06/2018
Commercial,Regional Enterprise,Advertising,0060105206,TMP (UK) LTD,179.00,19/06/2018
Commercial,Regional Enterprise,Advertising,0060105216,TMP (UK) LTD,296.00,19/06/2018
Commercial,Regional Enterprise,Advertising,0060105217,TMP (UK) LTD,260.00,19/06/2018
Commercial,Regional Enterprise,Advertising,0060105230,TMP (UK) LTD,260.00,19/06/2018
Commercial,Regional Enterprise,Advertising,0060105259,TMP (UK) LTD,296.00,19/06/2018
Commercial,Regional Enterprise,Advertising,0060105268,TMP (UK) LTD,260.00,19/06/2018
Commercial,Regional Enterprise,Advertising,0060105270,TMP (UK) LTD,161.00,19/06/2018
Commercial,Regional Enterprise,Advertising,0060105997,TMP (UK) LTD,170.00,14/06/2018
Commercial,Regional Enterprise,Equipment and Materials Purcha,0060106307,RM COUNTRYSIDE SERVICES LTD,708.00,19/06/2018
Commercial,Regional Enterprise,Other Services,0060106280,RM COUNTRYSIDE SERVICES LTD,"3,228.00",19/06/2018
Commercial,Regional Enterprise,Advertising,0060103854,TMP (UK) LTD,610.50,01/06/2018
Commercial,Regional Enterprise,Other Services,0060106566,CONWAY AECOM LTD,13.62,28/06/2018
Commercial,Regional Enterprise,Other Services,0060106570,CONWAY AECOM LTD,81.05,28/06/2018
Commercial,Regional Enterprise,Other Services,0060106583,CONWAY AECOM LTD,13.62,28/06/2018
Commercial,Regional Enterprise,Other Services,0060106585,CONWAY AECOM LTD,40.82,28/06/2018
Commercial,Regional Enterprise,Other Services,0060106601,CONWAY AECOM LTD,17.03,28/06/2018
Commercial,Regional Enterprise,Other Services,0060106610,CONWAY AECOM LTD,12.58,28/06/2018
Commercial,Regional Enterprise,Other Services,0060106621,CONWAY AECOM LTD,2.15,28/06/2018
Commercial,Regional Enterprise,Other Services,0060106624,CONWAY AECOM LTD,37.42,27/06/2018
Commercial,Regional Enterprise,Other Services,0060106625,CONWAY AECOM LTD,13.36,28/06/2018
Commercial,Regional Enterprise,Other Services,0060106631,CONWAY AECOM LTD,47.25,22/06/2018
Commercial,Regional Enterprise,Other Services,0060106637,CONWAY AECOM LTD,56.70,22/06/2018
Commercial,Regional Enterprise,Other Services,0060106705,CONWAY AECOM LTD,163.54,26/06/2018
Commercial,Regional Enterprise,Other Services,0060106706,CONWAY AECOM LTD,106.00,26/06/2018
Commercial,Regional Enterprise,Other Services,0060106721,CONWAY AECOM LTD,94.64,26/06/2018
Commercial,Regional Enterprise,Other Services,0060106726,CONWAY AECOM LTD,29.29,26/06/2018
Commercial,Regional Enterprise,Other Services,0060106730,CONWAY AECOM LTD,47.32,26/06/2018
Commercial,Regional Enterprise,Other Services,0060106738,CONWAY AECOM LTD,333.35,26/06/2018
Commercial,Regional Enterprise,Other Services,0060106745,CONWAY AECOM LTD,101.18,26/06/2018
Commercial,Regional Enterprise,Other Services,0060106749,CONWAY AECOM LTD,220.55,26/06/2018
Commercial,Regional Enterprise,Other Services,0060106781,CONWAY AECOM LTD,228.93,26/06/2018
Commercial,Regional Enterprise,Other Services,0060106804,CONWAY AECOM LTD,97.47,26/06/2018
Commercial,Regional Enterprise,Other Services,0060106810,CONWAY AECOM LTD,70.67,26/06/2018
Commercial,Regional Enterprise,Other Services,0060106814,CONWAY AECOM LTD,35.33,26/06/2018
Commercial,Regional Enterprise,Other Services,0060106822,CONWAY AECOM LTD,182.61,26/06/2018
Commercial,Regional Enterprise,Other Services,0060106830,CONWAY AECOM LTD,49.90,26/06/2018
Commercial,Regional Enterprise,Other Services,0060106837,CONWAY AECOM LTD,148.95,26/06/2018
Commercial,Regional Enterprise,Other Services,0060106841,CONWAY AECOM LTD,41.67,26/06/2018
Commercial,Regional Enterprise,Other Services,0060106850,CONWAY AECOM LTD,62.13,26/06/2018
Commercial,Regional Enterprise,Other Services,0060106875,CONWAY AECOM LTD,61.52,26/06/2018
Commercial,Regional Enterprise,Other Services,0060106254,CONWAY AECOM LTD,"2,073.96",20/06/2018
Commercial,Regional Enterprise,Other Services,0060106262,CONWAY AECOM LTD,"1,134.00",20/06/2018
Commercial,Regional Enterprise,Other Services,0060106271,CONWAY AECOM LTD,324.00,20/06/2018
Commercial,Regional Enterprise,Other Services,0060106290,CONWAY AECOM LTD,810.00,20/06/2018
Commercial,Regional Enterprise,Other Services,0060106301,CONWAY AECOM LTD,648.00,19/06/2018
Commercial,Regional Enterprise,Other Services,0060106320,CONWAY AECOM LTD,567.00,20/06/2018
Commercial,Regional Enterprise,Other Services,0060106326,CONWAY AECOM LTD,"1,765.63",19/06/2018
Commercial,Regional Enterprise,Other Services,0060106340,CONWAY AECOM LTD,"1,242.00",19/06/2018
Commercial,Regional Enterprise,Other Services,0060106343,CONWAY AECOM LTD,"2,837.25",19/06/2018
Commercial,Regional Enterprise,Other Services,0060106348,CONWAY AECOM LTD,567.00,20/06/2018
Commercial,Regional Enterprise,Other Services,0060106798,CONWAY AECOM LTD,557.04,26/06/2018
Commercial,Regional Enterprise,Other Services,0060106811,CONWAY AECOM LTD,888.73,26/06/2018
Commercial,Regional Enterprise,Other Services,0060106817,CONWAY AECOM LTD,727.95,26/06/2018
Commercial,Regional Enterprise,Other Services,0060106858,CONWAY AECOM LTD,933.68,27/06/2018
Commercial,Regional Enterprise,Building Repairs & Maintenance,0060106370,AMWELL CONSTRUCTION LTD,152.00,21/06/2018
Commercial,Regional Enterprise,Professional Services,0080017663,HUNTER & PARTNERS LTD,900.00,05/06/2018
Commercial,Regional Enterprise,Grant Payments,0080017984,DP BUILDERS DISABLED ADAPTATIONS,"9,984.00",21/06/2018
Commercial,Regional Enterprise,Grant Payments,0080017881,ECOLOGIC ENERGY,312.38,08/06/2018
Commercial,Regional Enterprise,Grant Payments,80017801,PRIMARY WINDOWS AND DOORS LTD,"2,250.00",06/06/2018
Commercial,Regional Enterprise,Grant Payments,80017855,WSW PROJECTS LTD,"7,218.00",08/06/2018
Commercial,Regional Enterprise,Grant Payments,80017987,MC PLUMBING & PROPERTY SERVICE,"2,546.25",18/06/2018
Commercial,Regional Enterprise,Grant Payments,0080017862,SOUTH HERTFORDSHIRE,189.00,08/06/2018
Commercial,Regional Enterprise,Grant Payments,0080018186,SOUTH HERTFORDSHIRE,94.50,29/06/2018
Commercial,Regional Enterprise,Professional Services,80017877,HMRC SHIPLEY,100.00,20/06/2018
Commercial,Regional Enterprise,RE Services Contract Payment,0010014099,RE (REGIONAL ENTERPRISE) LIMITED,"574,932.91",28/06/2018
Commercial,Regional Enterprise,RE Services Contract Payment,0010014100,RE (REGIONAL ENTERPRISE) LIMITED,"584,536.74",28/06/2018
Commercial,Regional Enterprise,RE Services Contract Payment,0010014105,RE (REGIONAL ENTERPRISE) LIMITED,"(455,343.90)",28/06/2018
Commercial,Regional Enterprise,RE Services Contract Payment,0060106371,RE (REGIONAL ENTERPRISE) LIMITED,"621,186.11",28/06/2018
Commercial,Regional Enterprise,RE Services Contract Payment,0060106387,RE (REGIONAL ENTERPRISE) LIMITED,"568,962.98",28/06/2018
Commercial,Regional Enterprise,RE Services Contract Payment,0060106400,RE (REGIONAL ENTERPRISE) LIMITED,"503,311.73",28/06/2018
Commercial,Regional Enterprise,Grant Payments,0080017777,AMWELL CONSTRUCTION LTD,"5,754.00",06/06/2018
Commercial,Regional Enterprise,Grant Payments,0080017797,AMWELL CONSTRUCTION LTD,"4,042.00",06/06/2018
Commercial,Regional Enterprise,Grant Payments,0080018142,AMWELL CONSTRUCTION LTD,"20,112.00",20/06/2018
Commercial,Regional Enterprise,Grant Payments,0080017771,ARTHUR J. FERRYMAN ASSOCIATES,957.60,06/06/2018
Commercial,Regional Enterprise,Grant Payments,0080017772,ARTHUR J. FERRYMAN ASSOCIATES,"1,979.60",06/06/2018
Commercial,Regional Enterprise,Grant Payments,0080017909,ARTHUR J. FERRYMAN ASSOCIATES,676.20,13/06/2018
Commercial,Regional Enterprise,Grant Payments,0080018094,ARTHUR J. FERRYMAN ASSOCIATES,240.00,21/06/2018
Commercial,Regional Enterprise,Grant Payments,0080018095,ARTHUR J. FERRYMAN ASSOCIATES,151.20,20/06/2018
Commercial,Regional Enterprise,Grant Payments,0080018279,ARTHUR J. FERRYMAN ASSOCIATES,957.60,29/06/2018
Commercial,Regional Enterprise,Grant Payments,0080017807,DOLPHIN MOBILITY LTD.,"2,385.00",06/06/2018
Commercial,Regional Enterprise,Grant Payments,0080018011,DOLPHIN MOBILITY LTD.,"4,716.00",18/06/2018
Commercial,Regional Enterprise,Grant Payments,0080018141,DOLPHIN MOBILITY LTD.,"3,395.00",20/06/2018
Commercial,Regional Enterprise,Grant Payments,0080017693,DP BUILDERS DISABLED ADAPTATIONS,"13,112.50",07/06/2018
Commercial,Regional Enterprise,Grant Payments,0080017694,DP BUILDERS DISABLED ADAPTATIONS,"13,112.50",07/06/2018
Commercial,Regional Enterprise,Grant Payments,0080017800,G J PULHAM,"12,081.00",06/06/2018
Commercial,Regional Enterprise,Grant Payments,0080017837,G J PULHAM,"12,731.00",07/06/2018
Commercial,Regional Enterprise,Grant Payments,0080018198,G J PULHAM,"10,959.00",29/06/2018
Commercial,Regional Enterprise,Grant Payments,0080018184,H D PROPERTY SERVICES LTD,"4,450.00",29/06/2018
Commercial,Regional Enterprise,Grant Payments,80017833,PCBY VOICE LTD,"18,681.00",07/06/2018
Commercial,Regional Enterprise,Grant Payments,80017894,REDACTED - PERSONAL DATA,"6,420.00",13/06/2018
Commercial,Regional Enterprise,Grant Payments,80017952,DOMESTIC LIFT SERVICES,"4,545.00",14/06/2018
Commercial,Regional Enterprise,Grant Payments,80018161,R82 UK LTD,"14,987.76",29/06/2018
Commercial,Regional Enterprise,Grant Payments,0080018096,SOUTH HERTFORDSHIRE,"1,260.00",20/06/2018
Commercial,Regional Enterprise,Grant Payments,0080018233,SOUTH HERTFORDSHIRE,"1,679.60",29/06/2018
Commercial,Regional Enterprise,Grant Payments,0080017954,STANNAH STAIRLIFTS LTD,"5,150.00",14/06/2018
Commercial,Regional Enterprise,Grant Payments,0080017969,STANNAH STAIRLIFTS LTD,"14,212.00",14/06/2018
Commercial,Regional Enterprise,Grant Payments,0080018125,STANNAH STAIRLIFTS LTD,150.00,20/06/2018
Commercial,Regional Enterprise,Grant Payments,0080017301,ARTHUR J. FERRYMAN ASSOCIATES,407.28,05/06/2018
Commercial,Regional Enterprise,Grant Payments,80017306,P CLARK BUILDERS,"3,394.00",05/06/2018
Commercial,Regional Enterprise,Other Services,0060106862,CONWAY AECOM LTD,"2,704.82",26/06/2018
Commercial,Regional Enterprise,Other Services,0010014089,CONWAY AECOM LTD,"80,000.00",19/06/2018
Commercial,Regional Enterprise,Other Services,0060106578,CONWAY AECOM LTD,683.52,22/06/2018
Commercial,Regional Enterprise,Other Services,0060106352,CONWAY AECOM LTD,"10,000.00",19/06/2018
Commercial,Regional Enterprise,Other Services,0060106274,CONWAY AECOM LTD,"1,852.97",19/06/2018
Commercial,Regional Enterprise,Other Services,0060106330,CONWAY AECOM LTD,"142,044.99",28/06/2018
Commercial,Regional Enterprise,Other Services,0060106333,CONWAY AECOM LTD,"110,833.89",28/06/2018
Commercial,Regional Enterprise,Other Services,0060106754,CONWAY AECOM LTD,"76,127.07",26/06/2018
Commercial,Regional Enterprise,Other Services,0060106805,CONWAY AECOM LTD,"74,283.87",26/06/2018
Commercial,Regional Enterprise,Other Services,0060107011,CONWAY AECOM LTD,"35,213.13",28/06/2018
Commercial,Regional Enterprise,Other Services,0060106321,CONWAY AECOM LTD,"4,792.22",21/06/2018
Commercial,Regional Enterprise,Other Services,0060106729,CONWAY AECOM LTD,"12,858.04",26/06/2018
Commercial,Regional Enterprise,Other Services,0060105389,CONWAY AECOM LTD,55.14,22/06/2018
Commercial,Regional Enterprise,Other Services,0060105391,CONWAY AECOM LTD,399.18,08/06/2018
Commercial,Regional Enterprise,Other Services,0060105395,CONWAY AECOM LTD,123.04,22/06/2018
Commercial,Regional Enterprise,Other Services,0060105406,CONWAY AECOM LTD,319.20,22/06/2018
Commercial,Regional Enterprise,Other Services,0060105434,CONWAY AECOM LTD,136.52,22/06/2018
Commercial,Regional Enterprise,Other Services,0060105447,CONWAY AECOM LTD,93.18,22/06/2018
Commercial,Regional Enterprise,Other Services,0060105465,CONWAY AECOM LTD,319.20,22/06/2018
Commercial,Regional Enterprise,Other Services,0060105480,CONWAY AECOM LTD,87.97,05/06/2018
Commercial,Regional Enterprise,Other Services,0060105482,CONWAY AECOM LTD,84.00,05/06/2018
Commercial,Regional Enterprise,Other Services,0060105483,CONWAY AECOM LTD,117.13,05/06/2018
Commercial,Regional Enterprise,Other Services,0060105484,CONWAY AECOM LTD,73.35,05/06/2018
Commercial,Regional Enterprise,Other Services,0060105486,CONWAY AECOM LTD,106.34,05/06/2018
Commercial,Regional Enterprise,Other Services,0060105487,CONWAY AECOM LTD,52.29,05/06/2018
Commercial,Regional Enterprise,Other Services,0060105488,CONWAY AECOM LTD,52.29,05/06/2018
Commercial,Regional Enterprise,Other Services,0060105489,CONWAY AECOM LTD,46.60,05/06/2018
Commercial,Regional Enterprise,Other Services,0060105493,CONWAY AECOM LTD,41.15,05/06/2018
Commercial,Regional Enterprise,Other Services,0060105494,CONWAY AECOM LTD,62.61,05/06/2018
Commercial,Regional Enterprise,Other Services,0060105495,CONWAY AECOM LTD,500.88,05/06/2018
Commercial,Regional Enterprise,Other Services,0060105496,CONWAY AECOM LTD,62.61,05/06/2018
Commercial,Regional Enterprise,Other Services,0060105498,CONWAY AECOM LTD,93.75,05/06/2018
Commercial,Regional Enterprise,Other Services,0060105499,CONWAY AECOM LTD,125.22,05/06/2018
Commercial,Regional Enterprise,Other Services,0060105500,CONWAY AECOM LTD,62.13,05/06/2018
Commercial,Regional Enterprise,Other Services,0060105501,CONWAY AECOM LTD,339.46,05/06/2018
Commercial,Regional Enterprise,Other Services,0060106701,CONWAY AECOM LTD,45.87,26/06/2018
Commercial,Regional Enterprise,Other Services,0060106702,CONWAY AECOM LTD,64.45,26/06/2018
Commercial,Regional Enterprise,Other Services,0060106704,CONWAY AECOM LTD,152.06,26/06/2018
Commercial,Regional Enterprise,Other Services,0060106708,CONWAY AECOM LTD,52.29,26/06/2018
Commercial,Regional Enterprise,Other Services,0060106709,CONWAY AECOM LTD,59.62,26/06/2018
Commercial,Regional Enterprise,Other Services,0060106710,CONWAY AECOM LTD,116.83,26/06/2018
Commercial,Regional Enterprise,Other Services,0060106714,CONWAY AECOM LTD,49.90,26/06/2018
Commercial,Regional Enterprise,Other Services,0060106715,CONWAY AECOM LTD,52.29,26/06/2018
Commercial,Regional Enterprise,Other Services,0060106716,CONWAY AECOM LTD,64.45,26/06/2018
Commercial,Regional Enterprise,Other Services,0060106717,CONWAY AECOM LTD,233.66,26/06/2018
Commercial,Regional Enterprise,Other Services,0060106719,CONWAY AECOM LTD,75.33,26/06/2018
Commercial,Regional Enterprise,Other Services,0060106720,CONWAY AECOM LTD,152.06,26/06/2018
Commercial,Regional Enterprise,Other Services,0060106723,CONWAY AECOM LTD,50.69,26/06/2018
Commercial,Regional Enterprise,Other Services,0060106724,CONWAY AECOM LTD,55.14,26/06/2018
Commercial,Regional Enterprise,Other Services,0060106725,CONWAY AECOM LTD,238.73,26/06/2018
Commercial,Regional Enterprise,Other Services,0060106727,CONWAY AECOM LTD,442.90,26/06/2018
Commercial,Regional Enterprise,Other Services,0060106731,CONWAY AECOM LTD,67.66,26/06/2018
Commercial,Regional Enterprise,Other Services,0060106732,CONWAY AECOM LTD,50.69,26/06/2018
Commercial,Regional Enterprise,Other Services,0060106734,CONWAY AECOM LTD,52.29,26/06/2018
Commercial,Regional Enterprise,Other Services,0060106735,CONWAY AECOM LTD,81.39,26/06/2018
Commercial,Regional Enterprise,Other Services,0060106736,CONWAY AECOM LTD,46.04,26/06/2018
Commercial,Regional Enterprise,Other Services,0060106737,CONWAY AECOM LTD,151.88,26/06/2018
Commercial,Regional Enterprise,Other Services,0060106740,CONWAY AECOM LTD,297.61,26/06/2018
Commercial,Regional Enterprise,Other Services,0060106742,CONWAY AECOM LTD,50.69,26/06/2018
Commercial,Regional Enterprise,Other Services,0060106743,CONWAY AECOM LTD,46.04,26/06/2018
Commercial,Regional Enterprise,Other Services,0060106744,CONWAY AECOM LTD,47.32,26/06/2018
Commercial,Regional Enterprise,Other Services,0060106747,CONWAY AECOM LTD,81.39,26/06/2018
Commercial,Regional Enterprise,Other Services,0060106752,CONWAY AECOM LTD,64.45,26/06/2018
Commercial,Regional Enterprise,Other Services,0060106755,CONWAY AECOM LTD,55.14,26/06/2018
Commercial,Regional Enterprise,Other Services,0060106758,CONWAY AECOM LTD,47.32,26/06/2018
Commercial,Regional Enterprise,Other Services,0060106759,CONWAY AECOM LTD,35.33,26/06/2018
Commercial,Regional Enterprise,Other Services,0060106760,CONWAY AECOM LTD,64.45,26/06/2018
Commercial,Regional Enterprise,Other Services,0060106762,CONWAY AECOM LTD,49.90,26/06/2018
Commercial,Regional Enterprise,Other Services,0060106764,CONWAY AECOM LTD,129.10,26/06/2018
Commercial,Regional Enterprise,Other Services,0060106766,CONWAY AECOM LTD,58.41,26/06/2018
Commercial,Regional Enterprise,Other Services,0060106767,CONWAY AECOM LTD,39.04,26/06/2018
Commercial,Regional Enterprise,Other Services,0060106769,CONWAY AECOM LTD,45.87,26/06/2018
Commercial,Regional Enterprise,Other Services,0060106773,CONWAY AECOM LTD,81.39,26/06/2018
Commercial,Regional Enterprise,Other Services,0060106774,CONWAY AECOM LTD,91.74,26/06/2018
Commercial,Regional Enterprise,Other Services,0060106775,CONWAY AECOM LTD,350.49,26/06/2018
Commercial,Regional Enterprise,Other Services,0060106780,CONWAY AECOM LTD,59.62,26/06/2018
Commercial,Regional Enterprise,Other Services,0060106783,CONWAY AECOM LTD,45.87,26/06/2018
Commercial,Regional Enterprise,Other Services,0060106784,CONWAY AECOM LTD,81.39,26/06/2018
Commercial,Regional Enterprise,Other Services,0060106788,CONWAY AECOM LTD,129.10,26/06/2018
Commercial,Regional Enterprise,Other Services,0060106789,CONWAY AECOM LTD,39.04,26/06/2018
Commercial,Regional Enterprise,Other Services,0060106791,CONWAY AECOM LTD,238.73,26/06/2018
Commercial,Regional Enterprise,Other Services,0060106792,CONWAY AECOM LTD,64.55,26/06/2018
Commercial,Regional Enterprise,Other Services,0060106794,CONWAY AECOM LTD,59.62,26/06/2018
Commercial,Regional Enterprise,Other Services,0060106796,CONWAY AECOM LTD,50.69,26/06/2018
Commercial,Regional Enterprise,Other Services,0060106797,CONWAY AECOM LTD,314.09,26/06/2018
Commercial,Regional Enterprise,Other Services,0060106799,CONWAY AECOM LTD,62.61,26/06/2018
Commercial,Regional Enterprise,Other Services,0060106800,CONWAY AECOM LTD,39.04,26/06/2018
Commercial,Regional Enterprise,Other Services,0060106801,CONWAY AECOM LTD,125.22,26/06/2018
Commercial,Regional Enterprise,Other Services,0060106803,CONWAY AECOM LTD,47.32,26/06/2018
Commercial,Regional Enterprise,Other Services,0060106806,CONWAY AECOM LTD,47.32,26/06/2018
Commercial,Regional Enterprise,Other Services,0060106807,CONWAY AECOM LTD,61.52,26/06/2018
Commercial,Regional Enterprise,Other Services,0060106809,CONWAY AECOM LTD,129.10,26/06/2018
Commercial,Regional Enterprise,Other Services,0060106812,CONWAY AECOM LTD,59.62,26/06/2018
Commercial,Regional Enterprise,Other Services,0060106813,CONWAY AECOM LTD,116.83,26/06/2018
Commercial,Regional Enterprise,Other Services,0060106818,CONWAY AECOM LTD,116.83,26/06/2018
Commercial,Regional Enterprise,Other Services,0060106819,CONWAY AECOM LTD,32.36,26/06/2018
Commercial,Regional Enterprise,Other Services,0060106820,CONWAY AECOM LTD,59.62,26/06/2018
Commercial,Regional Enterprise,Other Services,0060106821,CONWAY AECOM LTD,59.62,26/06/2018
Commercial,Regional Enterprise,Other Services,0060106823,CONWAY AECOM LTD,59.62,26/06/2018
Commercial,Regional Enterprise,Other Services,0060106824,CONWAY AECOM LTD,39.04,26/06/2018
Commercial,Regional Enterprise,Other Services,0060106825,CONWAY AECOM LTD,233.66,26/06/2018
Commercial,Regional Enterprise,Other Services,0060106826,CONWAY AECOM LTD,75.94,26/06/2018
Commercial,Regional Enterprise,Other Services,0060106827,CONWAY AECOM LTD,64.45,26/06/2018
Commercial,Regional Enterprise,Other Services,0060106828,CONWAY AECOM LTD,225.30,26/06/2018
Commercial,Regional Enterprise,Other Services,0060106829,CONWAY AECOM LTD,246.22,26/06/2018
Commercial,Regional Enterprise,Other Services,0060106831,CONWAY AECOM LTD,59.62,26/06/2018
Commercial,Regional Enterprise,Other Services,0060106832,CONWAY AECOM LTD,123.04,26/06/2018
Commercial,Regional Enterprise,Other Services,0060106833,CONWAY AECOM LTD,58.41,26/06/2018
Commercial,Regional Enterprise,Other Services,0060106834,CONWAY AECOM LTD,59.62,26/06/2018
Commercial,Regional Enterprise,Other Services,0060106835,CONWAY AECOM LTD,50.69,26/06/2018
Commercial,Regional Enterprise,Other Services,0060106836,CONWAY AECOM LTD,58.41,26/06/2018
Commercial,Regional Enterprise,Other Services,0060106838,CONWAY AECOM LTD,38.08,26/06/2018
Commercial,Regional Enterprise,Other Services,0060106839,CONWAY AECOM LTD,62.61,26/06/2018
Commercial,Regional Enterprise,Other Services,0060106840,CONWAY AECOM LTD,35.33,26/06/2018
Commercial,Regional Enterprise,Other Services,0060106842,CONWAY AECOM LTD,58.41,26/06/2018
Commercial,Regional Enterprise,Other Services,0060106843,CONWAY AECOM LTD,111.30,26/06/2018
Commercial,Regional Enterprise,Other Services,0060106844,CONWAY AECOM LTD,45.87,26/06/2018
Commercial,Regional Enterprise,Other Services,0060106846,CONWAY AECOM LTD,101.37,26/06/2018
Commercial,Regional Enterprise,Other Services,0060106847,CONWAY AECOM LTD,162.79,26/06/2018
Commercial,Regional Enterprise,Other Services,0060106848,CONWAY AECOM LTD,64.45,26/06/2018
Commercial,Regional Enterprise,Other Services,0060106849,CONWAY AECOM LTD,58.41,26/06/2018
Commercial,Regional Enterprise,Other Services,0060106851,CONWAY AECOM LTD,264.51,26/06/2018
Commercial,Regional Enterprise,Other Services,0060106852,CONWAY AECOM LTD,55.14,26/06/2018
Commercial,Regional Enterprise,Other Services,0060106853,CONWAY AECOM LTD,45.87,26/06/2018
Commercial,Regional Enterprise,Other Services,0060106854,CONWAY AECOM LTD,50.69,26/06/2018
Commercial,Regional Enterprise,Other Services,0060106856,CONWAY AECOM LTD,430.62,26/06/2018
Commercial,Regional Enterprise,Other Services,0060106857,CONWAY AECOM LTD,815.07,26/06/2018
Commercial,Regional Enterprise,Other Services,0060106859,CONWAY AECOM LTD,64.45,26/06/2018
Commercial,Regional Enterprise,Other Services,0060106860,CONWAY AECOM LTD,139.14,26/06/2018
Commercial,Regional Enterprise,Other Services,0060106861,CONWAY AECOM LTD,47.32,26/06/2018
Commercial,Regional Enterprise,Other Services,0060106863,CONWAY AECOM LTD,35.33,26/06/2018
Commercial,Regional Enterprise,Other Services,0060106865,CONWAY AECOM LTD,182.61,26/06/2018
Commercial,Regional Enterprise,Other Services,0060106866,CONWAY AECOM LTD,101.02,26/06/2018
Commercial,Regional Enterprise,Other Services,0060106868,CONWAY AECOM LTD,104.58,26/06/2018
Commercial,Regional Enterprise,Other Services,0060106869,CONWAY AECOM LTD,62.13,26/06/2018
Commercial,Regional Enterprise,Other Services,0060106870,CONWAY AECOM LTD,73.35,26/06/2018
Commercial,Regional Enterprise,Other Services,0060106872,CONWAY AECOM LTD,52.29,26/06/2018
Commercial,Regional Enterprise,Other Services,0060106873,CONWAY AECOM LTD,59.62,26/06/2018
Commercial,Regional Enterprise,Other Services,0060106874,CONWAY AECOM LTD,39.04,26/06/2018
Commercial,Regional Enterprise,Other Services,0060106878,CONWAY AECOM LTD,54.17,27/06/2018
Commercial,Regional Enterprise,Other Services,0060106885,CONWAY AECOM LTD,47.32,27/06/2018
Commercial,Regional Enterprise,Other Services,0060106886,CONWAY AECOM LTD,38.08,27/06/2018
Commercial,Regional Enterprise,Other Services,0060106887,CONWAY AECOM LTD,350.49,27/06/2018
Commercial,Regional Enterprise,Other Services,0060106888,CONWAY AECOM LTD,41.15,27/06/2018
Commercial,Regional Enterprise,Other Services,0060106894,CONWAY AECOM LTD,47.32,27/06/2018
Commercial,Regional Enterprise,Other Services,0060106895,CONWAY AECOM LTD,62.61,27/06/2018
Commercial,Regional Enterprise,Other Services,0060106899,CONWAY AECOM LTD,110.18,27/06/2018
Commercial,Regional Enterprise,Other Services,0060106900,CONWAY AECOM LTD,116.83,27/06/2018
Commercial,Regional Enterprise,Other Services,0060106901,CONWAY AECOM LTD,175.63,27/06/2018
Commercial,Regional Enterprise,Other Services,0060106902,CONWAY AECOM LTD,41.67,27/06/2018
Commercial,Regional Enterprise,Other Services,0060106903,CONWAY AECOM LTD,66.49,27/06/2018
Commercial,Regional Enterprise,Other Services,0060106906,CONWAY AECOM LTD,47.32,27/06/2018
Commercial,Regional Enterprise,Other Services,0060106907,CONWAY AECOM LTD,47.32,27/06/2018
Commercial,Regional Enterprise,Other Services,0060106908,CONWAY AECOM LTD,853.91,27/06/2018
Commercial,Regional Enterprise,Other Services,0060106909,CONWAY AECOM LTD,31.07,27/06/2018
Commercial,Regional Enterprise,Other Services,0060106910,CONWAY AECOM LTD,355.37,27/06/2018
Commercial,Regional Enterprise,Other Services,0060106911,CONWAY AECOM LTD,47.32,27/06/2018
Commercial,Regional Enterprise,Other Services,0060106913,CONWAY AECOM LTD,331.25,27/06/2018
Commercial,Regional Enterprise,Other Services,0060106915,CONWAY AECOM LTD,62.61,27/06/2018
Commercial,Regional Enterprise,Other Services,0060106920,CONWAY AECOM LTD,116.83,27/06/2018
Commercial,Regional Enterprise,Other Services,0060106921,CONWAY AECOM LTD,860.17,27/06/2018
Commercial,Regional Enterprise,Other Services,0060106924,CONWAY AECOM LTD,35.33,27/06/2018
Commercial,Regional Enterprise,Other Services,0060106926,CONWAY AECOM LTD,209.16,27/06/2018
Commercial,Regional Enterprise,Other Services,0060106931,CONWAY AECOM LTD,64.87,27/06/2018
Commercial,Regional Enterprise,Other Services,0060106933,CONWAY AECOM LTD,76.14,27/06/2018
Commercial,Regional Enterprise,Other Services,0060106935,CONWAY AECOM LTD,58.54,27/06/2018
Commercial,Regional Enterprise,Other Services,0060106936,CONWAY AECOM LTD,129.10,27/06/2018
Commercial,Regional Enterprise,Other Services,0060106937,CONWAY AECOM LTD,47.32,27/06/2018
Commercial,Regional Enterprise,Other Services,0060106938,CONWAY AECOM LTD,355.27,27/06/2018
Commercial,Regional Enterprise,Other Services,0060106940,CONWAY AECOM LTD,212.95,27/06/2018
Commercial,Regional Enterprise,Other Services,0060106941,CONWAY AECOM LTD,183.64,27/06/2018
Commercial,Regional Enterprise,Other Services,0060106944,CONWAY AECOM LTD,89.47,27/06/2018
Commercial,Regional Enterprise,Other Services,0060106946,CONWAY AECOM LTD,52.29,27/06/2018
Commercial,Regional Enterprise,Other Services,0060106947,CONWAY AECOM LTD,187.83,27/06/2018
Commercial,Regional Enterprise,Other Services,0060106948,CONWAY AECOM LTD,968.20,27/06/2018
Commercial,Regional Enterprise,Other Services,0060106949,CONWAY AECOM LTD,104.58,27/06/2018
Commercial,Regional Enterprise,Other Services,0060106952,CONWAY AECOM LTD,242.32,27/06/2018
Commercial,Regional Enterprise,Other Services,0060106954,CONWAY AECOM LTD,87.97,27/06/2018
Commercial,Regional Enterprise,Other Services,0060106955,CONWAY AECOM LTD,92.24,27/06/2018
Commercial,Regional Enterprise,Other Services,0060106962,CONWAY AECOM LTD,47.32,27/06/2018
Commercial,Regional Enterprise,Other Services,0060106968,CONWAY AECOM LTD,62.61,27/06/2018
Commercial,Regional Enterprise,Other Services,0060106971,CONWAY AECOM LTD,125.22,27/06/2018
Commercial,Regional Enterprise,Other Services,0060106973,CONWAY AECOM LTD,23.68,27/06/2018
Commercial,Regional Enterprise,Other Services,0060106976,CONWAY AECOM LTD,263.90,27/06/2018
Commercial,Regional Enterprise,Other Services,0060106977,CONWAY AECOM LTD,168.97,27/06/2018
Commercial,Regional Enterprise,Other Services,0060106978,CONWAY AECOM LTD,125.22,27/06/2018
Commercial,Regional Enterprise,Other Services,0060106979,CONWAY AECOM LTD,47.32,27/06/2018
Commercial,Regional Enterprise,Other Services,0060106982,CONWAY AECOM LTD,21.70,27/06/2018
Commercial,Regional Enterprise,Other Services,0060106983,CONWAY AECOM LTD,26.15,27/06/2018
Commercial,Regional Enterprise,Other Services,0060106985,CONWAY AECOM LTD,62.61,27/06/2018
Commercial,Regional Enterprise,Other Services,0060106988,CONWAY AECOM LTD,62.61,27/06/2018
Commercial,Regional Enterprise,Other Services,0060106990,CONWAY AECOM LTD,175.24,27/06/2018
Commercial,Regional Enterprise,Other Services,0060106992,CONWAY AECOM LTD,87.97,27/06/2018
Commercial,Regional Enterprise,Other Services,0060106994,CONWAY AECOM LTD,263.90,27/06/2018
Commercial,Regional Enterprise,Other Services,0060106995,CONWAY AECOM LTD,119.95,27/06/2018
Commercial,Regional Enterprise,Other Services,0060106999,CONWAY AECOM LTD,62.61,27/06/2018
Commercial,Regional Enterprise,Other Services,0060107001,CONWAY AECOM LTD,180.50,27/06/2018
Commercial,Regional Enterprise,Other Services,0060107007,CONWAY AECOM LTD,573.45,27/06/2018
Commercial,Regional Enterprise,Other Services,0060107008,CONWAY AECOM LTD,29.28,27/06/2018
Commercial,Regional Enterprise,Other Services,0060107009,CONWAY AECOM LTD,19.72,27/06/2018
Commercial,Regional Enterprise,Other Services,0060107015,CONWAY AECOM LTD,38.08,27/06/2018
Commercial,Regional Enterprise,Other Services,0060107020,CONWAY AECOM LTD,104.58,27/06/2018
Commercial,Regional Enterprise,Other Services,0060107026,CONWAY AECOM LTD,35.33,27/06/2018
Commercial,Regional Enterprise,Other Services,0060107029,CONWAY AECOM LTD,61.52,27/06/2018
Commercial,Regional Enterprise,Other Services,0060107030,CONWAY AECOM LTD,58.41,27/06/2018
Commercial,Regional Enterprise,Other Services,0060107032,CONWAY AECOM LTD,29.28,27/06/2018
Commercial,Regional Enterprise,Other Services,0060107033,CONWAY AECOM LTD,355.37,27/06/2018
Commercial,Regional Enterprise,Other Services,0060107035,CONWAY AECOM LTD,41.15,27/06/2018
Commercial,Regional Enterprise,Other Services,0060107041,CONWAY AECOM LTD,47.32,27/06/2018
Commercial,Regional Enterprise,Other Services,0060107045,CONWAY AECOM LTD,263.90,27/06/2018
Commercial,Regional Enterprise,Other Services,0060107046,CONWAY AECOM LTD,47.32,27/06/2018
Commercial,Regional Enterprise,Other Services,0060107048,CONWAY AECOM LTD,47.32,27/06/2018
Commercial,Regional Enterprise,Other Services,0060107051,CONWAY AECOM LTD,52.29,27/06/2018
Commercial,Regional Enterprise,Other Services,0060107052,CONWAY AECOM LTD,26.15,27/06/2018
Commercial,Regional Enterprise,Other Services,0060107053,CONWAY AECOM LTD,52.29,27/06/2018
Commercial,Regional Enterprise,Other Services,0060107054,CONWAY AECOM LTD,410.36,27/06/2018
Commercial,Regional Enterprise,Other Services,0060107055,CONWAY AECOM LTD,375.66,27/06/2018
Commercial,Regional Enterprise,Other Services,0060107061,CONWAY AECOM LTD,38.08,27/06/2018
Commercial,Regional Enterprise,Other Services,0060107062,CONWAY AECOM LTD,29.28,27/06/2018
Commercial,Regional Enterprise,Other Services,0060107063,CONWAY AECOM LTD,244.18,27/06/2018
Commercial,Regional Enterprise,Other Services,0060106107,CYCLE CONFIDENT LTD,"24,759.26",28/06/2018
Commercial,Regional Enterprise,Other Services,0060106152,ROAD SAFETY GB,350.00,15/06/2018
Commercial,Regional Enterprise,Equipment and Materials Purcha,0060106347,CONWAY AECOM LTD,"31,033.03",19/06/2018
Commercial,Regional Enterprise,Other Services,0060104994,CENTRAL SURVEYS LIMITED,"3,000.00",13/06/2018
Commercial,Regional Enterprise,Other Services,0060106259,CONWAY AECOM LTD,"15,018.84",19/06/2018
Commercial,Regional Enterprise,Other Services,0060106279,CONWAY AECOM LTD,"7,161.46",19/06/2018
Commercial,Regional Enterprise,Other Services,0060106366,CONWAY AECOM LTD,"7,505.39",19/06/2018
Commercial,Regional Enterprise,Other Services,0060106265,CONWAY AECOM LTD,"4,998.10",28/06/2018
Commercial,Regional Enterprise,Other Services,0060106270,CONWAY AECOM LTD,"37,458.89",28/06/2018
Commercial,Regional Enterprise,Other Services,0060106281,CONWAY AECOM LTD,"61,161.60",28/06/2018
Commercial,Regional Enterprise,Other Services,0060106300,CONWAY AECOM LTD,"39,200.00",28/06/2018
Commercial,Regional Enterprise,Other Services,0060106317,CONWAY AECOM LTD,"12,533.10",28/06/2018
Commercial,Regional Enterprise,Other Services,0060106335,CONWAY AECOM LTD,"38,937.60",28/06/2018
Commercial,Regional Enterprise,Other Services,0060106339,CONWAY AECOM LTD,"54,050.00",28/06/2018
Commercial,Regional Enterprise,Venue Hire,0080018213,CLAREMONT FREE CHURCH,270.00,29/06/2018
Commercial,Regional Enterprise,Consultants Fees,0060104976,NETWORK RAIL INFRASTRUCTURE LTD,"48,641.54",19/06/2018
Commercial,Regional Enterprise,Consultants Fees,0060105003,NETWORK RAIL INFRASTRUCTURE LTD,"427,672.92",19/06/2018
Commercial,Regional Enterprise,Consultants Fees,0060104230,THE PLANNING INSPECTORATE,"21,734.43",07/06/2018
Commercial,Regional Enterprise,Consultants Fees,0060107209,TMP (UK) LTD,904.00,28/06/2018
Commissioning,Commissioning,Other Local Authorities - Thir,EBX0231290,ENVIRONMENT AGENCY,"80,523.50",18.06.2018
Commissioning,Commissioning,Other Local Authorities - Thir,EBX0232416,NORTH LONDON WASTE,"1,014,603.00",22.06.2018
Commissioning,Commissioning,Professional Services,0060106067,GENERAL DYNAMICS INFORMATION TECHNOLOGY,"6,248.40",15/06/2018
Commissioning,Commissioning,Professional Services,0060106068,GENERAL DYNAMICS INFORMATION TECHNOLOGY,"6,261.92",15/06/2018
Commissioning,Commissioning,Employee Expenses,0060106403,COPTHALL SCHOOL (ACADEMY),"19,858.56",29/06/2018
Commissioning,Commissioning,Other Services,0060106115,SHREDALL LTD,72.00,28/06/2018
Commissioning,Commissioning,Other Services,0060106133,SHREDALL LTD,396.00,28/06/2018
Commissioning,Commissioning,Other Services,0060106175,SHREDALL LTD,540.00,28/06/2018
Commissioning,Commissioning,Other Services,0060106053,STOR-A FILE LTD,"5,576.40",28/06/2018
Commissioning,Commissioning,Grant Payments,0080018163,EAST BARNET COMMUNITY FESTIVAL,"2,000.00",28/06/2018
Commissioning,Commissioning,Publications,0060104442,GOOD IMPRESSIONS (LONDON) LIMITED,290.00,12/06/2018
Commissioning,Commissioning,Employee Expenses,0060104929,PENNA PLC,"13,513.50",04/06/2018
Commissioning,Commissioning,Employee Expenses,0060104975,PENNA PLC,"12,870.00",06/06/2018
Commissioning,Commissioning,Professional Services,0060106473,GRANT THORNTON UK LLP,"9,728.60",28/06/2018
Commissioning,Commissioning,Professional Services,0060104921,PENNA PLC," 9,477.00 ",01/06/2018
Commissioning,Commissioning,Professional Services,0060104957,PENNA PLC," 10,530.00 ",05/06/2018
Commissioning,Commissioning,Professional Services,0060105006,PENNA PLC, 702.00 ,06/06/2018
Commissioning,Commissioning,Other Services,80017758,REDACTED - PERSONAL DATA, 180.00 ,04/06/2018
Commissioning,Commissioning,Software Licences & Support,0060105303,DOTTED EYES LTD,759.00,21/06/2018
Commissioning,Commissioning,Software Licences & Support,0060105974,ICASEWORK LTD," 12,600.00 ",14/06/2018
Commissioning,Commissioning,Professional Services,0060100111,LONDON BOROUGH OF BRENT,"47,853.00",12/06/2018
Commissioning,Commissioning,Professional Services,0060100955,LONDON BOROUGH OF BRENT,"-8,245.80 ",12/06/2018
Commissioning,Commissioning,Other Establishments - Third P,0080016115,QUEEN ELIZABETH'S GIRLS ACADEMY,"5,796.95",29/06/2018
Commissioning,Commissioning,Other Transfer Payments to Soc,0010014104,EMPOWERING COMMUNITIES," 5,949.00 ",28/06/2018
Commissioning,Commissioning,Other Transfer Payments to Soc,0060107192,IC2 CCTV & SECURITY SPECIALISTS (UK) LTD,"4,700.00",28/06/2018
Commissioning,Commissioning,Advertising,0060100067,TMP (UK) LTD,640.00,27/06/2018
Commissioning,Commissioning,Training,0060105891,SARACENS LTD,"9,741.50",14/06/2018
Commissioning,Commissioning,Consultants Fees,0060102954,GATENBY SANDERSON,"13,453.08",18/06/2018
Commissioning,Commissioning,Consultants Fees,0060106380,GATENBY SANDERSON," 11,747.76 ",21/06/2018
Commissioning,Commissioning,Miscellaneous Expenses,80018145,FUN PARTY LTD, 168.70 ,27/06/2018
Commissioning,Commissioning,Miscellaneous Expenses,80018146,FEN REGIS TROPHIES LTD, 50.00 ,27/06/2018
Commissioning,Commissioning,Other Services,0060102828,ENVENTURE RESEARCH LTD," 11,707.50 ",08/06/2018
Commissioning,Commissioning,Other Services,0060106464,WAGSTAFF INTERIORS GROUP," 3,727.80 ",28/06/2018
Commissioning,Commissioning,Professional Services,0060106062,ESSEX COUNTY COUNCIL," 7,867.50 ",14/06/2018
Commissioning,Commissioning,Professional Services,0060104285,MOTT MACDONALD LTD,"19,602.72",26/06/2018
Commissioning,Commissioning,Other Services,0060104295,MOTT MACDONALD LTD/CAMBRIDGE EDUCATION," 27,136.61 ",14/06/2018
Commissioning,Commissioning,Consultants Fees,0060102170,SENATOR INTERNATIONAL, 555.50 ,04/06/2018
Commissioning,Commissioning,Equipment and Materials Purcha,0060106089,JOHN GRAHAM CONSTRUCTION LTD,"327,544.50",20/06/2018
Commissioning,Commissioning,Consultants Fees,0060104687,E-CAR CLUB,"2,463.17",07/06/2018
Commissioning,Commissioning,Advertising,0060103834,TMP (UK) LTD, 296.00 ,01/06/2018
Commissioning,Commissioning,Advertising,0060103847,TMP (UK) LTD,296.00,01/06/2018
Commissioning,Commissioning,Advertising,0060103804,TMP (UK) LTD, 426.00 ,01/06/2018
Commissioning,Commissioning,Advertising,0060103851,TMP (UK) LTD,296.00,01/06/2018
Commissioning,Commissioning,Other Services,0060106306,CONWAY AECOM LTD," 8,000.00 ",19/06/2018
Corporate Accounting,Corporate Accounting,Other Local Authorities - Thir,EBX0230613,GREATER LONDON AUTHORITY," 3,820,885.00 ",11.06.2018
Corporate Accounting,Corporate Accounting,Miscellaneous Expenses,80017719,REDACTED - PERSONAL DATA,200.00,01/06/2018
Corporate Accounting,Corporate Accounting,Fees and Charges,80017869,THE SHARE FOUNDATION,843.19,11/06/2018
Corporate Accounting,Corporate Accounting,Other Transfer Payments to Soc,0080017720,WIRECARD (FS INSTANT 2040880892973),"11,086.62",01/06/2018
Corporate Accounting,Corporate Accounting,Other Transfer Payments to Soc,0080017721,WIRECARD (FS ONGOING 2040881670310,"14,001.33",01/06/2018
Corporate Accounting,Corporate Accounting,Rates,80017886,ANTHONY GOLD SOLICITORS,"1,000.00",08/06/2018
Corporate Accounting,Corporate Accounting,Rates,80018061,ANTHONY GOLD SOLICITORS," 1,000.00 ",22/06/2018
Corporate Accounting,Corporate Accounting,Refunds,0080017725,MOTT MACDONALD LTD/CAMBRIDGE EDUCATION,418.80,07/06/2018
Delivery Units,Adults and Communities,Other Services,0060104462,P A CONSULTING SERVICES LTD,"74,917.18",28/06/2018
Delivery Units,Adults and Communities,Supp People Recharge,0060104470,P A CONSULTING SERVICES LTD,"60,000.00",28/06/2018
Delivery Units,Adults and Communities,Equipment and Materials Purcha,0060106674,MILLBROOK HEALTHCARE LTD," 417,481.33 ",29/06/2018
Delivery Units,Adults and Communities,Other Services,0060103692,AISA MEDICAL LTD,179.62,07/06/2018
Delivery Units,Adults and Communities,Other Services,0060103709,AISA MEDICAL LTD,173.37,07/06/2018
Delivery Units,Adults and Communities,Other Services,0060103744,AISA MEDICAL LTD,173.37,06/06/2018
Delivery Units,Adults and Communities,Other Services,0060103750,AISA MEDICAL LTD,179.20,06/06/2018
Delivery Units,Adults and Communities,Other Services,0060103757,AISA MEDICAL LTD, 173.37 ,07/06/2018
Delivery Units,Adults and Communities,Other Services,80017836,TALKING MATS LTD, 92.85 ,07/06/2018
Delivery Units,Adults and Communities,Other Agencies - Third Party P,0080017884,BARNET ENFIELD & HARINGEY MENTAL," 52,356.00 ",21/06/2018
Delivery Units,Adults and Communities,Building Repairs & Maintenance,0060101708,S W BRUCE & CO LTD, 506.00 ,19/06/2018
Delivery Units,Adults and Communities,Building Repairs & Maintenance,0060104456,S W BRUCE & CO LTD,95.00,13/06/2018
Delivery Units,Adults and Communities,Gas,0060105309,BRITISH GAS BUSINESS,"2,120.35",01/06/2018
Delivery Units,Adults and Communities,Gas,0060105379,KENT COUNTY COUNCIL (KCS),255.55,01/06/2018
Delivery Units,Adults and Communities,Electricity,0060106479,KENT COUNTY COUNCIL (KCS),206.35,21/06/2018
Delivery Units,Adults and Communities,Water Services,0060105277,CASTLE WATER LTD,3.08,01/06/2018
Delivery Units,Adults and Communities,Rubbish Collection,0060106607,BPR GROUP EUROPE LTD,21.60,28/06/2018
Delivery Units,Adults and Communities,Rubbish Collection,0060089128,G.B.HOLDINGS LTD,16.80,27/06/2018
Delivery Units,Adults and Communities,Rubbish Collection,0060095367,G.B.HOLDINGS LTD, 11.20 ,27/06/2018
Delivery Units,Adults and Communities,Rubbish Collection,0060102365,G.B.HOLDINGS LTD, 11.20 ,27/06/2018
Delivery Units,Adults and Communities,Food Costs,0060105320,MULLER MILK & INGREDIENTS, 1.52 ,08/06/2018
Delivery Units,Adults and Communities,Food Costs,0060105333,MULLER MILK & INGREDIENTS, 1.52 ,01/06/2018
Delivery Units,Adults and Communities,Food Costs,0060106453,MULLER MILK & INGREDIENTS, 1.52 ,29/06/2018
Delivery Units,Adults and Communities,Food Costs,0060106465,MULLER MILK & INGREDIENTS,1.52,22/06/2018
Delivery Units,Adults and Communities,Stationery,0060105347,HERTFORDSHIRE COUNTY COUNCIL, 37.80 ,01/06/2018
Delivery Units,Adults and Communities,Stationery,0060103385,XEROX (UK) LTD, 1.27 ,05/06/2018
Delivery Units,Adults and Communities,Stationery,0060103398,XEROX (UK) LTD,1.64,05/06/2018
Delivery Units,Adults and Communities,Stationery,0060106429,XEROX (UK) LTD, 1.97 ,21/06/2018
Delivery Units,Adults and Communities,Translation Exp / Interpret,0060102299,D.A. LANGUAGES LTD, 186.50 ,08/06/2018
Delivery Units,Adults and Communities,Other Services,0060105363,THE KEYHOLDING CO LTD, 52.54 ,01/06/2018
Delivery Units,Adults and Communities,Other Services,0080018160,POHWER,"10,490.00",27/06/2018
Delivery Units,Adults and Communities,Other Services,0080018164,POHWER," 1,650.00 ",27/06/2018
Delivery Units,Adults and Communities,Other Services,0080018165,POHWER," 5,161.26 ",27/06/2018
Delivery Units,Adults and Communities,Other Transfer Payments to Soc,0080017960,AGE CONCERN," 9,450.00 ",14/06/2018
Delivery Units,Adults and Communities,Other Transfer Payments to Soc,0060100703,ALZHEIMER'S SOCIETY (BARNET),"24,726.59",28/06/2018
Delivery Units,Adults and Communities,Other Transfer Payments to Soc,0060106361,ALZHEIMER'S SOCIETY (BARNET)," 24,562.17 ",28/06/2018
Delivery Units,Adults and Communities,Training,0010014063,ADJUSTING THE BALANCE,55.00,13/06/2018
Delivery Units,Adults and Communities,Training,0010014064,ADJUSTING THE BALANCE, 600.00 ,13/06/2018
Delivery Units,Adults and Communities,Training,0010014065,ADJUSTING THE BALANCE," 1,200.00 ",13/06/2018
Delivery Units,Adults and Communities,Training,0060105919,MIDDLESEX UNIVERSITY," 1,550.00 ",14/06/2018
Delivery Units,Adults and Communities,Training,0060101646,STEVE CHAMBERLAIN SOCIAL CARE LTD, 750.00 ,08/06/2018
Delivery Units,Adults and Communities,Other Services,0060105955,REDACTED - PERSONAL DATA, 500.00 ,26/06/2018
Delivery Units,Adults and Communities,Other Services,0080018176,CARE MONITORING 2000 LTD," 16,639.51 ",22/06/2018
Delivery Units,Adults and Communities,Software Licences & Support,0060106855,THAMES HOMECARE SERVICES LTD," 7,387.76 ",26/06/2018
Delivery Units,Adults and Communities,Other Transfer Payments to Soc,0080018070,HILL HOUSE RESIDENTS FUND, 320.60 ,15/06/2018
Delivery Units,Adults and Communities,Other Transfer Payments to Soc,0080017790,OAK TREE,151.67,08/06/2018
Delivery Units,Adults and Communities,Other Transfer Payments to Soc,80017904,REDACTED - PERSONAL DATA, 500.19 ,12/06/2018
Delivery Units,Adults and Communities,Other Transfer Payments to Soc,80017906,REDACTED - PERSONAL DATA," 1,221.00 ",12/06/2018
Delivery Units,Adults and Communities,Other Transfer Payments to Soc,80018018,CLOVERLEY PROPERTIES LTD,68.00,18/06/2018
Delivery Units,Adults and Communities,Other Transfer Payments to Soc,0080017682,REDACTED - PERSONAL DATA, 99.60 ,01/06/2018
Delivery Units,Adults and Communities,Other Transfer Payments to Soc,0080018006,REDACTED - PERSONAL DATA, 99.60 ,18/06/2018
Delivery Units,Adults and Communities,Other Transfer Payments to Soc,0080018009,REDACTED - PERSONAL DATA,99.60,18/06/2018
Delivery Units,Adults and Communities,Other Transfer Payments to Soc,0080018010,REDACTED - PERSONAL DATA,80.00,18/06/2018
Delivery Units,Adults and Communities,Other Transfer Payments to Soc,0080018013,REDACTED - PERSONAL DATA,99.60,18/06/2018
Delivery Units,Adults and Communities,Other Transfer Payments to Soc,0080018015,REDACTED - PERSONAL DATA, 200.00 ,18/06/2018
Delivery Units,Adults and Communities,Other Transfer Payments to Soc,0080018020,REDACTED - PERSONAL DATA,340.00,18/06/2018
Delivery Units,Adults and Communities,Other Transfer Payments to Soc,0080018022,REDACTED - PERSONAL DATA,99.60,18/06/2018
Delivery Units,Adults and Communities,Other Transfer Payments to Soc,0080018024,REDACTED - PERSONAL DATA, 99.60 ,18/06/2018
Delivery Units,Adults and Communities,Other Transfer Payments to Soc,0080018028,REDACTED - PERSONAL DATA, 80.00 ,18/06/2018
Delivery Units,Adults and Communities,Other Transfer Payments to Soc,0080018031,REDACTED - PERSONAL DATA, 99.60 ,18/06/2018
Delivery Units,Adults and Communities,Other Transfer Payments to Soc,0080018034,REDACTED - PERSONAL DATA,99.60,18/06/2018
Delivery Units,Adults and Communities,Other Transfer Payments to Soc,0080018035,REDACTED - PERSONAL DATA,99.60,18/06/2018
Delivery Units,Adults and Communities,Other Transfer Payments to Soc,0080017903,REDACTED - PERSONAL DATA,120.00,12/06/2018
Delivery Units,Adults and Communities,Other Transfer Payments to Soc,0080018038,REDACTED - PERSONAL DATA,280.00,18/06/2018
Delivery Units,Adults and Communities,Other Transfer Payments to Soc,0080018078,REDACTED - PERSONAL DATA,921.22,19/06/2018
Delivery Units,Adults and Communities,Other Transfer Payments to Soc,0080018041,REDACTED - PERSONAL DATA,69.80,18/06/2018
Delivery Units,Adults and Communities,Other Transfer Payments to Soc,0080018042,REDACTED - PERSONAL DATA, 200.00 ,18/06/2018
Delivery Units,Adults and Communities,Other Transfer Payments to Soc,0080018005,REDACTED - PERSONAL DATA, 99.60 ,18/06/2018
Delivery Units,Adults and Communities,Other Transfer Payments to Soc,0080018044,REDACTED - PERSONAL DATA,99.60,18/06/2018
Delivery Units,Adults and Communities,Other Transfer Payments to Soc,0080018046,REDACTED - PERSONAL DATA, 99.60 ,18/06/2018
Delivery Units,Adults and Communities,Other Transfer Payments to Soc,0080018048,REDACTED - PERSONAL DATA, 99.60 ,18/06/2018
Delivery Units,Adults and Communities,Other Transfer Payments to Soc,0080018049,REDACTED - PERSONAL DATA, 93.40 ,18/06/2018
Delivery Units,Adults and Communities,Other Transfer Payments to Soc,0080018014,REDACTED - PERSONAL DATA,99.60,18/06/2018
Delivery Units,Adults and Communities,Other Transfer Payments to Soc,0080018016,REDACTED - PERSONAL DATA,99.60,18/06/2018
Delivery Units,Adults and Communities,Other Transfer Payments to Soc,0080018008,REDACTED - PERSONAL DATA,155.00,18/06/2018
Delivery Units,Adults and Communities,Other Transfer Payments to Soc,0080018036,REDACTED - PERSONAL DATA,183.80,18/06/2018
Delivery Units,Adults and Communities,Other Transfer Payments to Soc,0080018040,REDACTED - PERSONAL DATA,99.60,18/06/2018
Delivery Units,Adults and Communities,Other Transfer Payments to Soc,0080018007,REDACTED - PERSONAL DATA,336.00,18/06/2018
Delivery Units,Adults and Communities,Other Transfer Payments to Soc,0080017687,REDACTED - PERSONAL DATA,80.00,01/06/2018
Delivery Units,Adults and Communities,Other Transfer Payments to Soc,0080018030,REDACTED - PERSONAL DATA,99.60,18/06/2018
Delivery Units,Adults and Communities,Other Transfer Payments to Soc,0080018032,REDACTED - PERSONAL DATA,99.60,18/06/2018
Delivery Units,Adults and Communities,Other Transfer Payments to Soc,0080018039,REDACTED - PERSONAL DATA,99.60,18/06/2018
Delivery Units,Adults and Communities,Other Transfer Payments to Soc,0080018047,REDACTED - PERSONAL DATA,99.60,18/06/2018
Delivery Units,Adults and Communities,Other Transfer Payments to Soc,0080017683,REDACTED - PERSONAL DATA,200.00,01/06/2018
Delivery Units,Adults and Communities,Other Transfer Payments to Soc,0080018027,REDACTED - PERSONAL DATA,99.60,18/06/2018
Delivery Units,Adults and Communities,Other Transfer Payments to Soc,0080018037,REDACTED - PERSONAL DATA,99.60,18/06/2018
Delivery Units,Adults and Communities,Other Transfer Payments to Soc,0080017681,REDACTED - PERSONAL DATA,200.00,01/06/2018
Delivery Units,Adults and Communities,Other Transfer Payments to Soc,0080017796,REDACTED - PERSONAL DATA,186.80,08/06/2018
Delivery Units,Adults and Communities,Other Transfer Payments to Soc,0080018051,REDACTED - PERSONAL DATA,99.60,18/06/2018
Delivery Units,Adults and Communities,Other Transfer Payments to Soc,0080018052,REDACTED - PERSONAL DATA, 186.80 ,18/06/2018
Delivery Units,Adults and Communities,Other Transfer Payments to Soc,0080017688,REDACTED - PERSONAL DATA, 99.60 ,01/06/2018
Delivery Units,Adults and Communities,Other Transfer Payments to Soc,0080017934,REDACTED - PERSONAL DATA, 139.60 ,18/06/2018
Delivery Units,Adults and Communities,Other Transfer Payments to Soc,0080017686,REDACTED - PERSONAL DATA, 139.60 ,01/06/2018
Delivery Units,Adults and Communities,Other Transfer Payments to Soc,0080018056,REDACTED - PERSONAL DATA, 300.00 ,18/06/2018
Delivery Units,Adults and Communities,Other Transfer Payments to Soc,0080017685,REDACTED - PERSONAL DATA, 160.00 ,01/06/2018
Delivery Units,Adults and Communities,Other Transfer Payments to Soc,0080018057,REDACTED - PERSONAL DATA, 99.60 ,18/06/2018
Delivery Units,Adults and Communities,Other Transfer Payments to Soc,0080018066,REDACTED - PERSONAL DATA, 99.60 ,18/06/2018
Delivery Units,Adults and Communities,Other Transfer Payments to Soc,0080017684,REDACTED - PERSONAL DATA, 146.80 ,01/06/2018
Delivery Units,Adults and Communities,Other Transfer Payments to Soc,0080018068,REDACTED - PERSONAL DATA, 99.60 ,18/06/2018
Delivery Units,Adults and Communities,Other Transfer Payments to Soc,0080018069,REDACTED - PERSONAL DATA, 99.60 ,18/06/2018
Delivery Units,Adults and Communities,Other Transfer Payments to Soc,0080018072,REDACTED - PERSONAL DATA, 165.00 ,18/06/2018
Delivery Units,Adults and Communities,Other Transfer Payments to Soc,0080018071,REDACTED - PERSONAL DATA, 99.60 ,18/06/2018
Delivery Units,Adults and Communities,Other Transfer Payments to Soc,0080018073,REDACTED - PERSONAL DATA, 83.60 ,18/06/2018
Delivery Units,Adults and Communities,Other Services,0010014080,BARNET SENIOR'S ASSEMBLY,"2,500.00",18/06/2018
Delivery Units,Adults and Communities,Consultants Fees,0080017658,STEVE CHAMBERLAIN SOCIAL CARE LTD," 2,500.00 ",06/06/2018
Delivery Units,Adults and Communities,Printing-Contract,0060104464,GOOD IMPRESSIONS (LONDON) LIMITED, 120.00 ,12/06/2018
Delivery Units,Adults and Communities,Equipment and Materials Purcha,0060094419,BACK CARE SOLUTIONS LIMITED, 161.50 ,06/06/2018
Delivery Units,Adults and Communities,Translation Exp / Interpret,0060104197,D.A. LANGUAGES LTD, 54.00 ,07/06/2018
Delivery Units,Adults and Communities,Translation Exp / Interpret,0060104216,D.A. LANGUAGES LTD, 27.00 ,07/06/2018
Delivery Units,Adults and Communities,Stationery,0040002903,OFFICE DEPOT UK LTD, 2.70 ,14/06/2018
Delivery Units,Adults and Communities,Other Services,80018206,REDACTED - PERSONAL DATA, 250.00 ,25/06/2018
Delivery Units,Adults and Communities,Private Contractors - Third Pa,80018012,INSOLVENCY SERVICE," 37,795.20 ",25/06/2018
Delivery Units,Adults and Communities,Other Services,80017778,REDACTED - PERSONAL DATA, 183.80 ,06/06/2018
Delivery Units,Adults and Communities,Other Services,80017779,REDACTED - PERSONAL DATA, 193.95 ,06/06/2018
Delivery Units,Adults and Communities,Other Services,80017780,REDACTED - PERSONAL DATA, 199.00 ,06/06/2018
Delivery Units,Adults and Communities,Other Services,80017782,MENTALHEALTHCOUNTS,340.00,06/06/2018
Delivery Units,Adults and Communities,Other Transfer Payments to Soc,0060102877,AISA MEDICAL LTD, 173.37 ,01/06/2018
Delivery Units,Adults and Communities,Other Transfer Payments to Soc,0010014010,BARTEK ZANIEWSKI LTD,"-2,369.80 ",26/06/2018
Delivery Units,Adults and Communities,Other Transfer Payments to Soc,0060100317,BARTEK ZANIEWSKI LTD, 911.60 ,26/06/2018
Delivery Units,Adults and Communities,Other Transfer Payments to Soc,0060101556,BARTEK ZANIEWSKI LTD, 911.60 ,26/06/2018
Delivery Units,Adults and Communities,Other Transfer Payments to Soc,0060105308,BARTEK ZANIEWSKI LTD, 600.00 ,26/06/2018
Delivery Units,Adults and Communities,Other Transfer Payments to Soc,0060105341,BARTEK ZANIEWSKI LTD, 911.60 ,26/06/2018
Delivery Units,Adults and Communities,Other Transfer Payments to Soc,0060104389,EDUHEZ LTD," 1,050.00 ",07/06/2018
Delivery Units,Adults and Communities,Other Transfer Payments to Soc,0060105282,EDUHEZ LTD,"1,400.00",26/06/2018
Delivery Units,Adults and Communities,Other Transfer Payments to Soc,0060102133,KORU MEDICAL LTD,"1,054.75",04/06/2018
Delivery Units,Adults and Communities,Other Transfer Payments to Soc,0060104629,KORU MEDICAL LTD, 341.66 ,07/06/2018
Delivery Units,Adults and Communities,Other Transfer Payments to Soc,0060104858,KORU MEDICAL LTD, 699.84 ,19/06/2018
Delivery Units,Adults and Communities,Other Transfer Payments to Soc,0060104069,MAINPAY LTD, 300.00 ,06/06/2018
Delivery Units,Adults and Communities,Other Transfer Payments to Soc,0060104073,MAINPAY LTD, 300.00 ,06/06/2018
Delivery Units,Adults and Communities,Other Transfer Payments to Soc,0060104082,MAINPAY LTD, 300.00 ,07/06/2018
Delivery Units,Adults and Communities,Other Transfer Payments to Soc,0060104130,MAINPAY LTD,300.00,06/06/2018
Delivery Units,Adults and Communities,Other Transfer Payments to Soc,0060105543,MAINPAY LTD, 300.00 ,28/06/2018
Delivery Units,Adults and Communities,Other Transfer Payments to Soc,0060080516,PEACEABLE HABITATION LTD, 597.70 ,19/06/2018
Delivery Units,Adults and Communities,Other Transfer Payments to Soc,0060101372,PEACEABLE HABITATION LTD,642.40,08/06/2018
Delivery Units,Adults and Communities,Advertising for staff,0060105903,TMP (UK) LTD,841.00,15/06/2018
Delivery Units,Adults and Communities,Advertising for staff,0060105982,TMP (UK) LTD,841.00,15/06/2018
Delivery Units,Adults and Communities,Other Agencies - Third Party P,0090082907,ABBEY RAVENSCROFT PARK NURSING HOME,"2,698.37",11/06/2018
Delivery Units,Adults and Communities,Other Agencies - Third Party P,0090082908,ABBEY RAVENSCROFT PARK NURSING HOME," 3,150.00 ",11/06/2018
Delivery Units,Adults and Communities,Other Agencies - Third Party P,0090082909,ABBEY RAVENSCROFT PARK NURSING HOME," 2,698.37 ",11/06/2018
Delivery Units,Adults and Communities,Other Agencies - Third Party P,0090082911,ABBEY RAVENSCROFT PARK NURSING HOME," 2,698.37 ",11/06/2018
Delivery Units,Adults and Communities,Other Agencies - Third Party P,0090082912,ABBEY RAVENSCROFT PARK NURSING HOME,"3,000.00",11/06/2018
Delivery Units,Adults and Communities,Other Agencies - Third Party P,0090082914,ABBEY RAVENSCROFT PARK NURSING HOME,"2,698.37",11/06/2018
Delivery Units,Adults and Communities,Other Agencies - Third Party P,0090082916,ABBEY RAVENSCROFT PARK NURSING HOME,"3,679.24",11/06/2018
Delivery Units,Adults and Communities,Other Agencies - Third Party P,0090082918,ABBEY RAVENSCROFT PARK NURSING HOME,"(1,169.29)",11/06/2018
Delivery Units,Adults and Communities,Other Agencies - Third Party P,0090082920,ABBEY RAVENSCROFT PARK NURSING HOME," 3,214.29 ",11/06/2018
Delivery Units,Adults and Communities,Other Agencies - Third Party P,0090082922,ABBEY RAVENSCROFT PARK NURSING HOME," 3,214.29 ",11/06/2018
Delivery Units,Adults and Communities,Other Agencies - Third Party P,0090082962,ABBEY RAVENSCROFT PARK NURSING HOME," 2,698.37 ",11/06/2018
Delivery Units,Adults and Communities,Other Agencies - Third Party P,0090085868,ABBEY RAVENSCROFT PARK NURSING HOME,"3,214.29",21/06/2018
Delivery Units,Adults and Communities,Other Agencies - Third Party P,0090085869,ABBEY RAVENSCROFT PARK NURSING HOME," 3,214.29 ",21/06/2018
Delivery Units,Adults and Communities,Other Agencies - Third Party P,0090085871,ABBEY RAVENSCROFT PARK NURSING HOME,"3,214.29",21/06/2018
Delivery Units,Adults and Communities,Other Agencies - Third Party P,0090086651,ABBEY RAVENSCROFT PARK NURSING HOME," 3,321.43 ",25/06/2018
Delivery Units,Adults and Communities,Other Agencies - Third Party P,0090081997,ADARA HEALTHCARE LTD,"3,400.00",06/06/2018
Delivery Units,Adults and Communities,Other Agencies - Third Party P,0090082440,AGUDAS ISRAEL HOUSING ASSCTN LTD,"2,736.86",14/06/2018
Delivery Units,Adults and Communities,Other Agencies - Third Party P,0090085737,APPLE TREE COURT CARE HOME,"4,714.29",21/06/2018
Delivery Units,Adults and Communities,Other Agencies - Third Party P,0090085741,APPLE TREE COURT CARE HOME," 2,487.77 ",21/06/2018
Delivery Units,Adults and Communities,Other Agencies - Third Party P,0090085742,APPLE TREE COURT CARE HOME,"2,571.43",21/06/2018
Delivery Units,Adults and Communities,Other Agencies - Third Party P,0090085743,APPLE TREE COURT CARE HOME," 2,320.37 ",21/06/2018
Delivery Units,Adults and Communities,Other Agencies - Third Party P,0090084123,ASHTON LODGE CARE CENTRE," 3,299.06 ",18/06/2018
Delivery Units,Adults and Communities,Other Agencies - Third Party P,0090084131,ASHTON LODGE CARE CENTRE,"2,052.02",18/06/2018
Delivery Units,Adults and Communities,Other Agencies - Third Party P,0090084132,ASHTON LODGE CARE CENTRE," 3,741.92 ",18/06/2018
Delivery Units,Adults and Communities,Other Agencies - Third Party P,0090084133,ASHTON LODGE CARE CENTRE," 4,224.75 ",18/06/2018
Delivery Units,Adults and Communities,Other Agencies - Third Party P,0090084134,ASHTON LODGE CARE CENTRE, 844.95 ,18/06/2018
Delivery Units,Adults and Communities,Other Agencies - Third Party P,0090084135,ASHTON LODGE CARE CENTRE," 3,192.64 ",18/06/2018
Delivery Units,Adults and Communities,Other Agencies - Third Party P,0090084136,ASHTON LODGE CARE CENTRE,"3,299.06",18/06/2018
Delivery Units,Adults and Communities,Other Agencies - Third Party P,0090084137,ASHTON LODGE CARE CENTRE,"4,788.96",18/06/2018
Delivery Units,Adults and Communities,Other Agencies - Third Party P,0090084138,ASHTON LODGE CARE CENTRE,"3,192.64",18/06/2018
Delivery Units,Adults and Communities,Other Agencies - Third Party P,0090084139,ASHTON LODGE CARE CENTRE,"5,087.89",18/06/2018
Delivery Units,Adults and Communities,Other Agencies - Third Party P,0090085756,ASHTON LODGE CARE CENTRE," 5,316.64 ",21/06/2018
Delivery Units,Adults and Communities,Other Agencies - Third Party P,0090085757,ASHTON LODGE CARE CENTRE," 2,974.29 ",21/06/2018
Delivery Units,Adults and Communities,Other Agencies - Third Party P,0090085758,ASHTON LODGE CARE CENTRE,"3,406.93",21/06/2018
Delivery Units,Adults and Communities,Other Agencies - Third Party P,0090085761,ASHTON LODGE CARE CENTRE," 3,214.29 ",21/06/2018
Delivery Units,Adults and Communities,Other Agencies - Third Party P,0090085762,ASHTON LODGE CARE CENTRE," 3,187.50 ",21/06/2018
Delivery Units,Adults and Communities,Other Agencies - Third Party P,0090085763,ASHTON LODGE CARE CENTRE," 3,192.64 ",21/06/2018
Delivery Units,Adults and Communities,Other Agencies - Third Party P,0090085764,ASHTON LODGE CARE CENTRE,"20,441.57",21/06/2018
Delivery Units,Adults and Communities,Other Agencies - Third Party P,0090085765,ASHTON LODGE CARE CENTRE," 2,752.33 ",21/06/2018
Delivery Units,Adults and Communities,Other Agencies - Third Party P,0090085766,ASHTON LODGE CARE CENTRE," 2,978.36 ",21/06/2018
Delivery Units,Adults and Communities,Other Agencies - Third Party P,0090085767,ASHTON LODGE CARE CENTRE,"3,032.70",21/06/2018
Delivery Units,Adults and Communities,Other Agencies - Third Party P,0090085768,ASHTON LODGE CARE CENTRE," 2,978.36 ",21/06/2018
Delivery Units,Adults and Communities,Other Agencies - Third Party P,0090085769,ASHTON LODGE CARE CENTRE,"3,621.21",21/06/2018
Delivery Units,Adults and Communities,Other Agencies - Third Party P,0090085770,ASHTON LODGE CARE CENTRE,"3,642.86",21/06/2018
Delivery Units,Adults and Communities,Other Agencies - Third Party P,0090085771,ASHTON LODGE CARE CENTRE," 2,978.36 ",21/06/2018
Delivery Units,Adults and Communities,Other Agencies - Third Party P,0090085772,ASHTON LODGE CARE CENTRE," 2,752.33 ",21/06/2018
Delivery Units,Adults and Communities,Other Agencies - Third Party P,0090085773,ASHTON LODGE CARE CENTRE,"2,978.36",21/06/2018
Delivery Units,Adults and Communities,Other Agencies - Third Party P,0090085774,ASHTON LODGE CARE CENTRE," 2,841.43 ",21/06/2018
Delivery Units,Adults and Communities,Other Agencies - Third Party P,0090085775,ASHTON LODGE CARE CENTRE," 2,752.33 ",21/06/2018
Delivery Units,Adults and Communities,Other Agencies - Third Party P,0090085776,ASHTON LODGE CARE CENTRE,"3,406.93",21/06/2018
Delivery Units,Adults and Communities,Other Agencies - Third Party P,0090085777,ASHTON LODGE CARE CENTRE," 3,406.93 ",21/06/2018
Delivery Units,Adults and Communities,Other Agencies - Third Party P,0090085780,ASHTON LODGE CARE CENTRE,"2,485.11",21/06/2018
Delivery Units,Adults and Communities,Other Agencies - Third Party P,0090085781,ASHTON LODGE CARE CENTRE," 3,428.57 ",21/06/2018
Delivery Units,Adults and Communities,Other Agencies - Third Party P,0090085782,ASHTON LODGE CARE CENTRE," 3,391.93 ",21/06/2018
Delivery Units,Adults and Communities,Other Agencies - Third Party P,0090081248,ASPEN VILLAGES LTD," 2,641.78 ",01/06/2018
Delivery Units,Adults and Communities,Other Agencies - Third Party P,0090081249,ASPEN VILLAGES LTD," 2,643.37 ",01/06/2018
Delivery Units,Adults and Communities,Other Agencies - Third Party P,0090081256,ASPEN VILLAGES LTD,"2,383.94",01/06/2018
Delivery Units,Adults and Communities,Other Agencies - Third Party P,0090085874,ASPEN VILLAGES LTD," 2,556.56 ",21/06/2018
Delivery Units,Adults and Communities,Other Agencies - Third Party P,0090085875,ASPEN VILLAGES LTD," 2,558.10 ",21/06/2018
Delivery Units,Adults and Communities,Other Agencies - Third Party P,0090085229,AUTUMN GARDENS,"4,800.00",19/06/2018
Delivery Units,Adults and Communities,Other Agencies - Third Party P,0090085232,AUTUMN GARDENS,"4,800.00",19/06/2018
Delivery Units,Adults and Communities,Other Agencies - Third Party P,0090082029,BONDCARE LONDON (THE FOUNTAINS),"2,138.00",06/06/2018
Delivery Units,Adults and Communities,Other Agencies - Third Party P,0090082468,BUPA CARE HOMES," 1,909.20 ",14/06/2018
Delivery Units,Adults and Communities,Other Agencies - Third Party P,0090082469,BUPA CARE HOMES," 3,007.40 ",14/06/2018
Delivery Units,Adults and Communities,Other Agencies - Third Party P,0090082470,BUPA CARE HOMES," 2,466.05 ",14/06/2018
Delivery Units,Adults and Communities,Other Agencies - Third Party P,0090082471,BUPA CARE HOMES, 862.86 ,14/06/2018
Delivery Units,Adults and Communities,Other Agencies - Third Party P,0090082540,BUPA CARE HOMES," 2,466.76 ",13/06/2018
Delivery Units,Adults and Communities,Other Agencies - Third Party P,0090083144,BUPA CARE HOMES," 3,764.29 ",14/06/2018
Delivery Units,Adults and Communities,Other Agencies - Third Party P,0090083145,BUPA CARE HOMES," 2,729.11 ",14/06/2018
Delivery Units,Adults and Communities,Other Agencies - Third Party P,0090083148,BUPA CARE HOMES," 3,741.92 ",14/06/2018
Delivery Units,Adults and Communities,Other Agencies - Third Party P,0090083157,BUPA CARE HOMES," 2,321.92 ",13/06/2018
Delivery Units,Adults and Communities,Other Agencies - Third Party P,0090083158,BUPA CARE HOMES," 2,094.52 ",13/06/2018
Delivery Units,Adults and Communities,Other Agencies - Third Party P,0090083159,BUPA CARE HOMES,"2,549.32",13/06/2018
Delivery Units,Adults and Communities,Other Agencies - Third Party P,0090083757,BUPA CARE HOMES,"3,400.00",20/06/2018
Delivery Units,Adults and Communities,Other Agencies - Third Party P,0090083759,BUPA CARE HOMES," 2,165.68 ",20/06/2018
Delivery Units,Adults and Communities,Other Agencies - Third Party P,0090085703,BUPA CARE HOMES,"3,235.71",21/06/2018
Delivery Units,Adults and Communities,Other Agencies - Third Party P,0090085711,BUPA CARE HOMES," 2,387.19 ",21/06/2018
Delivery Units,Adults and Communities,Other Agencies - Third Party P,0090085873,BUPA CARE HOMES,"3,305.91",21/06/2018
Delivery Units,Adults and Communities,Other Agencies - Third Party P,0090085736,BUPA CARE HOMES LTD (SUTTON LODGE),"2,420.00",21/06/2018
Delivery Units,Adults and Communities,Other Agencies - Third Party P,0090086271,BUPA NURSING HOMES LTD - ARKLEY,"2,227.52",28/06/2018
Delivery Units,Adults and Communities,Other Agencies - Third Party P,0090086272,BUPA NURSING HOMES LTD - ARKLEY,"2,227.24",28/06/2018
Delivery Units,Adults and Communities,Other Agencies - Third Party P,0090086273,BUPA NURSING HOMES LTD - ARKLEY," 2,227.24 ",28/06/2018
Delivery Units,Adults and Communities,Other Agencies - Third Party P,0090086275,BUPA NURSING HOMES LTD - ARKLEY," 2,227.40 ",28/06/2018
Delivery Units,Adults and Communities,Other Agencies - Third Party P,0090086276,BUPA NURSING HOMES LTD - ARKLEY,"1,092.86",28/06/2018
Delivery Units,Adults and Communities,Other Agencies - Third Party P,0090085836,CARE UK COMMUNITY PARTNERSHIPS,"3,316.07",21/06/2018
Delivery Units,Adults and Communities,Other Agencies - Third Party P,0090085251,CARETECH COMMUNITY SERVICES LTD," 4,767.43 ",28/06/2018
Delivery Units,Adults and Communities,Other Agencies - Third Party P,0090085806,CARLTON COURT (TLC GROUP),"2,569.89",21/06/2018
Delivery Units,Adults and Communities,Other Agencies - Third Party P,0090085807,CARLTON COURT (TLC GROUP)," 4,285.71 ",21/06/2018
Delivery Units,Adults and Communities,Other Agencies - Third Party P,0090085809,CARLTON COURT (TLC GROUP)," 3,616.07 ",21/06/2018
Delivery Units,Adults and Communities,Other Agencies - Third Party P,0090085812,CARLTON COURT (TLC GROUP)," 2,369.79 ",21/06/2018
Delivery Units,Adults and Communities,Other Agencies - Third Party P,0090085813,CARLTON COURT (TLC GROUP),"3,000.00",21/06/2018
Delivery Units,Adults and Communities,Other Agencies - Third Party P,0090082001,CEDARS NURSING HOME," 4,193.37 ",06/06/2018
Delivery Units,Adults and Communities,Other Agencies - Third Party P,0090082002,CEDARS NURSING HOME," 2,383.94 ",06/06/2018
Delivery Units,Adults and Communities,Other Agencies - Third Party P,0090082003,CEDARS NURSING HOME,"2,951.16",06/06/2018
Delivery Units,Adults and Communities,Other Agencies - Third Party P,0090082004,CEDARS NURSING HOME,"2,641.78",06/06/2018
Delivery Units,Adults and Communities,Other Agencies - Third Party P,0090082005,CEDARS NURSING HOME,"4,857.66",06/06/2018
Delivery Units,Adults and Communities,Other Agencies - Third Party P,0090086639,CEDARS NURSING HOME,"4,700.96",25/06/2018
Delivery Units,Adults and Communities,Other Agencies - Third Party P,0090086640,CEDARS NURSING HOME," 2,556.56 ",25/06/2018
Delivery Units,Adults and Communities,Other Agencies - Third Party P,0090086641,CEDARS NURSING HOME," 2,855.96 ",25/06/2018
Delivery Units,Adults and Communities,Other Agencies - Third Party P,0090086642,CEDARS NURSING HOME," 2,307.04 ",25/06/2018
Delivery Units,Adults and Communities,Other Agencies - Third Party P,0090081246,FERNBANK NURSING HOME.," 2,318.80 ",01/06/2018
Delivery Units,Adults and Communities,Other Agencies - Third Party P,0090081247,FERNBANK NURSING HOME.," 2,318.80 ",01/06/2018
Delivery Units,Adults and Communities,Other Agencies - Third Party P,0090082961,FERNBANK NURSING HOME.," 2,687.08 ",11/06/2018
Delivery Units,Adults and Communities,Other Agencies - Third Party P,0090083618,FERNBANK NURSING HOME.," 3,236.33 ",15/06/2018
Delivery Units,Adults and Communities,Other Agencies - Third Party P,0090085310,FERNBANK NURSING HOME.," 2,244.00 ",19/06/2018
Delivery Units,Adults and Communities,Other Agencies - Third Party P,0090085311,FERNBANK NURSING HOME.," 2,320.20 ",19/06/2018
Delivery Units,Adults and Communities,Other Agencies - Third Party P,0090085312,FERNBANK NURSING HOME.,"2,244.00",19/06/2018
Delivery Units,Adults and Communities,Other Agencies - Third Party P,0090085313,FERNBANK NURSING HOME.,"2,244.00",19/06/2018
Delivery Units,Adults and Communities,Other Agencies - Third Party P,0090085314,FERNBANK NURSING HOME.,"2,335.50",19/06/2018
Delivery Units,Adults and Communities,Other Agencies - Third Party P,0090085315,FERNBANK NURSING HOME.," 2,320.20 ",19/06/2018
Delivery Units,Adults and Communities,Other Agencies - Third Party P,0090085317,FERNBANK NURSING HOME.,"2,571.30",19/06/2018
Delivery Units,Adults and Communities,Other Agencies - Third Party P,0090083590,FOUR SEASONS HEALTH CARE,"2,291.36",14/06/2018
Delivery Units,Adults and Communities,Other Agencies - Third Party P,0090083592,FOUR SEASONS HEALTH CARE," 2,291.36 ",14/06/2018
Delivery Units,Adults and Communities,Other Agencies - Third Party P,0090083593,FOUR SEASONS HEALTH CARE," 2,550.72 ",14/06/2018
Delivery Units,Adults and Communities,Other Agencies - Third Party P,0090083594,FOUR SEASONS HEALTH CARE," 2,550.72 ",14/06/2018
Delivery Units,Adults and Communities,Other Agencies - Third Party P,0090083595,FOUR SEASONS HEALTH CARE," 2,291.36 ",14/06/2018
Delivery Units,Adults and Communities,Other Agencies - Third Party P,0090083597,FOUR SEASONS HEALTH CARE," 2,551.52 ",14/06/2018
Delivery Units,Adults and Communities,Other Agencies - Third Party P,0090083598,FOUR SEASONS HEALTH CARE," 2,291.36 ",14/06/2018
Delivery Units,Adults and Communities,Other Agencies - Third Party P,0090083600,FOUR SEASONS HEALTH CARE," 2,400.00 ",14/06/2018
Delivery Units,Adults and Communities,Other Agencies - Third Party P,0090082541,FOUR SEASONS HEALTH CARE (NO.4) LTD,"2,004.00",08/06/2018
Delivery Units,Adults and Communities,Other Agencies - Third Party P,0090082426,GCH (HERTFORDSHIRE) LTD T/A,"2,358.76",08/06/2018
Delivery Units,Adults and Communities,Other Agencies - Third Party P,0090082035,HENRY NIHILL HOUSE,"2,165.68",08/06/2018
Delivery Units,Adults and Communities,Other Agencies - Third Party P,0090082036,HENRY NIHILL HOUSE," 2,165.68 ",08/06/2018
Delivery Units,Adults and Communities,Other Agencies - Third Party P,0090082037,HENRY NIHILL HOUSE," 2,165.68 ",08/06/2018
Delivery Units,Adults and Communities,Other Agencies - Third Party P,0090082038,HENRY NIHILL HOUSE," 2,165.68 ",08/06/2018
Delivery Units,Adults and Communities,Other Agencies - Third Party P,0090082039,HENRY NIHILL HOUSE,"2,165.68",08/06/2018
Delivery Units,Adults and Communities,Other Agencies - Third Party P,0090082041,HENRY NIHILL HOUSE," 2,165.68 ",08/06/2018
Delivery Units,Adults and Communities,Other Agencies - Third Party P,0090082042,HENRY NIHILL HOUSE," 2,165.68 ",08/06/2018
Delivery Units,Adults and Communities,Other Agencies - Third Party P,0090082043,HENRY NIHILL HOUSE," 2,165.68 ",08/06/2018
Delivery Units,Adults and Communities,Other Agencies - Third Party P,0090085319,HENRY NIHILL HOUSE,35.20,20/06/2018
Delivery Units,Adults and Communities,Other Agencies - Third Party P,0090085320,HENRY NIHILL HOUSE,281.56,20/06/2018
Delivery Units,Adults and Communities,Other Agencies - Third Party P,0090085321,HENRY NIHILL HOUSE,"1,443.01",20/06/2018
Delivery Units,Adults and Communities,Other Agencies - Third Party P,0090085322,HENRY NIHILL HOUSE, 35.20 ,20/06/2018
Delivery Units,Adults and Communities,Other Agencies - Third Party P,0090085323,HENRY NIHILL HOUSE,35.20,20/06/2018
Delivery Units,Adults and Communities,Other Agencies - Third Party P,0090085325,HENRY NIHILL HOUSE," 6,159.19 ",20/06/2018
Delivery Units,Adults and Communities,Other Agencies - Third Party P,0090085327,HENRY NIHILL HOUSE,668.71,20/06/2018
Delivery Units,Adults and Communities,Other Agencies - Third Party P,0090085787,HENRY NIHILL HOUSE,"2,165.68",27/06/2018
Delivery Units,Adults and Communities,Other Agencies - Third Party P,0090085788,HENRY NIHILL HOUSE," 2,165.68 ",27/06/2018
Delivery Units,Adults and Communities,Other Agencies - Third Party P,0090085789,HENRY NIHILL HOUSE,"2,165.68",27/06/2018
Delivery Units,Adults and Communities,Other Agencies - Third Party P,0090085790,HENRY NIHILL HOUSE,"2,165.68",27/06/2018
Delivery Units,Adults and Communities,Other Agencies - Third Party P,0090085791,HENRY NIHILL HOUSE,"2,165.68",27/06/2018
Delivery Units,Adults and Communities,Other Agencies - Third Party P,0090085793,HENRY NIHILL HOUSE,"2,165.68",27/06/2018
Delivery Units,Adults and Communities,Other Agencies - Third Party P,0090085794,HENRY NIHILL HOUSE,"2,165.68",27/06/2018
Delivery Units,Adults and Communities,Other Agencies - Third Party P,0090085795,HENRY NIHILL HOUSE,"2,165.68",27/06/2018
Delivery Units,Adults and Communities,Other Agencies - Third Party P,0090082931,HUSKARDS NEW CARE LTD,"2,320.37",11/06/2018
Delivery Units,Adults and Communities,Other Agencies - Third Party P,0090082963,JEWISH CARE,"2,319.44",11/06/2018
Delivery Units,Adults and Communities,Other Agencies - Third Party P,0090082964,JEWISH CARE," 2,568.84 ",11/06/2018
Delivery Units,Adults and Communities,Other Agencies - Third Party P,0090082965,JEWISH CARE," 2,568.84 ",11/06/2018
Delivery Units,Adults and Communities,Other Agencies - Third Party P,0090082966,JEWISH CARE,"2,319.44",11/06/2018
Delivery Units,Adults and Communities,Other Agencies - Third Party P,0090082967,JEWISH CARE," 2,319.44 ",11/06/2018
Delivery Units,Adults and Communities,Other Agencies - Third Party P,0090082969,JEWISH CARE," 2,319.44 ",11/06/2018
Delivery Units,Adults and Communities,Other Agencies - Third Party P,0090082970,JEWISH CARE," 2,568.84 ",11/06/2018
Delivery Units,Adults and Communities,Other Agencies - Third Party P,0090082972,JEWISH CARE,"2,568.84",11/06/2018
Delivery Units,Adults and Communities,Other Agencies - Third Party P,0090082973,JEWISH CARE," 2,568.84 ",11/06/2018
Delivery Units,Adults and Communities,Other Agencies - Third Party P,0090082974,JEWISH CARE,"2,319.44",11/06/2018
Delivery Units,Adults and Communities,Other Agencies - Third Party P,0090082975,JEWISH CARE,"2,319.44",11/06/2018
Delivery Units,Adults and Communities,Other Agencies - Third Party P,0090082976,JEWISH CARE," 2,568.84 ",11/06/2018
Delivery Units,Adults and Communities,Other Agencies - Third Party P,0090082977,JEWISH CARE,"2,568.84",11/06/2018
Delivery Units,Adults and Communities,Other Agencies - Third Party P,0090082978,JEWISH CARE," 2,201.86 ",11/06/2018
Delivery Units,Adults and Communities,Other Agencies - Third Party P,0090082979,JEWISH CARE," 2,319.44 ",11/06/2018
Delivery Units,Adults and Communities,Other Agencies - Third Party P,0090082980,JEWISH CARE,"2,319.44",11/06/2018
Delivery Units,Adults and Communities,Other Agencies - Third Party P,0090082981,JEWISH CARE,"2,568.84",11/06/2018
Delivery Units,Adults and Communities,Other Agencies - Third Party P,0090083008,JEWISH CARE," 2,319.44 ",11/06/2018
Delivery Units,Adults and Communities,Other Agencies - Third Party P,0090083058,JEWISH CARE," 2,568.84 ",11/06/2018
Delivery Units,Adults and Communities,Other Agencies - Third Party P,0090083059,JEWISH CARE,"2,568.84",11/06/2018
Delivery Units,Adults and Communities,Other Agencies - Third Party P,0090083060,JEWISH CARE," 2,319.44 ",11/06/2018
Delivery Units,Adults and Communities,Other Agencies - Third Party P,0090083061,JEWISH CARE," 2,319.44 ",11/06/2018
Delivery Units,Adults and Communities,Other Agencies - Third Party P,0090083062,JEWISH CARE,"2,568.84",11/06/2018
Delivery Units,Adults and Communities,Other Agencies - Third Party P,0090083587,JEWISH CARE," 1,651.40 ",14/06/2018
Delivery Units,Adults and Communities,Other Agencies - Third Party P,0090083588,JEWISH CARE," 2,319.44 ",14/06/2018
Delivery Units,Adults and Communities,Other Agencies - Third Party P,0090085817,KARUNA MANOR," 4,071.43 ",21/06/2018
Delivery Units,Adults and Communities,Other Agencies - Third Party P,0090085722,LADY OF THE VALE NURSING HOME," 2,571.43 ",21/06/2018
Delivery Units,Adults and Communities,Other Agencies - Third Party P,0090082027,LIFESTYLE CARE PLC," 2,398.56 ",06/06/2018
Delivery Units,Adults and Communities,Other Agencies - Third Party P,0090082028,LIFESTYLE CARE PLC,"2,055.91",06/06/2018
Delivery Units,Adults and Communities,Other Agencies - Third Party P,0090083785,LIFESTYLE CARE PLC," 2,397.72 ",15/06/2018
Delivery Units,Adults and Communities,Other Agencies - Third Party P,0090083786,LIFESTYLE CARE PLC," 2,399.58 ",15/06/2018
Delivery Units,Adults and Communities,Other Agencies - Third Party P,0090083788,LIFESTYLE CARE PLC,"2,655.55",15/06/2018
Delivery Units,Adults and Communities,Other Agencies - Third Party P,0090083789,LIFESTYLE CARE PLC,"2,397.72",15/06/2018
Delivery Units,Adults and Communities,Other Agencies - Third Party P,0090083790,LIFESTYLE CARE PLC," 2,397.72 ",15/06/2018
Delivery Units,Adults and Communities,Other Agencies - Third Party P,0090083791,LIFESTYLE CARE PLC," 2,397.72 ",15/06/2018
Delivery Units,Adults and Communities,Other Agencies - Third Party P,0090083792,LIFESTYLE CARE PLC,"2,397.72",15/06/2018
Delivery Units,Adults and Communities,Other Agencies - Third Party P,0090083793,LIFESTYLE CARE PLC," 2,397.72 ",15/06/2018
Delivery Units,Adults and Communities,Other Agencies - Third Party P,0090085723,M D HOMES,"2,973.21",21/06/2018
Delivery Units,Adults and Communities,Other Agencies - Third Party P,0090087688,M D HOMES," 3,072.32 ",27/06/2018
Delivery Units,Adults and Communities,Other Agencies - Third Party P,0030180225,MEERA NURSING HOME LIMITED," 3,035.76 ",12/06/2018
Delivery Units,Adults and Communities,Other Agencies - Third Party P,0030180227,MEERA NURSING HOME LIMITED,"3,035.75",12/06/2018
Delivery Units,Adults and Communities,Other Agencies - Third Party P,0090083727,MEERA NURSING HOME LIMITED,"-2,621.27 ",19/06/2018
Delivery Units,Adults and Communities,Other Agencies - Third Party P,0090083728,MEERA NURSING HOME LIMITED,"-1,660.14 ",19/06/2018
Delivery Units,Adults and Communities,Other Agencies - Third Party P,0090085279,MEERA NURSING HOME LIMITED,"2,814.13",19/06/2018
Delivery Units,Adults and Communities,Other Agencies - Third Party P,0090085280,MEERA NURSING HOME LIMITED," 2,366.79 ",19/06/2018
Delivery Units,Adults and Communities,Other Agencies - Third Party P,0090085281,MEERA NURSING HOME LIMITED," 2,621.27 ",19/06/2018
Delivery Units,Adults and Communities,Other Agencies - Third Party P,0090085282,MEERA NURSING HOME LIMITED," 2,366.79 ",19/06/2018
Delivery Units,Adults and Communities,Other Agencies - Third Party P,0090085283,MEERA NURSING HOME LIMITED," 2,366.79 ",19/06/2018
Delivery Units,Adults and Communities,Other Agencies - Third Party P,0090085284,MEERA NURSING HOME LIMITED," 2,621.27 ",19/06/2018
Delivery Units,Adults and Communities,Other Agencies - Third Party P,0090083140,MURRAYFIELD CARE HOME," 2,211.80 ",12/06/2018
Delivery Units,Adults and Communities,Other Agencies - Third Party P,0090081236,NEEM TREE CARE CENTRE," 3,196.43 ",01/06/2018
Delivery Units,Adults and Communities,Other Agencies - Third Party P,0090082423,NEWCENTURY CARE LTD," 2,398.56 ",08/06/2018
Delivery Units,Adults and Communities,Other Agencies - Third Party P,0090085855,NEWCENTURY CARE LTD," 3,214.29 ",21/06/2018
Delivery Units,Adults and Communities,Other Agencies - Third Party P,0090085856,NEWCENTURY CARE LTD," 3,642.86 ",21/06/2018
Delivery Units,Adults and Communities,Other Agencies - Third Party P,0090085857,NEWCENTURY CARE LTD,"4,062.86",21/06/2018
Delivery Units,Adults and Communities,Other Agencies - Third Party P,0090085859,NEWCENTURY CARE LTD," 4,200.00 ",21/06/2018
Delivery Units,Adults and Communities,Other Agencies - Third Party P,0090085860,NEWCENTURY CARE LTD,"3,857.14",21/06/2018
Delivery Units,Adults and Communities,Other Agencies - Third Party P,0090085861,NEWCENTURY CARE LTD," 3,857.14 ",21/06/2018
Delivery Units,Adults and Communities,Other Agencies - Third Party P,0090085862,NEWCENTURY CARE LTD,"3,214.29",21/06/2018
Delivery Units,Adults and Communities,Other Agencies - Third Party P,0090085864,NEWCENTURY CARE LTD,"3,214.29",21/06/2018
Delivery Units,Adults and Communities,Other Agencies - Third Party P,0090085865,NEWCENTURY CARE LTD,"-3,157.14 ",21/06/2018
Delivery Units,Adults and Communities,Other Agencies - Third Party P,0030180234,NHS BARNET CCG," 9,590.87 ",12/06/2018
Delivery Units,Adults and Communities,Other Agencies - Third Party P,0090087098,NIGHTINGALE HOUSE,"2,807.14",26/06/2018
Delivery Units,Adults and Communities,Other Agencies - Third Party P,0030180229,PINELODGE CARE HOME,"5,910.74",12/06/2018
Delivery Units,Adults and Communities,Other Agencies - Third Party P,0090083162,SAGE NURSING HOME,"2,397.72",12/06/2018
Delivery Units,Adults and Communities,Other Agencies - Third Party P,0090083164,SAGE NURSING HOME,"2,788.32",12/06/2018
Delivery Units,Adults and Communities,Other Agencies - Third Party P,0090083165,SAGE NURSING HOME,"3,741.92",12/06/2018
Delivery Units,Adults and Communities,Other Agencies - Third Party P,0090083166,SAGE NURSING HOME,"3,321.43",12/06/2018
Delivery Units,Adults and Communities,Other Agencies - Third Party P,0090083167,SAGE NURSING HOME," 2,517.60 ",12/06/2018
Delivery Units,Adults and Communities,Other Agencies - Third Party P,0090083561,SAGE NURSING HOME,"5,314.29",14/06/2018
Delivery Units,Adults and Communities,Other Agencies - Third Party P,0090083617,SAGE NURSING HOME," 2,517.80 ",14/06/2018
Delivery Units,Adults and Communities,Other Agencies - Third Party P,0090085706,SANCTUARY CARE LTD,"2,490.81",21/06/2018
Delivery Units,Adults and Communities,Other Agencies - Third Party P,0090082450,ST ANNS HOME-LITTLE SISTERS OF THE POOR,"2,397.73",08/06/2018
Delivery Units,Adults and Communities,Other Agencies - Third Party P,0080018144,THE LEONARD CHESHIRE FOUNDATION," 6,532.14 ",27/06/2018
Delivery Units,Adults and Communities,Other Agencies - Third Party P,0090082436,THE LEONARD CHESHIRE FOUNDATION," 6,532.14 ",26/06/2018
Delivery Units,Adults and Communities,Other Agencies - Third Party P,0090085713,WESTGATE HOUSE CARE CENTRE," 3,605.57 ",22/06/2018
Delivery Units,Adults and Communities,Other Agencies - Third Party P,0090084148,WESTMINSTER HEALTH CARE LTD," 2,310.48 ",19/06/2018
Delivery Units,Adults and Communities,Other Agencies - Third Party P,0090084149,WESTMINSTER HEALTH CARE LTD," 2,293.60 ",19/06/2018
Delivery Units,Adults and Communities,Other Agencies - Third Party P,0090084150,WESTMINSTER HEALTH CARE LTD," 2,310.48 ",19/06/2018
Delivery Units,Adults and Communities,Other Agencies - Third Party P,0030180226,3A CARE (LONDON) LTD, 162.24 ,12/06/2018
Delivery Units,Adults and Communities,Other Agencies - Third Party P,0090083543,3A CARE (LONDON) LTD," 5,019.43 ",20/06/2018
Delivery Units,Adults and Communities,Other Agencies - Third Party P,0090082472,ALEXANDRA HOUSE (RUNWOOD HOMES),"2,262.69",08/06/2018
Delivery Units,Adults and Communities,Other Agencies - Third Party P,0090085230,ANASTASIA LODGE," 2,800.00 ",19/06/2018
Delivery Units,Adults and Communities,Other Agencies - Third Party P,0090085740,APPLE TREE COURT CARE HOME," 2,369.79 ",21/06/2018
Delivery Units,Adults and Communities,Other Agencies - Third Party P,0090083729,ASHFIELDS RESIDENTIAL CARE HOME,631.94,15/06/2018
Delivery Units,Adults and Communities,Other Agencies - Third Party P,0090083730,ASHFIELDS RESIDENTIAL CARE HOME, 394.96 ,15/06/2018
Delivery Units,Adults and Communities,Other Agencies - Third Party P,0090085760,ASHTON LODGE CARE CENTRE," 2,752.33 ",21/06/2018
Delivery Units,Adults and Communities,Other Agencies - Third Party P,0090085778,ASHTON LODGE CARE CENTRE," 2,538.04 ",21/06/2018
Delivery Units,Adults and Communities,Other Agencies - Third Party P,0090081250,ASPEN VILLAGES LTD," 2,216.41 ",01/06/2018
Delivery Units,Adults and Communities,Other Agencies - Third Party P,0090085876,ASPEN VILLAGES LTD," 2,144.91 ",21/06/2018
Delivery Units,Adults and Communities,Other Agencies - Third Party P,0090085227,AUTUMN GARDENS,"3,160.00",19/06/2018
Delivery Units,Adults and Communities,Other Agencies - Third Party P,0090085231,AUTUMN GARDENS,"2,880.00",19/06/2018
Delivery Units,Adults and Communities,Other Agencies - Third Party P,0080017911,B & M CARE,"2,249.45",12/06/2018
Delivery Units,Adults and Communities,Other Agencies - Third Party P,0090079267,B & M CARE,"-2,440.89 ",12/06/2018
Delivery Units,Adults and Communities,Other Agencies - Third Party P,0090083154,B & M CARE,"2,176.89",12/06/2018
Delivery Units,Adults and Communities,Other Agencies - Third Party P,0090083155,B & M CARE,"2,249.45",12/06/2018
Delivery Units,Adults and Communities,Other Agencies - Third Party P,0090083156,B & M CARE,"2,176.89",12/06/2018
Delivery Units,Adults and Communities,Other Agencies - Third Party P,0090085691,B & M CARE," 2,242.20 ",21/06/2018
Delivery Units,Adults and Communities,Other Agencies - Third Party P,0090085692,B & M CARE," 3,214.29 ",21/06/2018
Delivery Units,Adults and Communities,Other Agencies - Third Party P,0090081244,BELMONT LODGE CARE CENTRE,"2,404.71",01/06/2018
Delivery Units,Adults and Communities,Other Agencies - Third Party P,0090085751,BELMONT LODGE CARE CENTRE," 2,327.14 ",21/06/2018
Delivery Units,Adults and Communities,Other Agencies - Third Party P,0090085245,BIRCHWOOD GRANGE CARE HOME,"2,571.43",19/06/2018
Delivery Units,Adults and Communities,Other Agencies - Third Party P,0030180241,BLUEBIRD CARE (BARNET), 355.50 ,25/06/2018
Delivery Units,Adults and Communities,Other Agencies - Third Party P,0090082537,BUPA CARE HOMES," 2,314.24 ",13/06/2018
Delivery Units,Adults and Communities,Other Agencies - Third Party P,0090082538,BUPA CARE HOMES," 2,314.24 ",13/06/2018
Delivery Units,Adults and Communities,Other Agencies - Third Party P,0090082539,BUPA CARE HOMES,"2,448.78",13/06/2018
Delivery Units,Adults and Communities,Other Agencies - Third Party P,0090086274,BUPA NURSING HOMES LTD - ARKLEY," 2,089.68 ",28/06/2018
Delivery Units,Adults and Communities,Other Agencies - Third Party P,0090085803,CARLTON COURT (TLC GROUP)," 2,176.89 ",21/06/2018
Delivery Units,Adults and Communities,Other Agencies - Third Party P,0090081268,CATHERINE LODGE," 2,044.29 ",01/06/2018
Delivery Units,Adults and Communities,Other Agencies - Third Party P,0090081998,CATHERINE LODGE," 3,812.86 ",06/06/2018
Delivery Units,Adults and Communities,Other Agencies - Third Party P,0090085234,CATHERINE LODGE,"2,369.79",19/06/2018
Delivery Units,Adults and Communities,Other Agencies - Third Party P,0090085235,CATHERINE LODGE," 2,211.80 ",19/06/2018
Delivery Units,Adults and Communities,Other Agencies - Third Party P,0090085236,CATHERINE LODGE," 3,407.14 ",19/06/2018
Delivery Units,Adults and Communities,Other Agencies - Third Party P,0090085239,CATHERINE LODGE,"3,257.14",19/06/2018
Delivery Units,Adults and Communities,Other Agencies - Third Party P,0090085240,CATHERINE LODGE," 3,364.29 ",19/06/2018
Delivery Units,Adults and Communities,Other Agencies - Third Party P,0090085733,CATHERINE LODGE," 3,582.86 ",21/06/2018
Delivery Units,Adults and Communities,Other Agencies - Third Party P,0090081272,CLOVELLY HOUSE RESID. HOME LTD," 1,787.14 ",01/06/2018
Delivery Units,Adults and Communities,Other Agencies - Third Party P,0090081273,CLOVELLY HOUSE RESID. HOME LTD," 2,780.00 ",01/06/2018
Delivery Units,Adults and Communities,Other Agencies - Third Party P,0090085285,CLOVELLY HOUSE RESID. HOME LTD,"2,600.00",19/06/2018
Delivery Units,Adults and Communities,Other Agencies - Third Party P,0090085289,CLOVELLY HOUSE RESID. HOME LTD," 2,600.00 ",19/06/2018
Delivery Units,Adults and Communities,Other Agencies - Third Party P,0090085290,CLOVELLY HOUSE RESID. HOME LTD,"2,780.00",19/06/2018
Delivery Units,Adults and Communities,Other Agencies - Third Party P,0090085291,CLOVELLY HOUSE RESID. HOME LTD,"2,780.00",19/06/2018
Delivery Units,Adults and Communities,Other Agencies - Third Party P,0090085293,CLOVELLY HOUSE RESID. HOME LTD," 2,780.00 ",19/06/2018
Delivery Units,Adults and Communities,Other Agencies - Third Party P,0090085295,CLOVELLY HOUSE RESID. HOME LTD,"2,304.00",19/06/2018
Delivery Units,Adults and Communities,Other Agencies - Third Party P,0090085296,CLOVELLY HOUSE RESID. HOME LTD," 2,600.00 ",19/06/2018
Delivery Units,Adults and Communities,Other Agencies - Third Party P,0090085297,CLOVELLY HOUSE RESID. HOME LTD," 2,304.00 ",19/06/2018
Delivery Units,Adults and Communities,Other Agencies - Third Party P,0090085299,CLOVELLY HOUSE RESID. HOME LTD," 2,780.00 ",19/06/2018
Delivery Units,Adults and Communities,Other Agencies - Third Party P,0090085686,DOWNLANDS CARE LTD,"2,012.10",21/06/2018
Delivery Units,Adults and Communities,Other Agencies - Third Party P,0090082451,EASTSIDE HOUSE RESIDENTIAL CARE HOM," 3,080.00 ",12/06/2018
Delivery Units,Adults and Communities,Other Agencies - Third Party P,0090085747,EASTSIDE HOUSE RESIDENTIAL CARE HOM,"3,080.00",22/06/2018
Delivery Units,Adults and Communities,Other Agencies - Third Party P,0090083565,ELEANOR PALMER TRUST NO 2 A/C.,"2,464.59",14/06/2018
Delivery Units,Adults and Communities,Other Agencies - Third Party P,0090083566,ELEANOR PALMER TRUST NO 2 A/C.,"2,464.59",14/06/2018
Delivery Units,Adults and Communities,Other Agencies - Third Party P,0090083567,ELEANOR PALMER TRUST NO 2 A/C.," 2,263.97 ",14/06/2018
Delivery Units,Adults and Communities,Other Agencies - Third Party P,0090083568,ELEANOR PALMER TRUST NO 2 A/C.,"2,464.59",14/06/2018
Delivery Units,Adults and Communities,Other Agencies - Third Party P,0090083569,ELEANOR PALMER TRUST NO 2 A/C.,"3,214.29",14/06/2018
Delivery Units,Adults and Communities,Other Agencies - Third Party P,0090083570,ELEANOR PALMER TRUST NO 2 A/C.,"2,464.59",14/06/2018
Delivery Units,Adults and Communities,Other Agencies - Third Party P,0090083571,ELEANOR PALMER TRUST NO 2 A/C.," 3,214.29 ",14/06/2018
Delivery Units,Adults and Communities,Other Agencies - Third Party P,0090083572,ELEANOR PALMER TRUST NO 2 A/C.," 2,263.97 ",14/06/2018
Delivery Units,Adults and Communities,Other Agencies - Third Party P,0090083573,ELEANOR PALMER TRUST NO 2 A/C.," 2,263.97 ",14/06/2018
Delivery Units,Adults and Communities,Other Agencies - Third Party P,0090083574,ELEANOR PALMER TRUST NO 2 A/C.,"3,214.29",14/06/2018
Delivery Units,Adults and Communities,Other Agencies - Third Party P,0090083575,ELEANOR PALMER TRUST NO 2 A/C.," 3,214.29 ",14/06/2018
Delivery Units,Adults and Communities,Other Agencies - Third Party P,0090083576,ELEANOR PALMER TRUST NO 2 A/C.,"3,214.29",14/06/2018
Delivery Units,Adults and Communities,Other Agencies - Third Party P,0090083577,ELEANOR PALMER TRUST NO 2 A/C.," 2,263.97 ",14/06/2018
Delivery Units,Adults and Communities,Other Agencies - Third Party P,0090083578,ELEANOR PALMER TRUST NO 2 A/C.,"2,571.43",14/06/2018
Delivery Units,Adults and Communities,Other Agencies - Third Party P,0090083579,ELEANOR PALMER TRUST NO 2 A/C.," 2,464.59 ",14/06/2018
Delivery Units,Adults and Communities,Other Agencies - Third Party P,0090083580,ELEANOR PALMER TRUST NO 2 A/C.,"3,214.29",14/06/2018
Delivery Units,Adults and Communities,Other Agencies - Third Party P,0090083581,ELEANOR PALMER TRUST NO 2 A/C.," 3,214.29 ",14/06/2018
Delivery Units,Adults and Communities,Other Agencies - Third Party P,0090083582,ELEANOR PALMER TRUST NO 2 A/C.,"3,214.29",14/06/2018
Delivery Units,Adults and Communities,Other Agencies - Third Party P,0090086653,ELM PARK LODGE," 1,778.29 ",25/06/2018
Delivery Units,Adults and Communities,Other Agencies - Third Party P,0090086654,ELM PARK LODGE,"3,170.86",25/06/2018
Delivery Units,Adults and Communities,Other Agencies - Third Party P,0090083604,FINBOND LIMITED,"2,357.14",14/06/2018
Delivery Units,Adults and Communities,Other Agencies - Third Party P,0090083606,FINBOND LIMITED,"3,428.57",14/06/2018
Delivery Units,Adults and Communities,Other Agencies - Third Party P,0090087080,FRIARY LODGE," 3,100.00 ",26/06/2018
Delivery Units,Adults and Communities,Other Agencies - Third Party P,0090087090,FRIARY LODGE,"1,714.28",29/06/2018
Delivery Units,Adults and Communities,Other Agencies - Third Party P,0090087091,FRIARY LODGE,"1,400.00",29/06/2018
Delivery Units,Adults and Communities,Other Agencies - Third Party P,0090083616,GCH (HERTFORDSHIRE) LTD T/A,"9,255.71",14/06/2018
Delivery Units,Adults and Communities,Other Agencies - Third Party P,0090087087,GCH (NORTH LONDON) T/A THE TUDORS,"2,300.00",26/06/2018
Delivery Units,Adults and Communities,Other Agencies - Third Party P,0090082447,HILTON LODGE LTD.," 2,480.00 ",08/06/2018
Delivery Units,Adults and Communities,Other Agencies - Third Party P,0090082448,HILTON LODGE LTD.," 2,880.00 ",08/06/2018
Delivery Units,Adults and Communities,Other Agencies - Third Party P,0090082449,HILTON LODGE LTD.," 2,880.00 ",08/06/2018
Delivery Units,Adults and Communities,Other Agencies - Third Party P,0030180235,JEWISH CARE," 3,352.42 ",12/06/2018
Delivery Units,Adults and Communities,Other Agencies - Third Party P,0090082024,JEWISH CARE, 690.08 ,06/06/2018
Delivery Units,Adults and Communities,Other Agencies - Third Party P,0090082025,JEWISH CARE,690.08,06/06/2018
Delivery Units,Adults and Communities,Other Agencies - Third Party P,0090082951,JEWISH CARE,"2,415.28",11/06/2018
Delivery Units,Adults and Communities,Other Agencies - Third Party P,0090082952,JEWISH CARE," 2,218.68 ",11/06/2018
Delivery Units,Adults and Communities,Other Agencies - Third Party P,0090082953,JEWISH CARE,"2,218.68",11/06/2018
Delivery Units,Adults and Communities,Other Agencies - Third Party P,0090082954,JEWISH CARE,"2,218.68",11/06/2018
Delivery Units,Adults and Communities,Other Agencies - Third Party P,0090082955,JEWISH CARE,"2,415.28",11/06/2018
Delivery Units,Adults and Communities,Other Agencies - Third Party P,0090082956,JEWISH CARE,"2,415.28",11/06/2018
Delivery Units,Adults and Communities,Other Agencies - Third Party P,0090082957,JEWISH CARE," 2,218.68 ",11/06/2018
Delivery Units,Adults and Communities,Other Agencies - Third Party P,0090082958,JEWISH CARE," 2,218.68 ",11/06/2018
Delivery Units,Adults and Communities,Other Agencies - Third Party P,0090082968,JEWISH CARE," 2,415.28 ",11/06/2018
Delivery Units,Adults and Communities,Other Agencies - Third Party P,0090082982,JEWISH CARE," 2,415.28 ",11/06/2018
Delivery Units,Adults and Communities,Other Agencies - Third Party P,0090082983,JEWISH CARE," 2,415.28 ",11/06/2018
Delivery Units,Adults and Communities,Other Agencies - Third Party P,0090082984,JEWISH CARE,"2,415.28",11/06/2018
Delivery Units,Adults and Communities,Other Agencies - Third Party P,0090082985,JEWISH CARE,"2,415.28",11/06/2018
Delivery Units,Adults and Communities,Other Agencies - Third Party P,0090082986,JEWISH CARE," 2,415.28 ",11/06/2018
Delivery Units,Adults and Communities,Other Agencies - Third Party P,0090082988,JEWISH CARE," 2,415.28 ",11/06/2018
Delivery Units,Adults and Communities,Other Agencies - Third Party P,0090082989,JEWISH CARE," 2,218.68 ",11/06/2018
Delivery Units,Adults and Communities,Other Agencies - Third Party P,0090082990,JEWISH CARE," 2,415.28 ",11/06/2018
Delivery Units,Adults and Communities,Other Agencies - Third Party P,0090082991,JEWISH CARE," 2,415.28 ",11/06/2018
Delivery Units,Adults and Communities,Other Agencies - Third Party P,0090082992,JEWISH CARE," 2,415.28 ",11/06/2018
Delivery Units,Adults and Communities,Other Agencies - Third Party P,0090082994,JEWISH CARE," 2,415.28 ",11/06/2018
Delivery Units,Adults and Communities,Other Agencies - Third Party P,0090082995,JEWISH CARE," 2,415.28 ",11/06/2018
Delivery Units,Adults and Communities,Other Agencies - Third Party P,0090082996,JEWISH CARE," 2,218.68 ",11/06/2018
Delivery Units,Adults and Communities,Other Agencies - Third Party P,0090082997,JEWISH CARE," 2,415.28 ",11/06/2018
Delivery Units,Adults and Communities,Other Agencies - Third Party P,0090082998,JEWISH CARE," 2,415.28 ",11/06/2018
Delivery Units,Adults and Communities,Other Agencies - Third Party P,0090082999,JEWISH CARE," 2,218.68 ",11/06/2018
Delivery Units,Adults and Communities,Other Agencies - Third Party P,0090083000,JEWISH CARE,"2,415.28",11/06/2018
Delivery Units,Adults and Communities,Other Agencies - Third Party P,0090083002,JEWISH CARE," 2,415.28 ",11/06/2018
Delivery Units,Adults and Communities,Other Agencies - Third Party P,0090083004,JEWISH CARE,"2,218.68",11/06/2018
Delivery Units,Adults and Communities,Other Agencies - Third Party P,0090083006,JEWISH CARE,"2,415.28",11/06/2018
Delivery Units,Adults and Communities,Other Agencies - Third Party P,0090083007,JEWISH CARE," 2,415.28 ",11/06/2018
Delivery Units,Adults and Communities,Other Agencies - Third Party P,0090083011,JEWISH CARE," 2,218.68 ",11/06/2018
Delivery Units,Adults and Communities,Other Agencies - Third Party P,0090083012,JEWISH CARE,"2,156.50",11/06/2018
Delivery Units,Adults and Communities,Other Agencies - Third Party P,0090083013,JEWISH CARE,"2,218.68",11/06/2018
Delivery Units,Adults and Communities,Other Agencies - Third Party P,0090083014,JEWISH CARE,"2,218.68",11/06/2018
Delivery Units,Adults and Communities,Other Agencies - Third Party P,0090083015,JEWISH CARE," 2,218.68 ",11/06/2018
Delivery Units,Adults and Communities,Other Agencies - Third Party P,0090083016,JEWISH CARE,"2,415.28",11/06/2018
Delivery Units,Adults and Communities,Other Agencies - Third Party P,0090083017,JEWISH CARE,"2,415.28",11/06/2018
Delivery Units,Adults and Communities,Other Agencies - Third Party P,0090083019,JEWISH CARE,"2,218.68",11/06/2018
Delivery Units,Adults and Communities,Other Agencies - Third Party P,0090083021,JEWISH CARE,"2,218.68",11/06/2018
Delivery Units,Adults and Communities,Other Agencies - Third Party P,0090083022,JEWISH CARE,"2,218.68",11/06/2018
Delivery Units,Adults and Communities,Other Agencies - Third Party P,0090083023,JEWISH CARE,"2,415.28",11/06/2018
Delivery Units,Adults and Communities,Other Agencies - Third Party P,0090083024,JEWISH CARE," 2,415.28 ",11/06/2018
Delivery Units,Adults and Communities,Other Agencies - Third Party P,0090083025,JEWISH CARE," 2,218.68 ",11/06/2018
Delivery Units,Adults and Communities,Other Agencies - Third Party P,0090083026,JEWISH CARE," 2,415.28 ",11/06/2018
Delivery Units,Adults and Communities,Other Agencies - Third Party P,0090083027,JEWISH CARE,"2,415.28",11/06/2018
Delivery Units,Adults and Communities,Other Agencies - Third Party P,0090083028,JEWISH CARE,"2,415.28",11/06/2018
Delivery Units,Adults and Communities,Other Agencies - Third Party P,0090083029,JEWISH CARE," 4,733.40 ",11/06/2018
Delivery Units,Adults and Communities,Other Agencies - Third Party P,0090083030,JEWISH CARE,"2,218.68",11/06/2018
Delivery Units,Adults and Communities,Other Agencies - Third Party P,0090083031,JEWISH CARE," 2,218.68 ",11/06/2018
Delivery Units,Adults and Communities,Other Agencies - Third Party P,0090083032,JEWISH CARE,"2,218.68",11/06/2018
Delivery Units,Adults and Communities,Other Agencies - Third Party P,0090083033,JEWISH CARE," 2,415.28 ",11/06/2018
Delivery Units,Adults and Communities,Other Agencies - Third Party P,0090083034,JEWISH CARE," 2,415.28 ",11/06/2018
Delivery Units,Adults and Communities,Other Agencies - Third Party P,0090083035,JEWISH CARE," 2,218.68 ",11/06/2018
Delivery Units,Adults and Communities,Other Agencies - Third Party P,0090083037,JEWISH CARE," 2,415.28 ",11/06/2018
Delivery Units,Adults and Communities,Other Agencies - Third Party P,0090083039,JEWISH CARE,"2,102.00",11/06/2018
Delivery Units,Adults and Communities,Other Agencies - Third Party P,0090083043,JEWISH CARE," 2,415.28 ",11/06/2018
Delivery Units,Adults and Communities,Other Agencies - Third Party P,0090083046,JEWISH CARE," 3,200.00 ",11/06/2018
Delivery Units,Adults and Communities,Other Agencies - Third Party P,0090083047,JEWISH CARE," 2,415.28 ",11/06/2018
Delivery Units,Adults and Communities,Other Agencies - Third Party P,0090083048,JEWISH CARE,"2,218.68",11/06/2018
Delivery Units,Adults and Communities,Other Agencies - Third Party P,0090083050,JEWISH CARE,"2,415.28",11/06/2018
Delivery Units,Adults and Communities,Other Agencies - Third Party P,0090083051,JEWISH CARE," 2,415.28 ",11/06/2018
Delivery Units,Adults and Communities,Other Agencies - Third Party P,0090083053,JEWISH CARE," 2,415.28 ",11/06/2018
Delivery Units,Adults and Communities,Other Agencies - Third Party P,0090083054,JEWISH CARE,"2,415.28",11/06/2018
Delivery Units,Adults and Communities,Other Agencies - Third Party P,0090083055,JEWISH CARE,"2,415.28",11/06/2018
Delivery Units,Adults and Communities,Other Agencies - Third Party P,0090083056,JEWISH CARE," 2,415.28 ",11/06/2018
Delivery Units,Adults and Communities,Other Agencies - Third Party P,0090083562,JEWISH CARE, 776.34 ,14/06/2018
Delivery Units,Adults and Communities,Other Agencies - Third Party P,0090083589,JEWISH CARE,"1,030.10",14/06/2018
Delivery Units,Adults and Communities,Other Agencies - Third Party P,0090083619,JEWISH CARE,(845.35),14/06/2018
Delivery Units,Adults and Communities,Other Agencies - Third Party P,0090085815,KARUNA MANOR," 3,981.43 ",21/06/2018
Delivery Units,Adults and Communities,Other Agencies - Third Party P,0090085816,KARUNA MANOR,"4,071.43",21/06/2018
Delivery Units,Adults and Communities,Other Agencies - Third Party P,0090085818,KARUNA MANOR," 3,857.14 ",21/06/2018
Delivery Units,Adults and Communities,Other Agencies - Third Party P,0090082010,LEO BAECK HOUSING ASSOC. LTD,"2,176.89",06/06/2018
Delivery Units,Adults and Communities,Other Agencies - Third Party P,0090082011,LEO BAECK HOUSING ASSOC. LTD,"2,252.14",06/06/2018
Delivery Units,Adults and Communities,Other Agencies - Third Party P,0090082012,LEO BAECK HOUSING ASSOC. LTD," 2,254.07 ",06/06/2018
Delivery Units,Adults and Communities,Other Agencies - Third Party P,0090082014,LEO BAECK HOUSING ASSOC. LTD,"2,285.74",06/06/2018
Delivery Units,Adults and Communities,Other Agencies - Third Party P,0090082015,LEO BAECK HOUSING ASSOC. LTD," 2,329.21 ",06/06/2018
Delivery Units,Adults and Communities,Other Agencies - Third Party P,0090082017,LEO BAECK HOUSING ASSOC. LTD," 2,361.93 ",06/06/2018
Delivery Units,Adults and Communities,Other Agencies - Third Party P,0090082018,LEO BAECK HOUSING ASSOC. LTD," 2,249.45 ",06/06/2018
Delivery Units,Adults and Communities,Other Agencies - Third Party P,0090082019,LEO BAECK HOUSING ASSOC. LTD,"2,327.21",06/06/2018
Delivery Units,Adults and Communities,Other Agencies - Third Party P,0090082030,LEO BAECK HOUSING ASSOC. LTD,"2,285.74",06/06/2018
Delivery Units,Adults and Communities,Other Agencies - Third Party P,0090082031,LEO BAECK HOUSING ASSOC. LTD,"2,361.93",06/06/2018
Delivery Units,Adults and Communities,Other Agencies - Third Party P,0090082032,LEO BAECK HOUSING ASSOC. LTD," 2,285.74 ",06/06/2018
Delivery Units,Adults and Communities,Other Agencies - Third Party P,0090082033,LEO BAECK HOUSING ASSOC. LTD," 2,361.93 ",06/06/2018
Delivery Units,Adults and Communities,Other Agencies - Third Party P,0090082044,LEO BAECK HOUSING ASSOC. LTD," 2,361.93 ",06/06/2018
Delivery Units,Adults and Communities,Other Agencies - Third Party P,0090082045,LEO BAECK HOUSING ASSOC. LTD," 2,133.36 ",06/06/2018
Delivery Units,Adults and Communities,Other Agencies - Third Party P,0090082046,LEO BAECK HOUSING ASSOC. LTD," 2,361.93 ",06/06/2018
Delivery Units,Adults and Communities,Other Agencies - Third Party P,0090085831,LEO BAECK HOUSING ASSOC. LTD," 2,176.89 ",21/06/2018
Delivery Units,Adults and Communities,Other Agencies - Third Party P,0090085832,LEO BAECK HOUSING ASSOC. LTD,"2,252.14",21/06/2018
Delivery Units,Adults and Communities,Other Agencies - Third Party P,0090085833,LEO BAECK HOUSING ASSOC. LTD,"2,285.74",21/06/2018
Delivery Units,Adults and Communities,Other Agencies - Third Party P,0090085835,LEO BAECK HOUSING ASSOC. LTD," 2,254.07 ",21/06/2018
Delivery Units,Adults and Communities,Other Agencies - Third Party P,0090087094,LEWIS.W.HAMMERSON MEMORIAL HOME,"1,001.15",26/06/2018
Delivery Units,Adults and Communities,Other Agencies - Third Party P,0090087096,LEWIS.W.HAMMERSON MEMORIAL HOME,"2,310.34",26/06/2018
Delivery Units,Adults and Communities,Other Agencies - Third Party P,0090087097,LEWIS.W.HAMMERSON MEMORIAL HOME,"2,310.34",26/06/2018
Delivery Units,Adults and Communities,Other Agencies - Third Party P,0090085220,LIVABILITY," 2,400.00 ",19/06/2018
Delivery Units,Adults and Communities,Other Agencies - Third Party P,0090084955,MADELAYNE COURT," 2,144.91 ",19/06/2018
Delivery Units,Adults and Communities,Other Agencies - Third Party P,0090086648,METHODIST HOMES FOR THE AGED," 2,001.92 ",25/06/2018
Delivery Units,Adults and Communities,Other Agencies - Third Party P,0090084142,NAZARETH HOUSE," 25,909.29 ",18/06/2018
Delivery Units,Adults and Communities,Other Agencies - Third Party P,0090084143,NAZARETH HOUSE,"2,260.00",18/06/2018
Delivery Units,Adults and Communities,Other Agencies - Third Party P,0090083608,QUANTUM CARE LIMITED,"4,207.14",14/06/2018
Delivery Units,Adults and Communities,Other Agencies - Third Party P,0090086647,QUANTUM CARE LIMITED," 2,307.14 ",25/06/2018
Delivery Units,Adults and Communities,Other Agencies - Third Party P,0030180242,R.M.B.I, 145.12 ,08/06/2018
Delivery Units,Adults and Communities,Other Agencies - Third Party P,0090084935,R.M.B.I,"2,249.36",19/06/2018
Delivery Units,Adults and Communities,Other Agencies - Third Party P,0090085734,R.M.B.I,"2,176.80",22/06/2018
Delivery Units,Adults and Communities,Other Agencies - Third Party P,0090081234,ROLAND RESIDENTIAL CARE HOMES LTD,"3,678.02",01/06/2018
Delivery Units,Adults and Communities,Other Agencies - Third Party P,0090085695,ROLAND RESIDENTIAL CARE HOMES LTD," 3,559.37 ",21/06/2018
Delivery Units,Adults and Communities,Other Agencies - Third Party P,0090083738,ROSEACRES CARE HOME LIMITED,"3,321.43",15/06/2018
Delivery Units,Adults and Communities,Other Agencies - Third Party P,0090083739,ROSEACRES CARE HOME LIMITED," 3,321.43 ",15/06/2018
Delivery Units,Adults and Communities,Other Agencies - Third Party P,0090083740,ROSEACRES CARE HOME LIMITED," 2,542.18 ",15/06/2018
Delivery Units,Adults and Communities,Other Agencies - Third Party P,0090083742,ROSEACRES CARE HOME LIMITED," 2,448.78 ",15/06/2018
Delivery Units,Adults and Communities,Other Agencies - Third Party P,0090083743,ROSEACRES CARE HOME LIMITED," 3,321.43 ",15/06/2018
Delivery Units,Adults and Communities,Other Agencies - Third Party P,0090083745,ROSEACRES CARE HOME LIMITED,"2,542.31",15/06/2018
Delivery Units,Adults and Communities,Other Agencies - Third Party P,0090083747,ROSEACRES CARE HOME LIMITED," 3,321.43 ",15/06/2018
Delivery Units,Adults and Communities,Other Agencies - Third Party P,0090083749,ROSEACRES CARE HOME LIMITED," 3,321.43 ",15/06/2018
Delivery Units,Adults and Communities,Other Agencies - Third Party P,0090083750,ROSEACRES CARE HOME LIMITED,"2,542.31",15/06/2018
Delivery Units,Adults and Communities,Other Agencies - Third Party P,0090083751,ROSEACRES CARE HOME LIMITED,"2,542.21",15/06/2018
Delivery Units,Adults and Communities,Other Agencies - Third Party P,0090083754,ROSEACRES CARE HOME LIMITED," 2,335.36 ",15/06/2018
Delivery Units,Adults and Communities,Other Agencies - Third Party P,0090083755,ROSEACRES CARE HOME LIMITED,"2,542.31",15/06/2018
Delivery Units,Adults and Communities,Other Agencies - Third Party P,0090083756,ROSEACRES CARE HOME LIMITED,"2,542.31",15/06/2018
Delivery Units,Adults and Communities,Other Agencies - Third Party P,0090082542,SAFFRONS RESIDENTIAL CARE HOME,"5,965.71",08/06/2018
Delivery Units,Adults and Communities,Other Agencies - Third Party P,0090082543,SAFFRONS RESIDENTIAL CARE HOME,"4,971.43",08/06/2018
Delivery Units,Adults and Communities,Other Agencies - Third Party P,0090083161,SAGE NURSING HOME,"2,249.45",12/06/2018
Delivery Units,Adults and Communities,Other Agencies - Third Party P,0090083163,SAGE NURSING HOME," 2,657.14 ",12/06/2018
Delivery Units,Adults and Communities,Other Agencies - Third Party P,0090086259,SAGE NURSING HOME,"2,156.44",25/06/2018
Delivery Units,Adults and Communities,Other Agencies - Third Party P,0090087081,SAGE NURSING HOME,"2,322.32",26/06/2018
Delivery Units,Adults and Communities,Other Agencies - Third Party P,0090082006,SCIMITAR CARE HOTELS PLC,642.86,06/06/2018
Delivery Units,Adults and Communities,Other Agencies - Third Party P,0090082007,SCIMITAR CARE HOTELS PLC," 3,985.71 ",06/06/2018
Delivery Units,Adults and Communities,Other Agencies - Third Party P,0090085821,SCIMITAR CARE HOTELS PLC," 3,857.14 ",28/06/2018
Delivery Units,Adults and Communities,Other Agencies - Third Party P,0090085822,SCIMITAR CARE HOTELS PLC," 3,310.71 ",28/06/2018
Delivery Units,Adults and Communities,Other Agencies - Third Party P,0090085823,SCIMITAR CARE HOTELS PLC," 4,071.43 ",28/06/2018
Delivery Units,Adults and Communities,Other Agencies - Third Party P,0090086257,SCIMITAR CARE HOTELS PLC,"3,857.14",28/06/2018
Delivery Units,Adults and Communities,Other Agencies - Third Party P,0090083732,SONNET CARE HOMES (ESSEX) LTD," 4,871.43 ",15/06/2018
Delivery Units,Adults and Communities,Other Agencies - Third Party P,0090085693,SONNET CARE HOMES (ESSEX) LTD," 4,714.29 ",28/06/2018
Delivery Units,Adults and Communities,Other Agencies - Third Party P,0090082536,SPRINGVIEW,"3,100.00",08/06/2018
Delivery Units,Adults and Communities,Other Agencies - Third Party P,0090083724,SUNRIDGE HOUSING ASSOCIATION LTD," 2,808.77 ",20/06/2018
Delivery Units,Adults and Communities,Other Agencies - Third Party P,0090083725,SUNRIDGE HOUSING ASSOCIATION LTD," 2,893.14 ",20/06/2018
Delivery Units,Adults and Communities,Other Agencies - Third Party P,0090085714,SYDMAR LODGE,"2,342.23",21/06/2018
Delivery Units,Adults and Communities,Other Agencies - Third Party P,0090085715,SYDMAR LODGE," 2,377.16 ",21/06/2018
Delivery Units,Adults and Communities,Other Agencies - Third Party P,0090085716,SYDMAR LODGE," 2,377.16 ",21/06/2018
Delivery Units,Adults and Communities,Other Agencies - Third Party P,0090085717,SYDMAR LODGE,"2,377.16",21/06/2018
Delivery Units,Adults and Communities,Other Agencies - Third Party P,0090085718,SYDMAR LODGE," 3,042.00 ",21/06/2018
Delivery Units,Adults and Communities,Other Agencies - Third Party P,0090085719,SYDMAR LODGE,"2,376.73",21/06/2018
Delivery Units,Adults and Communities,Other Agencies - Third Party P,0090082930,THE CHRISTIAN CARE TRUST,"2,144.00",11/06/2018
Delivery Units,Adults and Communities,Other Agencies - Third Party P,0090085216,THE CHRISTIAN CARE TRUST," 2,304.00 ",19/06/2018
Delivery Units,Adults and Communities,Other Agencies - Third Party P,0090083558,THE GRANGE," 1,671.43 ",14/06/2018
Delivery Units,Adults and Communities,Other Agencies - Third Party P,0090083559,THE GRANGE," 2,600.00 ",14/06/2018
Delivery Units,Adults and Communities,Other Agencies - Third Party P,0090083560,THE GRANGE," 2,600.00 ",14/06/2018
Delivery Units,Adults and Communities,Other Agencies - Third Party P,0090084897,THE GRANGE,"2,300.28",19/06/2018
Delivery Units,Adults and Communities,Other Agencies - Third Party P,0090084898,THE GRANGE," 2,260.00 ",19/06/2018
Delivery Units,Adults and Communities,Other Agencies - Third Party P,0090084936,THE LIMES RESIDENTIAL HOME," 2,369.79 ",21/06/2018
Delivery Units,Adults and Communities,Other Agencies - Third Party P,0090084937,THE LIMES RESIDENTIAL HOME," 2,228.57 ",21/06/2018
Delivery Units,Adults and Communities,Other Agencies - Third Party P,0090084938,THE LIMES RESIDENTIAL HOME," 2,369.79 ",21/06/2018
Delivery Units,Adults and Communities,Other Agencies - Third Party P,0090084939,THE LIMES RESIDENTIAL HOME,"2,369.79",21/06/2018
Delivery Units,Adults and Communities,Other Agencies - Third Party P,0090084940,THE LIMES RESIDENTIAL HOME,"2,369.79",21/06/2018
Delivery Units,Adults and Communities,Other Agencies - Third Party P,0090084941,THE LIMES RESIDENTIAL HOME," 2,369.79 ",21/06/2018
Delivery Units,Adults and Communities,Other Agencies - Third Party P,0090084942,THE LIMES RESIDENTIAL HOME," 2,369.79 ",21/06/2018
Delivery Units,Adults and Communities,Other Agencies - Third Party P,0090084943,THE LIMES RESIDENTIAL HOME," 2,176.89 ",21/06/2018
Delivery Units,Adults and Communities,Other Agencies - Third Party P,0090084946,THE LIMES RESIDENTIAL HOME," 2,176.89 ",21/06/2018
Delivery Units,Adults and Communities,Other Agencies - Third Party P,0090084947,THE LIMES RESIDENTIAL HOME," 2,176.89 ",21/06/2018
Delivery Units,Adults and Communities,Other Agencies - Third Party P,0090084949,THE LIMES RESIDENTIAL HOME," 2,785.71 ",21/06/2018
Delivery Units,Adults and Communities,Other Agencies - Third Party P,0090084950,THE LIMES RESIDENTIAL HOME," 2,369.79 ",21/06/2018
Delivery Units,Adults and Communities,Other Agencies - Third Party P,0090084951,THE LIMES RESIDENTIAL HOME," 2,369.79 ",21/06/2018
Delivery Units,Adults and Communities,Other Agencies - Third Party P,0090084953,THE LIMES RESIDENTIAL HOME, 645.71 ,21/06/2018
Delivery Units,Adults and Communities,Other Agencies - Third Party P,0090084954,THE LIMES RESIDENTIAL HOME," 2,179.29 ",21/06/2018
Delivery Units,Adults and Communities,Other Agencies - Third Party P,0090084901,THE WOODSIDE HOME,"2,092.72",19/06/2018
Delivery Units,Adults and Communities,Other Agencies - Third Party P,0090084903,THE WOODSIDE HOME," 2,092.72 ",19/06/2018
Delivery Units,Adults and Communities,Other Agencies - Third Party P,0090084904,THE WOODSIDE HOME,"2,092.72",19/06/2018
Delivery Units,Adults and Communities,Other Agencies - Third Party P,0090084905,THE WOODSIDE HOME,"2,092.72",19/06/2018
Delivery Units,Adults and Communities,Other Agencies - Third Party P,0090084906,THE WOODSIDE HOME," 2,278.16 ",19/06/2018
Delivery Units,Adults and Communities,Other Agencies - Third Party P,0090084907,THE WOODSIDE HOME,"2,278.16",19/06/2018
Delivery Units,Adults and Communities,Other Agencies - Third Party P,0090085273,TORRINGTON HOMES," 2,369.79 ",19/06/2018
Delivery Units,Adults and Communities,Other Agencies - Third Party P,0090085274,TORRINGTON HOMES,"2,369.79",19/06/2018
Delivery Units,Adults and Communities,Other Agencies - Third Party P,0090085275,TORRINGTON HOMES,"2,369.79",19/06/2018
Delivery Units,Adults and Communities,Other Agencies - Third Party P,0090085276,TORRINGTON HOMES,"2,369.79",19/06/2018
Delivery Units,Adults and Communities,Other Agencies - Third Party P,0090085277,TORRINGTON HOMES," 2,176.89 ",19/06/2018
Delivery Units,Adults and Communities,Other Agencies - Third Party P,0030180236,VENTRY RESIDENTIAL CARE LTD," 1,421.87 ",12/06/2018
Delivery Units,Adults and Communities,Other Agencies - Third Party P,0030180237,VENTRY RESIDENTIAL CARE LTD, 631.94 ,12/06/2018
Delivery Units,Adults and Communities,Other Agencies - Third Party P,0090084151,WESTMINSTER HEALTH CARE LTD," 2,655.55 ",19/06/2018
Delivery Units,Adults and Communities,Other Agencies - Third Party P,0090084153,WESTMINSTER HEALTH CARE LTD,"3,741.92",19/06/2018
Delivery Units,Adults and Communities,Other Agencies - Third Party P,0090085872,WILTON HOUSE LTD,"2,536.46",21/06/2018
Delivery Units,Adults and Communities,Other Agencies - Third Party P,0090086261,YORK HOMES (DORSET) LTD," 2,600.00 ",25/06/2018
Delivery Units,Adults and Communities,Direct Transfer Payments to So,0090085614,WIRECARD - ADULT SERVICES, 480.80 ,21/06/2018
Delivery Units,Adults and Communities,Direct Transfer Payments to So,0090085667,WIRECARD - ADULT SERVICES,280.00,21/06/2018
Delivery Units,Adults and Communities,Direct Transfer Payments to So,0090085669,WIRECARD - ADULT SERVICES,462.00,21/06/2018
Delivery Units,Adults and Communities,Direct Transfer Payments to So,0090085677,WIRECARD - ADULT SERVICES," 10,584.00 ",21/06/2018
Delivery Units,Adults and Communities,Direct Transfer Payments to So,0090087515,WIRECARD - ADULT SERVICES,"1,200.00",26/06/2018
Delivery Units,Adults and Communities,Direct Transfer Payments to So,0090086488,REDACTED - PERSONAL DATA, 420.72 ,25/06/2018
Delivery Units,Adults and Communities,Direct Transfer Payments to So,0090085563,REDACTED - PERSONAL DATA,781.32,21/06/2018
Delivery Units,Adults and Communities,Direct Transfer Payments to So,0090086010,REDACTED - PERSONAL DATA,"1,143.16",22/06/2018
Delivery Units,Adults and Communities,Direct Transfer Payments to So,0090086070,REDACTED - PERSONAL DATA,360.60,22/06/2018
Delivery Units,Adults and Communities,Direct Transfer Payments to So,0090085457,REDACTED - PERSONAL DATA, 790.84 ,21/06/2018
Delivery Units,Adults and Communities,Direct Transfer Payments to So,0090086019,REDACTED - PERSONAL DATA, 348.00 ,22/06/2018
Delivery Units,Adults and Communities,Direct Transfer Payments to So,0090085374,REDACTED - PERSONAL DATA,347.20,21/06/2018
Delivery Units,Adults and Communities,Direct Transfer Payments to So,0090085569,REDACTED - PERSONAL DATA,837.68,21/06/2018
Delivery Units,Adults and Communities,Direct Transfer Payments to So,0090085476,REDACTED - PERSONAL DATA, 280.00 ,21/06/2018
Delivery Units,Adults and Communities,Direct Transfer Payments to So,0090086617,REDACTED - PERSONAL DATA,"1,560.72",25/06/2018
Delivery Units,Adults and Communities,Direct Transfer Payments to So,0090086574,REDACTED - PERSONAL DATA, 160.00 ,25/06/2018
Delivery Units,Adults and Communities,Direct Transfer Payments to So,0090086413,REDACTED - PERSONAL DATA," 1,185.32 ",25/06/2018
Delivery Units,Adults and Communities,Direct Transfer Payments to So,0090087543,REDACTED - PERSONAL DATA," 7,486.93 ",26/06/2018
Delivery Units,Adults and Communities,Direct Transfer Payments to So,0090085466,REDACTED - PERSONAL DATA,"1,005.12",21/06/2018
Delivery Units,Adults and Communities,Direct Transfer Payments to So,0090087741,REDACTED - PERSONAL DATA,"(3,482.02)",27/06/2018
Delivery Units,Adults and Communities,Direct Transfer Payments to So,0090086046,REDACTED - PERSONAL DATA,"1,000.00",22/06/2018
Delivery Units,Adults and Communities,Direct Transfer Payments to So,0090086483,REDACTED - PERSONAL DATA, 825.44 ,25/06/2018
Delivery Units,Adults and Communities,Direct Transfer Payments to So,0090086015,REDACTED - PERSONAL DATA,975.36,22/06/2018
Delivery Units,Adults and Communities,Direct Transfer Payments to So,0090086475,REDACTED - PERSONAL DATA,451.92,25/06/2018
Delivery Units,Adults and Communities,Direct Transfer Payments to So,0090086030,REDACTED - PERSONAL DATA, 144.24 ,22/06/2018
Delivery Units,Adults and Communities,Direct Transfer Payments to So,0090086034,REDACTED - PERSONAL DATA, 961.60 ,22/06/2018
Delivery Units,Adults and Communities,Direct Transfer Payments to So,0090085434,REDACTED - PERSONAL DATA,160.00,21/06/2018
Delivery Units,Adults and Communities,Direct Transfer Payments to So,0090086501,REDACTED - PERSONAL DATA,440.00,25/06/2018
Delivery Units,Adults and Communities,Direct Transfer Payments to So,0090085438,REDACTED - PERSONAL DATA, 442.88 ,21/06/2018
Delivery Units,Adults and Communities,Direct Transfer Payments to So,0090086039,REDACTED - PERSONAL DATA,985.64,22/06/2018
Delivery Units,Adults and Communities,Direct Transfer Payments to So,0090086439,REDACTED - PERSONAL DATA,589.00,25/06/2018
Delivery Units,Adults and Communities,Direct Transfer Payments to So,0090085992,REDACTED - PERSONAL DATA,"1,525.44",22/06/2018
Delivery Units,Adults and Communities,Direct Transfer Payments to So,0090085535,REDACTED - PERSONAL DATA,295.68,21/06/2018
Delivery Units,Adults and Communities,Direct Transfer Payments to So,0090085942,REDACTED - PERSONAL DATA,801.00,22/06/2018
Delivery Units,Adults and Communities,Direct Transfer Payments to So,0090086520,REDACTED - PERSONAL DATA, 927.84 ,25/06/2018
Delivery Units,Adults and Communities,Direct Transfer Payments to So,0090086401,REDACTED - PERSONAL DATA,456.76,25/06/2018
Delivery Units,Adults and Communities,Direct Transfer Payments to So,0090086476,REDACTED - PERSONAL DATA," 4,093.84 ",25/06/2018
Delivery Units,Adults and Communities,Direct Transfer Payments to So,0090085586,REDACTED - PERSONAL DATA,687.12,21/06/2018
Delivery Units,Adults and Communities,Direct Transfer Payments to So,0090086479,REDACTED - PERSONAL DATA, 347.20 ,25/06/2018
Delivery Units,Adults and Communities,Direct Transfer Payments to So,0090086060,REDACTED - PERSONAL DATA,240.00,22/06/2018
Delivery Units,Adults and Communities,Direct Transfer Payments to So,0090086504,REDACTED - PERSONAL DATA,775.04,25/06/2018
Delivery Units,Adults and Communities,Direct Transfer Payments to So,0090083638,REDACTED - PERSONAL DATA, 950.00 ,14/06/2018
Delivery Units,Adults and Communities,Direct Transfer Payments to So,0090086429,REDACTED - PERSONAL DATA,"1,545.48",25/06/2018
Delivery Units,Adults and Communities,Direct Transfer Payments to So,0090085584,REDACTED - PERSONAL DATA," 2,852.68 ",21/06/2018
Delivery Units,Adults and Communities,Direct Transfer Payments to So,0090085952,REDACTED - PERSONAL DATA,"1,766.96",22/06/2018
Delivery Units,Adults and Communities,Direct Transfer Payments to So,0090085515,REDACTED - PERSONAL DATA,"1,248.16",21/06/2018
Delivery Units,Adults and Communities,Direct Transfer Payments to So,0090085448,REDACTED - PERSONAL DATA,"1,346.24",21/06/2018
Delivery Units,Adults and Communities,Direct Transfer Payments to So,0090085471,REDACTED - PERSONAL DATA, 589.68 ,21/06/2018
Delivery Units,Adults and Communities,Direct Transfer Payments to So,0090086547,REDACTED - PERSONAL DATA, 889.48 ,25/06/2018
Delivery Units,Adults and Communities,Direct Transfer Payments to So,0090086613,REDACTED - PERSONAL DATA,643.60,25/06/2018
Delivery Units,Adults and Communities,Direct Transfer Payments to So,0090082374,REDACTED - PERSONAL DATA, 534.73 ,08/06/2018
Delivery Units,Adults and Communities,Direct Transfer Payments to So,0090085414,REDACTED - PERSONAL DATA,514.88,21/06/2018
Delivery Units,Adults and Communities,Direct Transfer Payments to So,0090085481,REDACTED - PERSONAL DATA,321.80,21/06/2018
Delivery Units,Adults and Communities,Direct Transfer Payments to So,0090086619,REDACTED - PERSONAL DATA,136.00,25/06/2018
Delivery Units,Adults and Communities,Direct Transfer Payments to So,0090082531,REDACTED - PERSONAL DATA, 826.85 ,25/06/2018
Delivery Units,Adults and Communities,Direct Transfer Payments to So,0090082534,REDACTED - PERSONAL DATA,-826.85 ,25/06/2018
Delivery Units,Adults and Communities,Direct Transfer Payments to So,0090086543,REDACTED - PERSONAL DATA," 1,035.24 ",25/06/2018
Delivery Units,Adults and Communities,Direct Transfer Payments to So,0090086554,REDACTED - PERSONAL DATA, 390.00 ,25/06/2018
Delivery Units,Adults and Communities,Direct Transfer Payments to So,0090085446,REDACTED - PERSONAL DATA,279.12,21/06/2018
Delivery Units,Adults and Communities,Direct Transfer Payments to So,0090086629,REDACTED - PERSONAL DATA,901.04,25/06/2018
Delivery Units,Adults and Communities,Direct Transfer Payments to So,0090085387,REDACTED - PERSONAL DATA,"2,436.00",21/06/2018
Delivery Units,Adults and Communities,Direct Transfer Payments to So,0090085478,REDACTED - PERSONAL DATA, 870.00 ,21/06/2018
Delivery Units,Adults and Communities,Direct Transfer Payments to So,0090087537,REDACTED - PERSONAL DATA,"1,113.44",26/06/2018
Delivery Units,Adults and Communities,Direct Transfer Payments to So,0090085406,REDACTED - PERSONAL DATA,218.24,21/06/2018
Delivery Units,Adults and Communities,Direct Transfer Payments to So,0090083636,REDACTED - PERSONAL DATA,203.00,14/06/2018
Delivery Units,Adults and Communities,Direct Transfer Payments to So,0090086553,REDACTED - PERSONAL DATA," 1,438.32 ",25/06/2018
Delivery Units,Adults and Communities,Direct Transfer Payments to So,0090085420,REDACTED - PERSONAL DATA,"2,092.96",21/06/2018
Delivery Units,Adults and Communities,Direct Transfer Payments to So,0090086562,REDACTED - PERSONAL DATA,208.68,25/06/2018
Delivery Units,Adults and Communities,Direct Transfer Payments to So,0090085441,REDACTED - PERSONAL DATA, 772.32 ,21/06/2018
Delivery Units,Adults and Communities,Direct Transfer Payments to So,0090086551,REDACTED - PERSONAL DATA,966.84,25/06/2018
